{"text_format":"1","workbook":"xlsx","n_sheets":3,"sheets":["Journal Entry","Sheet1","ChrtFlds"],"not_rendered":{"charts":0,"images":2,"macros":1,"external_links":0,"defined_names":15,"comments":1,"pivot_tables":0},"unopened":[],"bounds":{"document_bytes":16777216,"sheet_cells":100000,"rows_first":2000,"rows_last":500,"rows_between":2000,"halvings":0,"cell_chars":16384,"cell_head_chars":4096},"cells_cut":0,"cells_raw":0,"read":"whole","date_system":"1900"}

{"sheet":"Journal Entry","index":0,"n_rows":104,"n_cols":183,"rows_kept":104,"cut":false,"hidden":false,"merged":[[1,4,2,8],[22,7,22,8],[3,4,3,8],[11,12,15,13],[13,4,13,7],[18,2,18,6],[8,4,8,5],[15,4,15,8]]}
[null,null,null,null,null,null,null,null,{"$f":"IF(E22=\"\",\"INFORMATION IS MISSING\",IF(I8=\"\",\"INFORMATION IS MISSING\",IF(I9=\"\",\"INFORMATION IS MISSING\",IF(E23=\"\",\"INFORMATION IS MISSING\",IF(H22=\"\",\"INFORMATION IS MISSING\",\"\")))))","v":""},null,null,null,null,null,null,null,null,null,null,null,null,null,null,null,null,null,null,null,null,null,null,null,null,null,null,null,null,null,null,null,null,null,null,null,null,null,null,null,null,null,null,null,null,{"$f":"ROW(Header_Row)","v":27},null,null,null,null,"TFR",null,null,null,null,"ACTUALS",null,null,null,null,null,null,null,null,null,null,null,null,null,null,null,null,null,null,null,null,null,null,null,null,null,null,null,null,null,"angel",null,null,null,null,null,null,null,null,null,null,null,null,null,null,null,null,null,null,null,null,null,null,null,null,null,null,null,null,null,null,null,null,null,null,null,null,null,null,null,null,null,null,null,null,null,null,null,null,null,null,null,null,null,null,null,null,null,null,null,null,null,null,null,null,null,null,null,null,null,null,null,null,null,null,null,null,null,null,null,null,null,null,null,null,null,null,null,null,"SoBe"]
[null,null,null,null,"CSUB Journal Entry Form",null,null,null,null,null,null,null,null,null,null,null,null,null,null,null,null,null,null,null,null,null,null,null,null,null,null,null,null,null,null,null,null,null,null,null,null,null,null,null,null,null,null,null,null,null,null,null,null,9,null,null,null,null,"ACC",null,null,null,null,null,null,null,null,null,null,null,null,null,null,null,null,null,null,null,null,null,null,null,null,null,null,null,null,null,null,null,null,null,"Pending directory name: ","ACT_PENDING"]
[null,null,null,null,null,null,null,null,null,null,null,null,null,null,null,null,null,null,null,null,null,null,null,null,null,null,null,null,null,null,null,null,null,null,null,null,null,null,null,null,null,null,null,null,null,null,null,null,null,null,null,null,null,null,null,null,null,null,"ADN",null,null,null,null,null,null,null,null,null,null,"BKCMP",null,null,null,null,null,null,null,null,null,null,null,null,null,null,null,null,null,null,null,null,null,null,"Approved Directory name:","ACT_APPROVED"]
[null,null,null,null,"Email to:   accounting@csub.edu",null,null,null,null,null,null,"Application Release: PS Finance 9.0",null,null,null,null,null,null,null,null,null,null,null,null,null,null,null,null,null,null,null,null,null,null,null,null,null,null,null,null,null,null,null,null,null,null,null,null,null,null,null,null,null,null,null,null,null,null,"CHB",null,null,null,null,null,null,null,null,null,null,"BKASI",null,null,null,null,null,null,null,null,null,null,null,null,null,null,null,null,null,null,null,null,null,null,"Main folder name:","fsupload"]
[null,null,null,null,null,null,null,null,null,null,null,null,null,null,null,null,null,null,null,null,null,null,null,null,null,null,null,null,null,null,null,null,null,null,null,null,null,null,null,null,null,null,null,null,null,null,null,null,null,null,null,null,null,null,null,null,null,null,"CPO",null,null,null,null,null,null,null,null,null,null,"BKFDN"]
[null,null,null,null,null,null,null,null,null,null,null,null,null,null,null,null,null,null,null,null,null,null,null,null,null,null,null,null,null,null,null,null,null,null,null,null,null,null,null,null,null,null,null,null,null,null,null,null,null,null,null,null,null,null,null,null,null,null,"CSH",null,null,null,null,null,null,null,null,null,null,"BKSTU"]
[null,null,null,"Business Unit:","BKCMP",{"$f":"IF(ISBLANK(Business_Unit),\"    <== Select a Business Unit from the drop-down list.\",\"\")","v":""},null,"Ledger Group:","ACTUALS",null,null,null,null,null,null,null,null,null,null,null,null,null,null,null,null,null,null,null,null,null,null,null,null,null,null,null,null,null,null,null,null,null,null,null,null,null,null,null,null,null,null,null,null,null,null,null,null,null,"GPA",null,null,null,null,null,null,null,null,null,null,"BKSPA"]
[null,null,null,"Date Prepared:",{"$f":"TODAY()","v":"2018-03-13"},null,null,"Ledger:","ACTUALS",null,null,null,"Dept Name/No:",null,null,null,null,null,null,null,null,null,null,null,null,null,null,null,null,null,null,null,null,null,null,null,null,null,null,null,null,null,null,null,null,null,null,null,null,null,null,null,null,null,null,null,null,null,"SFS",null,null,null,null,null,null,null,null,null,null,"BKCSU"]
[null,null,null,"Prepared by:",null,null,null,"Source:","ACC",null,null,null,"Extension:",null,null,null,null,null,null,null,null,null,null,null,null,null,null,null,null,null,null,null,null,null,null,null,null,null,null,null,null,null,null,null,null,null,null,null,null,null,null,null,null,null,null,null,null,null,"PTY",null,null,null,null,null,null,null,null,null,null,"BKGAP"]
[null,null,null,"Filename:",{"$f":"MID(CELL(\"filename\",$A$1),(FIND(\"\\[\",CELL(\"filename\",$A$1)))+2,(FIND(\"ls]\",CELL(\"filename\",$A$1))-FIND(\"\\[\",CELL(\"filename\",$A$1))))","v":{"$error":"#VALUE!"}},null,null,null,null,null,null,null,"Jnl Reference:",{"$f":"MID(CELL(\"filename\",$A$1),(FIND(\"\\[\",CELL(\"filename\",$A$1)))+2,((FIND(\"]\",CELL(\"filename\",$A$1))-6)-FIND(\"\\[\",CELL(\"filename\",$A$1))))","v":"Journal Entry Form Template."},null,null,null,null,null,null,null,null,null,null,null,null,null,null,null,null,null,null,null,null,null,null,null,null,null,null,null,null,null,null,null,null,null,null,null,null,null,null,null,null,null,null,null,null,"OBL"]
[null,null,null,"Effective Date:",{"$f":"E8","v":"2018-03-13"},null,{"$f":"IF(E11=\"\",\"Effective Date is Required\",\"\")","v":""},null,null,null,null,null,"Justification (Optional):",null,null,null,null,null,null,null,null,null,null,null,null,null,null,null,null,null,null,null,null,null,null,null,null,null,null,null,null,null,null,null,null,null,null,null,null,null,null,null,null,null,null,null,null,null,"RTI"]
[null,null,null,null,null,null,null,null,null,null,null,null,null,null,null,null,null,null,null,null,null,null,null,null,null,null,null,null,null,null,null,null,null,null,null,null,null,null,null,null,null,null,null,null,null,null,null,null,null,null,null,null,null,null,null,null,null,null,"RTO"]
[null,null,"Description /"]
[null,null,"Explanation: "]
[]
[null,null,"Acctg Appr:"]
[]
[null,null,"Department Certifying Signatures:",null,null,null,null,null,null,null,null,{"$f":"IF(L20<>M20,\"Warning: Journal out of balance  By   --  \" & L20-M20,\" \")","v":" "}]
[null,null,null,null,null,null,null,null,null,null,null,"Debit Total","Credit Total"]
[null,null,null,null,null,null,null,null,null,null,null,{"$f":"SUM(L28:L104)","v":0},{"$f":"SUM(M28:M104)","v":0}]
[null,null,null,null,"Accounting Use Only"]
[null,null,null,"Fiscal Year:","DEFAULT",null,"Reversal Code:","N"]
[null,null,null,"Journal ID:","NEXT",null,"Reversal Date:"]
[]
[]
[null,null,null,null,null,null,null,null,null,null,null,null,null,{"$f":"IF(SUM(Q28:Q104)>0,\"Warning: Enter only one Amount per line\",\"\")","v":""}]
[null,null,"Line","Bus Un","Fund","Dept","Acct","Prgm","Proj/Grant","Class","Scenario","Debit Amount","Credit Amount","  Description","Reference"]
[null,null,{"$f":"IF(E28 >0,1,\"\")","v":""},null,null,null,null,null,null,null,null,null,null,null,null,null,{"$f":"IF($L28>0,IF($M28>0,1,0),0)","v":0}]
[null,null,{"$f":"IF(E29 >0,INDIRECT(\"C\"&ROW()-1)+1,\"\")","v":""},null,null,null,null,null,null,null,null,null,null,null,null,null,0]
[null,null,{"$f":"IF(E30 >0,INDIRECT(\"C\"&ROW()-1)+1,\"\")","v":""},null,null,null,null,null,null,null,null,null,null,null,null,null,0]
[null,null,"",null,null,null,null,null,null,null,null,null,null,null,null,null,0]
[null,null,"",null,null,null,null,null,null,null,null,null,null,null,null,null,0]
[null,null,"",null,null,null,null,null,null,null,null,null,null,null,null,null,0]
[null,null,"",null,null,null,null,null,null,null,null,null,null,null,null,null,0]
[null,null,"",null,null,null,null,null,null,null,null,null,null,null,null,null,0]
[null,null,"",null,null,null,null,null,null,null,null,null,null,null,null,null,0]
[null,null,"",null,null,null,null,null,null,null,null,null,null,null,null,null,0]
[null,null,"",null,null,null,null,null,null,null,null,null,null,null,null,null,0]
[null,null,"",null,null,null,null,null,null,null,null,null,null,null,null,null,0]
[null,null,"",null,null,null,null,null,null,null,null,null,null,null,null,null,0]
[null,null,"",null,null,null,null,null,null,null,null,null,null,null,null,null,0]
[null,null,"",null,null,null,null,null,null,null,null,null,null,null,null,null,0]
[null,null,"",null,null,null,null,null,null,null,null,null,null,null,null,null,0]
[null,null,"",null,null,null,null,null,null,null,null,null,null,null,null,null,0]
[null,null,"",null,null,null,null,null,null,null,null,null,null,null,null,null,0]
[null,null,"",null,null,null,null,null,null,null,null,null,null,null,null,null,0]
[null,null,"",null,null,null,null,null,null,null,null,null,null,null,null,null,0]
[null,null,"",null,null,null,null,null,null,null,null,null,null,null,null,null,0]
[null,null,"",null,null,null,null,null,null,null,null,null,null,null,null,null,0]
[null,null,"",null,null,null,null,null,null,null,null,null,null,null,null,null,0]
[null,null,"",null,null,null,null,null,null,null,null,null,null,null,null,null,0]
[null,null,"",null,null,null,null,null,null,null,null,null,null,null,null,null,0]
[null,null,"",null,null,null,null,null,null,null,null,null,null,null,null,null,0]
[null,null,{"$f":"IF(E54 >0,INDIRECT(\"C\"&ROW()-1)+1,\"\")","v":""},null,null,null,null,null,null,null,null,null,null,null,null,null,0]
[null,null,"",null,null,null,null,null,null,null,null,null,null,null,null,null,0]
[null,null,"",null,null,null,null,null,null,null,null,null,null,null,null,null,0]
[null,null,"",null,null,null,null,null,null,null,null,null,null,null,null,null,0]
[null,null,"",null,null,null,null,null,null,null,null,null,null,null,null,null,0]
[null,null,"",null,null,null,null,null,null,null,null,null,null,null,null,null,0]
[null,null,"",null,null,null,null,null,null,null,null,null,null,null,null,null,0]
[null,null,"",null,null,null,null,null,null,null,null,null,null,null,null,null,0]
[null,null,"",null,null,null,null,null,null,null,null,null,null,null,null,null,0]
[null,null,"",null,null,null,null,null,null,null,null,null,null,null,null,null,0]
[null,null,"",null,null,null,null,null,null,null,null,null,null,null,null,null,0]
[null,null,"",null,null,null,null,null,null,null,null,null,null,null,null,null,0]
[null,null,"",null,null,null,null,null,null,null,null,null,null,null,null,null,0]
[null,null,"",null,null,null,null,null,null,null,null,null,null,null,null,null,0]
[null,null,"",null,null,null,null,null,null,null,null,null,null,null,null,null,0]
[null,null,"",null,null,null,null,null,null,null,null,null,null,null,null,null,0]
[null,null,"",null,null,null,null,null,null,null,null,null,null,null,null,null,0]
[null,null,"",null,null,null,null,null,null,null,null,null,null,null,null,null,0]
[null,null,"",null,null,null,null,null,null,null,null,null,null,null,null,null,0]
[null,null,"",null,null,null,null,null,null,null,null,null,null,null,null,null,0]
[null,null,"",null,null,null,null,null,null,null,null,null,null,null,null,null,0]
[null,null,"",null,null,null,null,null,null,null,null,null,null,null,null,null,0]
[null,null,"",null,null,null,null,null,null,null,null,null,null,null,null,null,0]
[null,null,"",null,null,null,null,null,null,null,null,null,null,null,null,null,0]
[null,null,"",null,null,null,null,null,null,null,null,null,null,null,null,null,0]
[null,null,"",null,null,null,null,null,null,null,null,null,null,null,null,null,0]
[null,null,"",null,null,null,null,null,null,null,null,null,null,null,null,null,0]
[null,null,"",null,null,null,null,null,null,null,null,null,null,null,null,null,0]
[null,null,"",null,null,null,null,null,null,null,null,null,null,null,null,null,0]
[null,null,"",null,null,null,null,null,null,null,null,null,null,null,null,null,0]
[null,null,"",null,null,null,null,null,null,null,null,null,null,null,null,null,0]
[null,null,"",null,null,null,null,null,null,null,null,null,null,null,null,null,0]
[null,null,"",null,null,null,null,null,null,null,null,null,null,null,null,null,0]
[null,null,"",null,null,null,null,null,null,null,null,null,null,null,null,null,0]
[null,null,"",null,null,null,null,null,null,null,null,null,null,null,null,null,0]
[null,null,"",null,null,null,null,null,null,null,null,null,null,null,null,null,0]
[null,null,"",null,null,null,null,null,null,null,null,null,null,null,null,null,0]
[null,null,"",null,null,null,null,null,null,null,null,null,null,null,null,null,0]
[null,null,"",null,null,null,null,null,null,null,null,null,null,null,null,null,0]
[null,null,"",null,null,null,null,null,null,null,null,null,null,null,null,null,0]
[null,null,"",null,null,null,null,null,null,null,null,null,null,null,null,null,0]
[null,null,"",null,null,null,null,null,null,null,null,null,null,null,null,null,0]
[null,null,"",null,null,null,null,null,null,null,null,null,null,null,null,null,0]
[null,null,"",null,null,null,null,null,null,null,null,null,null,null,null,null,0]
[null,null,"",null,null,null,null,null,null,null,null,null,null,null,null,null,0]
[null,null,"",null,null,null,null,null,null,null,null,null,null,null,null,null,0]
[null,null,"",null,null,null,null,null,null,null,null,null,null,null,null,null,0]
[null,null,"",null,null,null,null,null,null,null,null,null,null,null,null,null,0]
[null,null,"",null,null,null,null,null,null,null,null,null,null,null,null,null,0]
[null,null,"",null,null,null,null,null,null,null,null,null,null,null,null,null,0]
[null,null,"",{"$f":"IF(E104>0,$E$7,\"\")","v":""},null,null,null,null,null,null,null,null,null,null,null,null,0]

{"sheet":"Sheet1","index":1,"n_rows":0,"n_cols":0,"rows_kept":0,"cut":false,"hidden":false,"merged":[]}

{"sheet":"ChrtFlds","index":2,"n_rows":5238,"n_cols":3,"rows_kept":5238,"cut":false,"hidden":true,"merged":[]}
["C","000","General Fund Annual Appropriat"]
["C","001","General Fund General Support"]
["C","002","General Fund International Pro"]
["C","003","General Fund Statewide Academi"]
["C","004","General Fund Information Resou"]
["C","005","General Fund Trustees Audit"]
["C","006","General Fund Priority Fund"]
["C","007","General Fund Systemwide Costs"]
["C","008","General Fund Productivity Impr"]
["P","01","Instruction"]
["C","010","General Fund Contingency Fund"]
["P","0100","Instruction"]
["P","0101","General Academic Instruction"]
["P","0102","Vocational/Technical Instructi"]
["P","0103","Special Session Instruction"]
["P","0104","Community Education"]
["P","0105","Preparatory/Remedial Instructi"]
["P","0106","Instructional Information Tech"]
["C","011","General Fund Unallocated Servi"]
["C","012","General Fund Academic Programs"]
["C","013","General Fund Academic Technolo"]
["C","014","General Fund Health Services F"]
["C","015","General Fund Human Resouces Pr"]
["C","017","General Fund Capital Outlay"]
["P","02","Research"]
["C","020","General Fund Unappropriated"]
["P","0200","Research"]
["P","0201","Institutes and Research Center"]
["P","0202","Individual and Project Researc"]
["P","0203","Research Information Technolog"]
["P","03","Public Service"]
["P","0300","Public Service"]
["P","0301","Community Service"]
["P","0302","Cooperative Extension Service"]
["P","0303","Public Broadcasting Services"]
["P","0304","Public Service Information Tec"]
["P","04","Academic Support"]
["P","0400","Academic Support"]
["P","0401","Libraries"]
["P","0402","Museums and Galleries"]
["P","0403","Educational Media Services"]
["P","0404","Academic Computing Support"]
["P","0405","Ancillary Support"]
["P","0406","Academic Administration"]
["P","0407","Academic Personnel Development"]
["P","0408","Course and Curriculum Developm"]
["P","0409","Academic Support Information T"]
["C","041","Special Account for Capital Ou"]
["P","05","Student Services"]
["P","0500","Student Services"]
["P","0501","Student Services Administratio"]
["P","0502","Social and Cultural Developmen"]
["P","0503","Counseling and Career Guidance"]
["P","0504","Financial Aid Administration"]
["P","0505","Student Admissions/Records"]
["P","0507","Student Health Services"]
["P","0508","Student Services Information T"]
["P","0509","Student Admissions"]
["C","051","CSU Capital Outlay for Public"]
["P","0510","Student Records"]
["P","06","Institutional Support"]
["P","0600","Institutional Support"]
["P","0601","Executive Management"]
["P","0602","Fiscal Operations"]
["P","0603","General Administration & Logis"]
["P","0604","Administrative Computing Suppo"]
["P","0605","Public Relations/Development"]
["P","0606","General Administration"]
["P","0607","Administrative Information Tec"]
["P","07","Operation and Maintenance of P"]
["P","0700","Operation and Maintenance of P"]
["P","0701","Physical Plant Administration"]
["P","0702","Building Maintenance"]
["P","0703","Custodial Services"]
["P","0704","Utilities"]
["P","0705","Landscape and Grounds Maintena"]
["P","0706","Major Repairs and Renovations"]
["P","0707","Security and Safety"]
["P","0708","Logistical Services"]
["P","0709","Oper and Maint Information Tec"]
["C","075","1987 Higher Educ Earthquake Ac"]
["P","08","Student Grants and Scholarship"]
["P","0800","Scholarships and Fellowships"]
["P","0801","Scholarhips"]
["P","0802","Fellowships"]
["C","081","HighTechnology Educ Revenue Bo"]
["C","085","Higher Education Fees and Inco"]
["P","09","Educ. & General Mandatory Tran"]
["P","0900","Mandatory Transfers"]
["P","0901","Provision for Debt Service on"]
["P","0902","Loan Fund Matching Grant"]
["P","0903","Other Mandatory Transfers"]
["P","10","Educ. & General Non Mandatory"]
["P","1000","Educ & General Non Mandatory T"]
["P","1001","Campus Wide"]
["P","1001","Non Mandatory Transfer/Educ &"]
["P","1002","Campus Reserve"]
["P","1003","Graduation"]
["P","1004","Accreditation"]
["P","1005","CMS"]
["P","1006","Roll Forward"]
["P","1007","ITV"]
["P","1008","C/O Travel"]
["P","1009","Union-Release Time"]
["P","1010","Chargeback"]
["A","101000","claim on cash"]
["A","101001","General Cash"]
["A","101005","Cash in Transit to State Treas"]
["A","101006","Cash in Agcy -Banks/S&L"]
["A","101006","Cash in Agcy -Banks/S&L"]
["A","101007","Cash in Agcy.  U.S. Treas"]
["A","101008","CASH-B OF A NVST TRF"]
["A","101009","Cash on Hand"]
["A","101010","CASH-REMITTANCE IN TRANSIT"]
["J","10109","NSF - Suny Subcontract"]
["P","1011","SUMMER BRIDGE"]
["A","101100","Cash-Short Term Investments"]
["J","10113","GWS Behav/Host Plant Phenology"]
["J","10114","Career Beginnings 03/04"]
["J","10115","CAL SWEC IVE 02/03"]
["J","10129","Professional Nurse Training"]
["P","1013","Faculty Development Leaves"]
["J","10130","Computer Lab-DOD"]
["J","10132","Increase Nurses Now"]
["P","1014","Intramurals"]
["J","10146","CSEMS-NSF"]
["P","1015","Distance Learning"]
["J","10151","Project BECA"]
["P","1016","BATS"]
["J","10166","Cal SWEC IV-E 2001/02"]
["P","1017","IRA"]
["J","10172","Bur of Recl-Livestock Grazing"]
["P","1018","Orientation"]
["J","10185","TNT Implementation"]
["J","10186","USDA-Kern Water Bank"]
["P","1019","Course Material Fees"]
["A","101901","PAYROLL CASH"]
["A","101904","Cash - Coin Machines"]
["J","10199","NIH - Pre-MARC"]
["P","1020","Field Trips"]
["A","102001","Deposits in SMIF"]
["A","102002","Repurchase Agreements"]
["P","1021","Lab Fees"]
["P","1022","FACT"]
["J","10224","Title V"]
["J","10226","CSU Math Project NCLB"]
["J","10228","Valley Fever-CDC"]
["P","1023","America Reads"]
["J","10232","Head Start"]
["J","10237","SBA"]
["P","1024","Test Materials Fee"]
["J","10243","Bilingual Title VII"]
["J","10244","Bilingual Plus"]
["P","1025","Evaluation Fee"]
["J","10251","ONR-Excel Program"]
["J","10255","Title V-BC"]
["P","1026","EO753-Admin. Ovhd"]
["J","10265","Upward Bound"]
["P","1027","AMERICA COUNTS"]
["P","1028","YEAR ROUND OPERATION"]
["J","10288","NSF-San Andreas Fault"]
["P","1029","MISCELLANEOUS FEES"]
["J","10290","Glassy Winged Sharpshooter"]
["J","10299","Lokern Grazing-CDF"]
["P","1030","CLASS SCHEDULE FEE"]
["J","10300","Gear Up Scholarship Fund"]
["A","103001","A/R-Abatements"]
["A","103002","A/R-Reimbs"]
["A","103003","A/R-Rev"]
["A","103004","A/R-Operating Rev"]
["A","103005","A/R-Dishonored Checks"]
["A","103006","A/R-Cash Shortages"]
["A","103007","A/R OTHER"]
["A","103008","Accrued Interest Receivable"]
["A","103009","A/R-Loans"]
["A","103010","A/R-Audit Exceptions"]
["A","103014","Contingent Receivables"]
["A","103015","A/R Pledges"]
["J","10302","ETR - In School"]
["J","10303","ETR - Out of School"]
["J","10304","Reaching for the Stars"]
["P","1031","CATALOGUE REVENUE"]
["P","1032","THESIS BINDING"]
["P","1033","MISC APPLICATION FEE"]
["P","1034","WASC"]
["P","1035","DIVISION I"]
["P","1035","DIVISION I"]
["P","1036","CSU System-Wide Survey"]
["P","1037","Winter Commencement"]
["A","103715","Pledges Receivable-Noncurrent"]
["P","1038","Spring Commencement"]
["A","103801","ABATEMENT-Accr Fdn"]
["A","103802","AR ABATEMNT-ACCRUALS"]
["A","103803","A/R-PAYROLL"]
["A","103804","Banner Payroll AR"]
["A","103805","BAN A/R ABATE"]
["A","103806","STATE GF RECEIVABLE"]
["A","103807","CHGBK DUE FROM FDN"]
["A","103808","AR-REIMB ACCRUALS"]
["A","103809","PERKINS/NURSING PAYMENT A/R"]
["A","103810","A/R REIMBURSE"]
["A","103811","Ban Photo ID-EU"]
["A","103812","A/R-FOUNDATION"]
["A","103813","Ban A/R-FOR/NR TUITION"]
["A","103813","Ban A/R-FOR/NR TUITION"]
["A","103814","A/R-COLL.FEES"]
["A","103814","A/R-COLL.FEES"]
["A","103815","Ban A/R-MISC REVENUE"]
["A","103815","Ban A/R-MISC REVENUE"]
["A","103815","Ban A/R-MISC REVENUE"]
["A","103815","Ban A/R-MISC REVENUE"]
["A","103816","Ban A/R-SUF"]
["A","103816","Ban A/R-SUF"]
["A","103817","Ban A/R-OPER REV  INSTALL PMTS"]
["A","103818","Ban INSTL PLN RECEIV."]
["A","103818","Ban INSTL PLN RECEIV."]
["A","103819","Ban-AR- OPER REVENUE"]
["A","103820","A/R-FOUNDATION-ACCRUALS"]
["A","103821","AR DISH.CREDIT CRDS"]
["A","103822","Ban-A/R-OTHER"]
["A","103823","FA Disb-Summer"]
["A","103824","Upper Div./Grad FA Disb-Summer"]
["A","103825","AR-AMEX BTA-Clearing"]
["A","103826","AR-PROCARD-CB CLEARING"]
["A","103827","AR-VOYAGER-CB CLEARING"]
["A","103828","A/R-3PC REHAB"]
["A","103828","A/R-3PC REHAB"]
["A","103829","A/R-3PC OTHER"]
["A","103829","A/R-3PC OTHER"]
["A","103830","EU-AR 3PC-REHAB"]
["A","103831","Ban Instalmnt-Fin Aid Overawrd"]
["A","103832","AR-PETTY CASH CLEARING"]
["A","103833","Ban A/R-Journal Payment"]
["A","103834","CLAIMS AR CLEARING"]
["A","103835","AR-GE CAPITAL CB CLEARING"]
["A","103836","AR-OFFICEMAX CLEARING"]
["A","103900","A/R EL GENERAL"]
["A","103901","A/R EL Italian American Herita"]
["A","103902","A/R EL SUE FUJIKI"]
["A","103913","Fundriver A/R Clearing"]
["A","104001","Allow-A/R Abatements"]
["A","104002","Allow-A/R Reimbs"]
["A","104003","Allow-A/R Rev"]
["A","104004","Allow-A/R Operating Rev"]
["A","104005","Allow-A/R Dishonored Checks"]
["A","104006","Allow-A/R Cash Shortage"]
["A","104007","Allow-A/R Other"]
["A","104008","Allow-Accrued Int Receivable"]
["A","104009","Allow-A/R Loans"]
["A","104901","ALLOW UNCOLL-PLEDGES REC."]
["A","104902","ALLOWANCE FOR EMERGENCY LOAN"]
["A","105000","DUE FROM OTHER FUNDS"]
["A","105001","Due fm General Fund"]
["A","105005","Due fm HE Fees & Income"]
["A","105008","DUE FR CONT ED FD"]
["A","105009","Due fm DBMR Fund"]
["A","105010","Due from Dorm Construct Fund"]
["A","105012","Due fm Dorm Rev Fund"]
["A","105013","DUE FR FACIL REV FD"]
["A","105014","Due fm Parking Rev Fund"]
["A","105015","DUE FROM PUB CONSTR FUND"]
["A","105021","Due fm CSU Lottery Educ Fund"]
["A","105022","DUE FR FED TRUST FD"]
["A","105023","Due fm Spec Deposit Fund"]
["A","105025","Due fm Trust Fund"]
["A","105026","Due fm Office Revolving Fund"]
["A","105027","Due fm Other Appr"]
["A","105028","Due fm CSU Campuses"]
["A","105029","Due fm CSU Headquarters"]
["A","105030","Due fm Surplus Money Inv Fund"]
["A","105031","Due fm State Lottery Educ Fund"]
["A","105032","Due fm Federal Government"]
["A","105033","Due fm Other Gov'tal Entities"]
["A","105034","DUE FR 96 HIGH EDUC"]
["A","105035","Due fm 98 HE Cap Out"]
["A","105036","DUE FROM 2002 HECOBF"]
["A","105037","DUE FROM 2004 HECOBF"]
["A","105038","DUE FR 2006 HGHR ED CAP BOND"]
["A","105802","Due fm Fed-State Tchr Canc"]
["A","106001","Prov Def Rec.-A/R Abate"]
["A","106002","Prov Def Rec.-A/R Reimb"]
["A","106003","Prov Def Rec.-A/R Rev"]
["A","106004","Prov Def Rec.-A/R Oper Rev"]
["A","106005","Prov Def Rec.-A/R Dishon Ck"]
["A","106006","Prov Def Rec.-A/R Cash Short"]
["A","106007","Prov Def Rec.-A/R Other"]
["A","106008","Prov Def Rec.-Accr Int Rec"]
["A","106009","Prov Def Rec.-A/R Loans"]
["A","106014","Prov Def Rec.-Due fm OthFunds"]
["A","107001","Travel Advances"]
["A","107002","Salary Advances"]
["A","107003","Expenses Advances"]
["A","107004","Prepay Svcs Rev Fund-Print"]
["A","107005","Prepay Serv Rev Fund-Services"]
["A","107006","Prepay to Other Funds/Approp"]
["A","107007","Prepay to Other Gov'tal Entiti"]
["A","107008","Prepay-Oth Non-Gov't Entities"]
["A","107090","Other Prepaid Expenses"]
["A","107801","Exp.Adv-Tch Recr & Retn Schol."]
["A","107802","Exp Adv-Pres.Matching Schol."]
["A","108090","CSU Invest. Pool-Short Term"]
["A","108801","CSU Invest. Pool-Total Return"]
["A","108901","Corestates"]
["A","108902","CRM LAF"]
["A","108903","Certificates of Deposit"]
["A","108904","LAIF"]
["A","108905","Common Fund"]
["A","108906","Stock"]
["A","108907","CRM"]
["A","108908","Common Fund-Realty"]
["A","108950","Fundriver Due to/from Clearing"]
["A","109001","Student Loans Receivable"]
["A","109002","Const Loans"]
["A","109004","Loans Receivable-Other"]
["A","109005","Advances to Other Funds"]
["A","109006","Interfund Const Loans Rec"]
["A","109801","STU LNS REC-COLLECT"]
["A","109802","Student Loans--Other"]
["A","109901","Note Receivable"]
["P","11","Reimbursed Activities"]
["P","1100","Reimbursed Activities"]
["A","110001","Land"]
["A","110002","Buildings and Bldg Improve"]
["A","110003","Acc Depr-Bldgs (Credit Balance"]
["A","110004","Improve Other than Bldgs"]
["A","110005","Acc Dep-Imp Oth than Bldg (Cr)"]
["A","110006","Equip"]
["A","110007","Acc Depr-Equip (CR)"]
["A","110008","Const Work-in-Progress"]
["A","110009","FIXED ASSETS-INFRAST"]
["A","110010","ACCUM DEP-INFRASTRUCTURE"]
["A","110011","LEASEHOLD IMPROVEMENT"]
["A","110012","Accumulated Depr-Leasehold"]
["A","110901","DONATED FIXED ASSETS"]
["A","110902","Accum Deprn - Gifts"]
["A","110903","Foundation Equipment"]
["A","110904","Accum Deprn - Fdn Equipment"]
["A","110905","Grant Equipment"]
["A","110906","Accum Deprn-Grant Equipment"]
["A","110907","MISC NON DEPRECIABLE ASSETS"]
["A","112001","Due fm Federal Government"]
["A","113003","Bonds Auth - Unissued"]
["A","113004","Notes Auth - Unissued"]
["A","113005","Prov for Unis Auth Sec (CR)"]
["P","12","Depreciation"]
["P","1200","Depreciation"]
["P","13","Intra CSU Transfers"]
["P","1300","Transfers"]
["P","1301","Intra Campus Transfers"]
["P","1302","Inter Agency Transfers"]
["P","1303","Transfers Outside CSU"]
["P","1304","RMP Expenditure Transfer betwe"]
["A","130408","Due fr CSU 408 - TF Pell Grant"]
["A","130409","Due fr CSU 409 - TF College WS"]
["A","130410","Due fr CSU 410 - TF Wm Ford D"]
["A","130411","Due fr CSU 411 - TF ACG/SMART"]
["A","130421","Due fr CSU 421 - TF SEOG"]
["A","130422","Due fr CSU 422 - TF SUG"]
["A","130424","Due fr CSU 424 - TF Cal Grant"]
["A","130431","Due fr CSU 431 - TF Unres Scho"]
["A","130432","Due fr CSU 432 - TF Restr Scho"]
["P","1305","RMP SWAT"]
["A","131000","Due fr CSU in 948 Interagency"]
["P","14","Interest on Capital Related De"]
["P","1400","Interest on Capital Related De"]
["P","15","Other Nonoperating Revenues/Ex"]
["P","1500","Other Nonoperating Revenues/Ex"]
["C","181","CERF-Extended Education"]
["C","183","CERF-Construction"]
["C","184","CERF-Maintenance and Equipment"]
["A","190001","Intangible Assets"]
["A","190002","Deferred Charges"]
["A","190003","Sec & Other Prop Held in Trust"]
["A","190004","Dep in Condemn Proceedings"]
["A","190005","Inventory of Surveyed Equip"]
["A","190011","Amts to be Prov for Gen Ob LTD"]
["A","190014","ACCUM DEP-INTANGIBLE"]
["A","190020","LIBRARY BOOKS/MATRLS"]
["A","190021","ACCUM DEP-LIB BOOKS"]
["A","190031","Accum Deprn - Misc"]
["A","190090","Other Assets"]
["A","190901","African Antelope"]
["A","190902","Fossil Specimens"]
["A","190903","MISC FIXED ASSETS"]
["A","190904","ROCK COLLECTION"]
["A","190905","SCULPTURES"]
["P","20","Auxiliary Enterprise Expenses"]
["C","200","Affordable Student Housing-Rev"]
["P","2000","Auxiliary Enterprise Expenses"]
["P","2001","Auxiliary Enterprise"]
["P","2002","Auxiliary Enterprise-Faculty/S"]
["P","2003","Intercollegiate Athletics"]
["P","2004","Mandatory Transfers/Aux Enterp"]
["P","2005","Non Mandatory Transfers/Aux En"]
["P","2006","Auxiliary Enterprises-Other"]
["P","2007","Other Self-Supporting Enterpri"]
["P","2008","Auxiliary Enterprises-Deprecia"]
["C","201","DBMERF-Housing"]
["A","201001","Accts Payable"]
["A","201002","Claims Filed"]
["A","201003","Claims-in-Process"]
["A","201004","Compensation Benefits Pay"]
["A","201005","Notes Payable"]
["A","201006","Bonds Payable"]
["A","201007","PIA Clearing"]
["A","201007","AP Reserve for Encumbrances"]
["A","201008","Encumbrance Offset"]
["J","20105","DPR - Florisitc Survey"]
["J","20116","21st CCLC - #1"]
["J","20126","US Dept of Energy-Elk Hills"]
["J","20133","School To Career"]
["J","20134","CPDI-ELD"]
["J","20139","SAA"]
["J","20143","Valley Fever - CDHS"]
["J","20148","NASA Summer Institute"]
["J","20154","CSU - Migrant Summer Prog."]
["J","20160","EEDRP"]
["J","20176","MESA/MSP"]
["A","201801","Use Tax Payable"]
["A","201801","Use Tax Payable"]
["A","201802","Accrued PO Oblig (CSUGL015)"]
["A","201803","Manual AP Accruals"]
["A","201804","Sales Tax Payable Print Shop"]
["A","201804","Sales Tax Payable Print Shop"]
["A","201808","Payroll Accruals"]
["A","201808","Payroll Accruals"]
["A","201809","ENRON ACCRUAL"]
["A","201810","ESCHEAT PAYABLE"]
["A","201899","AP-Reserve for Encumb (001)"]
["A","201901","Misc. Payable"]
["A","201902","FICA Payable"]
["A","201903","Other Benefits Payable"]
["A","201904","Health Insurance Payable"]
["A","201905","PARKING PAYABLE"]
["A","201906","Payroll Taxes Payable"]
["A","201907","PERS Payable"]
["A","201908","SDI Payable"]
["A","201909","State Comp Payable"]
["A","201910","SUI Payable"]
["A","201911","SWT Payable"]
["A","201912","TSA Payable"]
["A","201913","Fundrive A/P Clearing"]
["J","20194","SAA"]
["C","202","DBMERF-Parking"]
["A","202000","Due to Other Funds"]
["A","202001","Due to General Fund"]
["A","202005","Due to HE Fees & Income"]
["A","202008","DUE TO CONT EDUC FD"]
["A","202009","Due to DBMERF"]
["A","202010","Due to Dormitory Construction"]
["A","202012","Due to Dorm Rev Fund"]
["A","202013","Due to Facilities Rev Fund"]
["A","202014","Due to Parking Rev Fund"]
["A","202016","DUE TO 92 HIGH EDUC"]
["A","202018","Due to  HE Cap Out"]
["A","202021","Due to CSU Lottery Educ Fnd"]
["A","202023","Due to Spec Deposit Fund"]
["A","202025","Due to Trust Fund"]
["A","202026","Due to Office Revolving Fund"]
["A","202027","Due to Othr Approp, Accts, Sb-"]
["A","202028","Due to CSU Campuses"]
["A","202029","Due to CSU Headquarters"]
["A","202032","DUE TO 98 HIGH EDUC"]
["A","202033","DUE TO 2002 HIGHER ED BND FND"]
["A","202034","DUE_TO_2004_HECOBF"]
["A","202035","DUE TO 2006 HGHR ED CAP BOND"]
["J","20231","Cal Trans Hwy 101  PB"]
["J","20242","Math Professional Dev. Inst"]
["J","20248","MESA/MEP 01/02"]
["J","20257","Score For College-98 Wasco"]
["J","20258","Arvin Score For College"]
["J","20261","Cal Trans Big Creek"]
["J","20273","UC Riverside Chemical Plume"]
["J","20275","Cal Reading Institute"]
["A","202801","Due to GF-Student Payroll (WS)"]
["A","202802","Due to GF-Admin. Allow (Fed)"]
["J","20292","CWSR - 99/00"]
["J","20293","DPR Fishbone Analysis"]
["J","20294","FREEZE (CDF/Lokern)"]
["J","20295","Inst. Workforce"]
["J","20296","CA DOT-Driver Satisfaction Sur"]
["J","20298","Long Term Care Innovation"]
["C","203","DBMERF-Auxiliary Facilities"]
["A","203001","Federal Income Tax Withheld"]
["A","203002","Due to Federal Government"]
["A","203004","State Income Tax Withheld"]
["A","203005","Due to Other Governmental Enti"]
["A","203901","Due to Calif Dept of Ed"]
["C","204","DBMERF-Campus Unions"]
["A","204001","Accrued Interest Payable"]
["C","205","DBMERF-Headquarters Building A"]
["A","205000","DEFERRED REVENUE"]
["A","205001","Rev Collected in Advance"]
["A","205002","Reimb Collected in Advance"]
["A","205090","Operating Rev Collected in Adv"]
["A","205801","SUM SUF-REV COLL ADV"]
["A","205802","ID FEE-INC ADVANCE"]
["A","205803","SUMMER NON/RES TUIT."]
["A","205805","OPER REV ADV-OTHR"]
["A","205806","SUMMER IRA-FINE ARTS"]
["A","205807","INC ADV-502803"]
["A","205808","INC ADV- 502805"]
["A","205809","INC ADV  -502817"]
["A","205810","INC ADVANCE-502001"]
["A","205811","INC ADVANCE - 502804"]
["A","205812","INC ADVANCE - 502808"]
["A","205813","INC ADVANCE - 502002"]
["A","205814","INC ADVANCE - 502807"]
["A","205815","INC ADVANCE-502811"]
["A","205816","INC ADVANCE - 502813"]
["A","205817","INC ADVANCE - 502814"]
["A","205818","INC ADVANCE - 502815"]
["A","205819","INC ADV-ON LINE-502802"]
["A","205820","INC ADV-OPEN U-502812"]
["C","206","DBMERF-Continuing Education Re"]
["A","206001","Deposits"]
["A","206002","Other Deposits"]
["A","206700","Depository Account s- noncurr"]
["A","206800","Contra Depository Account"]
["A","206801","HSG DEPOSITS-ISEP"]
["A","206802","RNR-DELETED CARDS"]
["A","206900","PY Depository Account Balance"]
["A","207001","LOANS PAYABLE-PMIB"]
["A","208901","Vacation Payable"]
["A","208902","POST RETIREMENT BENEFITS OBLIG"]
["C","221","DCF-Housing"]
["C","222","DCF-Parking"]
["C","223","DCF-Auxiliary Facilities"]
["C","224","DCF-Campus Unions"]
["C","225","DCF-Outside Sources"]
["C","226","DCF-Headquarters Building Auth"]
["C","227","DCF-Bond Anticipation Note (BA"]
["C","228","DCF-Auxiliary Organizations"]
["C","229","DCF-Continuing Education Reven"]
["A","230407","Due to CSU 407 - TF Nursing Ln"]
["A","230408","Due to CSU 408 - TF Pell Grant"]
["A","230409","Due to CSU 409 - TF CWS"]
["A","230411","Due to CSU 411 - TF ACG/SMART"]
["A","230421","Due to CSU 421 - TF SEOG"]
["A","230422","Due to CSU 422 - TF SUG"]
["A","230431","Due to CSU 431 - TF Unres Scho"]
["A","230432","Due to CSU  432 - TF Restr Sch"]
["A","230496","Due to CSU 496 - TF Misc Trust"]
["A","231000","Due to CSU Fund 948 Interageny"]
["A","231547","Due to CSU 547 - Risk Authorit"]
["C","241","DIRF-Housing"]
["C","242","DIRF-Parking"]
["C","243","DIRF-Auxiliary Facilities"]
["C","244","DIRF-Campus Unions"]
["C","245","DIRF-Headquarters Building Aut"]
["C","246","DIRF - Auxiliary Organizations"]
["C","247","DIRF-Systemwide Debt Reserve"]
["A","250001","Cash Overages"]
["A","250002","Uncleared Collections"]
["A","250003","Accrued Leave Time"]
["A","250004","Other Current Liabilities"]
["A","250005","Advances fm Other Funds"]
["A","250006","Interfund Const Loans Payable"]
["A","250009","Escheat Liability"]
["A","250025","UNCLEARED-3PC OTHER"]
["A","250801","UPPER/GRAD DISB CLEARING"]
["A","250802","FIN AID AUTO REFUND"]
["A","250803","INSTALLMNT CLEARING"]
["A","250804","WEB CRED.CRD PMTS"]
["A","250804","WEB CRED.CRD PMTS"]
["A","250805","GENERAL PAYMENT"]
["A","250806","HAND REFUND CKS"]
["A","250807","COLL AGCY CHGS CLEARING"]
["A","250808","SUSPENSE-CLEARING"]
["A","250809","Tax Offset Pmt Clrg"]
["A","250810","WXAP Pmts clearing"]
["A","250811","SCHOLARSHIP CLEARING"]
["A","250812","ATHLETIC SCH CLEARING"]
["A","250813","ENDOWMENT CLEARING"]
["A","250814","OVERPAYMENT CLEARING"]
["A","250815","TICKET SALES CLRG"]
["A","250816","DISHONORED CHECK BUYBACK"]
["A","250817","CAL GRANT A FEES CLEARING"]
["A","250818","CAL A TEACHER FEES CLEARING"]
["A","250819","CAL GRANT B FEES CLEARING"]
["A","250820","CAL GRANT B STIPEND CLEARING"]
["A","250821","MISC. BOOK CHECK CLEARING"]
["A","250822","BOOKSTORE VOUCHER"]
["A","250823","EFT REFUNDING"]
["A","250824","UNCLEARED-3PC REHAB"]
["A","250825","UNCLEARED-3PC OTHER"]
["A","250826","WIRE PAYMENT CLRG"]
["A","250827","SMART PAY REFUND CLEARING"]
["A","250828","FDN EMERG LOAN CLEARING ACCT"]
["A","250829","FDN NURSING EMER LOAN CLEARING"]
["A","250830","CLAIMS LIABILITY"]
["A","250901","Development Holding"]
["A","260001","Installment Contracts Payable"]
["A","260002","Lease/Purchase Contracts"]
["C","261","DRF-Housing"]
["A","261001","Notes Payable Premium"]
["A","261002","Notes Payable Discount"]
["A","261003","NOTE PAY-NONCUR PORT"]
["C","262","DRF-Parking"]
["A","262001","Bonds Payable Premium"]
["A","262002","Bonds Payable Discount"]
["C","263","DRF-Auxiliary Facilities"]
["A","263090","Other Long-Term Liabilities"]
["C","264","DRF-Headquarters Building Auth"]
["C","265","DRF-Campus Union Net Revenue A"]
["C","266","DRF-Fresno Union Bookstore"]
["C","267","DRF-Continuing Education Reven"]
["C","268","DRF-Auxiliary Organizations"]
["C","281","FRF-Health Services Fee"]
["C","282","FRF-Health Facilities Fee"]
["C","283","FRF-Construction"]
["C","284","FRF-Maintenance and Equipment"]
["P","30","Independent Operations"]
["P","3000","Independent Operations"]
["P","3001","Independent Operations Institu"]
["P","3002","Independent Operations/FFRDCs"]
["P","3003","Mandatory Transfers/IO"]
["P","3004","Non Mandatory Transfers/IO"]
["C","301","PRF-Fines and Forfeitures"]
["J","30107","AAPG (GTTC)"]
["J","30109","NREL"]
["A","301090","Other Contributions"]
["J","30111","Pilgrims Pride"]
["J","30145","Valley Fever - Community"]
["J","30188","MINORITY NURSING"]
["C","302","PRF-Parking Fees"]
["A","302001","Inv GFA-General Fund"]
["A","302002","Inv GFA-Cap Out"]
["A","302008","Inv GFA-Cont Educ Rev Fund"]
["A","302009","Inv GFA-DBMERF"]
["A","302010","Inv GFA-Dorm Construction Fund"]
["A","302012","Inv GFA-Dorm Rev Fund"]
["A","302013","Inv GFA-Facilities Rev Fund"]
["A","302014","Inv GFA-Parking Rev Fund"]
["A","302015","Inv GFA-Public Bldg Const Fund"]
["A","302016","Inv GFA-92 HE Cap Out Bond Fun"]
["A","302018","Inv GFA-HE Cap Out Bond Fund"]
["A","302019","Inv GFA-88 HE Cap Out Bond Fun"]
["A","302020","Inv GFA-90 HE Cap Out Bond Fun"]
["A","302021","Inv GFA-CSU Lottery Educ Fund"]
["A","302025","Inv GFA-Trust Fund"]
["A","302027","Inv GFA-98 HECOBF"]
["A","302029","INV GFA -2002 HECOBF"]
["A","302030","INV GFA - 2004 HECOBF"]
["A","302031","Invest In GFA - 2006 HECOBF"]
["A","302050","Inv in GFA-Other"]
["J","30217","I-Teach"]
["J","30220","Project 2000"]
["J","30236","Citigroup Foundation"]
["J","30250","BPA"]
["J","30252","Children in the Marketplace"]
["J","30254","California Wellness Fdn."]
["J","30267","Calif End-Diabetes Demo Proj"]
["J","30272","USF-Laser Research"]
["J","30274","Project Laser"]
["J","30284","PWC  Endowment"]
["J","30285","CLL-Calif. Wellness Fdn."]
["J","30291","Bernard Osher Foundation"]
["C","303","PRF-Construction"]
["A","303001","Reserve for Prepaid Items"]
["A","303002","Reserve for Advances"]
["A","303004","Resv for Noncur Loans Recvable"]
["J","30305","AT Families Perspectives - Pro"]
["A","303090","Other Reserves"]
["C","304","PRF-Maintenance and Equipment"]
["A","304001","Reserve for Bond Retirements"]
["A","304002","Reserve for System Improvement"]
["A","304017","Reserve for Catastrophic Event"]
["A","304018","Reserve for Encumbrances"]
["A","304019","Reserve GF Approp Ref to State"]
["A","304020","Reserve for ARRA Funding"]
["A","304099","Reserve Offset"]
["A","304800","Reserve for Dept Obligations"]
["A","304801","Reserve for Campus Obligations"]
["A","304802","Reserve for Operations"]
["A","305002","Fund Balance-Cont Approp"]
["A","305020","Fund Balance-Unappropriated"]
["A","305021","Retained Earnings"]
["A","305022","Fund Balance-Clearing Acct"]
["A","305800","FBCL-HR Pay Offset"]
["A","305801","FB-CA FED CONTRIBUTN"]
["A","305802","FBCL-Monthly PFA"]
["A","305803","FBCL-Claims Processing"]
["A","305901","Fund Balance"]
["A","305903","FB-Pledges Income"]
["A","305904","FB-Reserve Unallocated"]
["A","305905","FB-Reserve Disalowable Expense"]
["A","305906","FB-Reserve Deficit Funding"]
["A","305907","FB-Accum Market Appreciation"]
["C","310","Public Building Construction F"]
["C","315","1992 Higher Education Capital"]
["C","316","1994 Higher Education Capital"]
["C","317","1996 Higher Education Capital"]
["C","318","1998 Higher Education Capital"]
["C","319","2002 Higher Education Capital"]
["C","320","2004 Higher Education Capital"]
["C","321","2006 University Capital Outlay"]
["C","331","CSU Construction Program Fund,"]
["C","335","Higher Education Capital Outla"]
["C","338","1988 Higher Education Capital"]
["C","339","1990 Higher Education Capital"]
["C","341","Cal State University Lottery E"]
["C","351","Trust Fund, Federal"]
["C","371","Special Deposit Fund"]
["C","391","SPF-Special Projects"]
["C","393","SPF-Dependent Care"]
["C","401","TF-Supplemental Educ Opportuni"]
["A","401001","Approp <CR>"]
["A","401002","Approp-Allocated <DR>"]
["A","401003","Approp-Unallocated <DR>"]
["J","40104","KCCFC - Staff Development Trng"]
["J","40107","San Joaquin Health Consortium"]
["J","40112","PG&E-CAREER BEGINNINGS"]
["J","40116","Higher Ground"]
["J","40118","KVH- Ground & Wastewater"]
["J","40125","BHC - 03/04"]
["J","40127","Kellogg"]
["J","40147","Valley Fever-Kern County"]
["J","40150","Cancer Federation"]
["J","40152","BCSD - SERRP Reading First"]
["J","40165","American Heart Association"]
["J","40174","Community Learning"]
["J","40181","KC Mental Health"]
["J","40211","KMC"]
["J","40213","Higher Ground - Weill"]
["J","40246","KCSOS-Career Beginnings"]
["J","40286","Ozone-Research Corp."]
["J","40288","SBC Gear Up"]
["J","40295","eCollege Connect"]
["J","40296","The Mellon Project"]
["C","403","TF-Perkins Loans"]
["A","403001","Encumbrances"]
["A","403002","RES FOR ENCUMBRANCES"]
["A","404001","Allocation Orders Pending"]
["A","404002","Reserve for Alloc Order Pendin"]
["A","404003","Adj SCO Acct - Expenditure"]
["A","404004","Adj SCO Acct - Rev"]
["A","404005","Reserve Adj SCO Acct"]
["A","404006","SCO PY Accrual Reserve"]
["A","404007","Reserver SCO PY Accrual Rev"]
["A","404008","Allocation for PY Accrual"]
["A","404009","Reserve Alloc PY Accrual"]
["C","406","TF-Nursing Student Loans-Gradu"]
["C","407","TF-Nursing Student Loans-Under"]
["C","408","TF-Pell Grant Program"]
["C","408"]
["C","409","TF-College Work Study Program"]
["C","410","TF-William Ford Direct Loan Pr"]
["C","411","TF-ACG/SMART Grants"]
["C","412","TF-Federal Teach Education Ass"]
["C","421","TF-State Educational Opportuni"]
["C","422","TF-State University Grant Prog"]
["C","423","TF-CSU Forgivable/Doctoral Loa"]
["C","424","TF-California Grant Programs"]
["C","431","TF-Campus Scholarships and Gra"]
["C","432","TF-Campus Scholarships and Gra"]
["C","433","TF-Campus Student Loans Trust"]
["C","434","TF-Campus Student Long Term Lo"]
["C","435","TF-Miscellaneous Financial Aid"]
["C","436","TF- Agency Fund - Miscellaneou"]
["C","441","TF CERF Extended Education"]
["C","442","TF CERF-Construction"]
["C","443","TF CERF-Maintenance and Equipm"]
["C","451","TF Facility Revenue Fund-Healt"]
["C","452","TF Facility Revenue Fund-Healt"]
["C","453","TF Facility Revenue Fund-Const"]
["C","454","TF Facility Revenue Fund-Maint"]
["C","461","TF-Associated Student Body Tru"]
["C","462","TF-Campus Union Operating Reve"]
["C","463","TF-Instructionally Related Act"]
["C","464","TF-International Programs Trus"]
["C","465","TF-Contracts and Grant Trust"]
["C","466","TF-Endowment Trust"]
["C","467","TF-Student Fees Trust  (Obsole"]
["C","471","TF Parking Revenue Fund-Fines"]
["C","472","TF Parking Revenue Fund-Parkin"]
["C","473","TF Parking Revenue Fund-Constr"]
["C","474","TF Parking Revenue Fund-Mainte"]
["C","481","TF Lottery Education Fund"]
["C","485","TF CSU Operating Fund"]
["C","491","TF Special Projects Fund-Speci"]
["C","492","TF Special Projects Fund-Depen"]
["C","496","TF Miscellaneous Trust"]
["C","497","TF State Pro Rata Charge Distr"]
["C","499","TF Revolving Fund"]
["P","50","Receipts"]
["C","500","General Long Term Debt"]
["P","5000","Revenues"]
["P","5001","Revenue Transfers In - Legal B"]
["C","501","CALSTARS General Fixed Asset A"]
["A","501001","State University Fee-498"]
["A","501002","Non-Resident Tuition-498"]
["A","501004","Application Fee-498"]
["A","501005","Student Health Service Fee"]
["A","501006","Contract & Grants Overhead"]
["A","501101","ASB Fees"]
["A","501102","Instructionally Related Activi"]
["A","501104","Catalog Fee"]
["A","501105","Transcripts"]
["A","501106","Library Fines"]
["A","501107","Late Registration Fee"]
["A","501108","Returned Check Fee"]
["A","501109","Late Fee"]
["A","501110","Misc. Fees-Other"]
["A","501111","Other Mandatory Fees"]
["J","50139","NYSP - 04"]
["J","50143","Valley Fever - CA Healthcare"]
["J","50144","Valley Fever - FFR"]
["A","501801","State University Fee-Fall"]
["A","501802","State University Fee-Winter"]
["A","501803","State University Fee-Spring"]
["A","501804","State University Fee-Summer"]
["A","501805","Non-Resident Tuition-Fall"]
["A","501806","Non-Resident Tuition-Winter"]
["A","501807","Non-Resident Tuition-Spring"]
["A","501808","Non-Resident Tuition-Summer"]
["A","501809","Stu Health Service Fee-Fall"]
["A","501810","Stu Health Service Fee-Winter"]
["A","501811","Stu Health Service Fee-Spring"]
["A","501812","Stu Health Service Fee-Summer"]
["A","501813","Assoc Student Body Fee-Fall"]
["A","501814","Assoc Student Body Fee-Winter"]
["A","501815","Assoc Student Body Fee-Spring"]
["A","501816","Assoc Student Body Fee-Summer"]
["A","501817","Instr Related Activity Fee-Fal"]
["A","501818","Instr Related Activity Fee-Win"]
["A","501819","Instr Related Activity Fee-Spr"]
["A","501820","Instr Related Activity Fees"]
["A","501821","Svc Chg-N/R Tuition"]
["A","501822","Challenge Fee"]
["A","501823","Overs/Shorts"]
["A","501824","Photo ID Mand. Fees"]
["A","501825","Photo ID Replacement Fee"]
["A","501826","Photo ID Transfer to Budget"]
["A","501827","Class Schedules"]
["A","501828","Veterans Fees"]
["A","501829","Misc. Reg. Charges"]
["A","501830","NSME Eval Fee"]
["A","501831","GWAR-English"]
["A","501832","GWAR-Testing"]
["A","501833","Thesis Binding"]
["A","501834","Graduation Fee"]
["A","501835","Diploma Fee"]
["A","501836","NSE Application Fee"]
["A","501837","Transcript Eval Fee"]
["A","501838","Peak Trans. Eval Fee"]
["A","501839","Credential Service"]
["A","501840","Math 220 Waiver Exam"]
["A","501841","Chemistry Course material Fee"]
["A","501842","Biology Crs Fee"]
["A","501843","Writing Course Matl Fee"]
["A","501844","Math Mat'l Use Fee"]
["A","501845","Modern Lang. Matl Fee"]
["A","501846","PE Material Fee"]
["A","501847","Biology Field Trips"]
["A","501848","Geology Field Trips"]
["A","501849","Art Course Matl Fees"]
["A","501850","Fees Trnsfrd from BKCMP"]
["A","501850","FEES_TRNSFRD_FR_BKCMP"]
["A","501851","Catalog Fee"]
["A","501852","Transcripts"]
["A","501853","Library Fines"]
["A","501854","Late Registration Fee"]
["A","501855","Returned Check Fee"]
["A","501856","Late Fee"]
["A","501901","Fees"]
["A","501910","Tuition Fee Waiver"]
["A","501911","Fee Waiver - IRA"]
["A","501912","Fee Waiver - HSF"]
["A","501913","Fee Waiver - Non Res Tuition"]
["A","501914","Fee Waiver - Photo ID"]
["A","502001","Continuing Education-Regular S"]
["A","502002","Continuing Education-Extention"]
["A","502101","CE - Degree Program"]
["A","502102","CE - Certificate Programs"]
["A","502104","CE - Open University"]
["A","502105","CE - Special Session"]
["A","502202","CE - Contract Extension"]
["A","502301","CE - Regular Non-Credit"]
["A","502302","CE - Non Credit Contract"]
["A","502303","CE - CEU Credits"]
["J","50245","NAPRO"]
["J","50249","NYSP-02"]
["J","50264","NYSP-03"]
["A","502801","CE-Regular-Contract Summer"]
["A","502801","CE-Regular-Contract Summer"]
["A","502802","CE-Regular-External Degree"]
["A","502802","CE-Regular-External Degree"]
["A","502803","CE-Special Sess-Local"]
["A","502803","CE-Special Sess-Local"]
["A","502804","CE-SS Rural-AV"]
["A","502804","CE-SS Rural-AV"]
["A","502805","CE-Rural-Eastern Kern"]
["A","502805","CE-Rural-Eastern Kern"]
["A","502806","CE-Rural-No. Kern"]
["A","502806","CE-Rural-No. Kern"]
["A","502807","CE-Rural-So. Kern"]
["A","502807","CE-Rural-So. Kern"]
["A","502808","CE-Virtual University"]
["A","502808","CE-Virtual University"]
["A","502809","CE-ERM"]
["A","502809","CE-ERM"]
["A","502810","CE-Application Fee-ERM"]
["A","502810","CE-Application Fee-ERM"]
["A","502811","CE-Contract Extention"]
["A","502811","CE-Contract Extention"]
["A","502812","CE-Ext- Open University"]
["A","502812","CE-Ext- Open University"]
["A","502813","CE-Non-Credit Extention"]
["A","502813","CE-Non-Credit Extention"]
["A","502814","CE-Extention CEU"]
["A","502814","CE-Extention CEU"]
["A","502815","CE-Ext.- IELC Non Credit"]
["A","502815","CE-Ext.- IELC Non Credit"]
["A","502816","CE-Regional Non-Credit"]
["A","502816","CE-Regional Non-Credit"]
["A","502817","CE-Ext- Misc. Revenue"]
["A","502817","CE-Ext- Misc. Revenue"]
["A","502818","CE-App Fee-Regional Program"]
["A","502818","CE-App Fee-Regional Program"]
["A","502819","CE-Contract Training"]
["A","502819","CE-Contract Training"]
["A","502820","EU-PRIOR YEAR REVENUE ADJ"]
["A","502820","EU-PRIOR YEAR REVENUE ADJ"]
["A","502821","EU-NEW HORIZONS EXT.TUI"]
["A","502821","EU-NEW HORIZONS EXT.TUI"]
["A","502822","CE - Regular Summer Session"]
["A","502910","FEE WAIVER"]
["A","502910","FEE WAIVER"]
["A","503101","Supplemental Educ. Opportunity"]
["A","503102","Perkins Contribution"]
["A","503103","Nursing Contribution"]
["A","503104","Pell Grant"]
["A","503105","College Work Study-Federal"]
["A","503106","W. Ford Direct Loan"]
["A","503107","Federal Contracts & Grants-Oth"]
["A","503108","Misc. Federal Funds"]
["A","503200","STATE CONTRACTS AND GRANTS FA"]
["A","503201","State Educ. Opportunity Grant"]
["A","503202","State University Grant"]
["A","503204","Cal Grant Program"]
["A","503290","State Contracts & Grants-Other"]
["A","503301","Local Contracts & Grants"]
["A","503401","Private Contributions"]
["A","503402","Nongvrnmntl Contracts & Grants"]
["A","503801","Transfer From CWS"]
["A","503802","Fed Rec-F&S Sh Tch Canc"]
["A","503803","Perkins Contribution-Match"]
["A","503804","PELL-ADMIN.OVHD"]
["A","503805","CWS-FED-CARRY FWD"]
["A","503901","Indirect - Federal Grant"]
["A","503902","CDE Contract"]
["A","503903","Child Nutrition Program"]
["A","503904","Indirect - Non - Federal Grant"]
["A","503905","Donations"]
["A","503906","Scholarships - In"]
["A","504001","Housing Rent"]
["A","504002","Housing Installment Charge"]
["A","504003","Parking Permits"]
["A","504004","Parking Coin Gates"]
["A","504005","Parking Meters"]
["A","504006","Parking Fines"]
["A","504007","Health Facilities Fee"]
["A","504008","Campus Union Fee"]
["A","504009","Facility/Space Rental (Income)"]
["A","504013","Concessions"]
["A","504090","Parking Misc. Oper Revenue"]
["A","504090","Sales/Services Aux Facilities"]
["A","504801","Housing Revenue-Other"]
["A","504802","Motorcycle Permits"]
["A","504803","Full Year Permits"]
["A","504804","Academic Year Permits"]
["A","504805","Activity Pass-Swimming"]
["A","504807","Prk Permit Replacement"]
["A","504808","Campus Union Fee-Fall"]
["A","504809","Campus Union Fee-Winter"]
["A","504810","Campus Union Fee-Spring"]
["A","504811","Campus Union Fee-Summer"]
["A","504811","Campus Union Fees"]
["A","504812","HFF-Fall"]
["A","504813","HFF-Winter"]
["A","504814","HFF-Spring"]
["A","504815","HFF-Summer"]
["A","504816","PFF-Monthly GET Bus Pass"]
["A","504817","PFF-Senior Mo. Bus Pass"]
["A","504820","Membership Fees"]
["A","504821","Guest Fees-Member Sponsored"]
["A","504822","Late/Lost Equipment Fees"]
["A","504823","Uncleared Locker Fees"]
["A","504824","IM Sports Entry Fees"]
["A","504825","Guest Fees-Student Sponsored"]
["A","504826","Lock Purchase"]
["A","504827","Student Summer Fees-Unenrolled"]
["A","504898","Fee Waiver - HFF"]
["A","504899","Campus Union Fee Waiver"]
["A","504901","General Revenue"]
["A","504902","Laundry Vending"]
["A","504903","Eldercollege"]
["A","504904","Special Projects"]
["A","504905","Camps"]
["A","504906","Gameroom"]
["A","504907","Novelties"]
["A","504908","Party in the Park"]
["A","504909","Program Sales"]
["A","504910","Shirt/Button Sales"]
["A","504911","Summer Camp"]
["A","504912","Vending"]
["A","504913","Winery Trip"]
["A","504914","Retirement Siminar"]
["A","504915","Club Programs"]
["A","504916","Programs"]
["A","504917","Commerative Wine Sales"]
["A","504918","MBNA"]
["A","504919","Other Participation Fees"]
["A","504920","AIAA Insurance"]
["A","504921","Memberships"]
["A","504922","Fundraisers"]
["A","504923","Contracted Space"]
["A","504924","Refrigerator Rental"]
["A","504925","Food/Drink Sales"]
["A","504926","General Sponsors"]
["A","504927","Season Tickets"]
["A","504928","Seat Option"]
["A","504929","Scholarships"]
["A","504930","Golf Tournament"]
["A","504931","Program Advertising"]
["A","504932","Gate Receipts"]
["A","504933","Homecoming"]
["A","504934","NCAA Basketball"]
["A","504935","NCAA Championships"]
["A","504936","Radio"]
["A","504937","Roadrunner Club"]
["A","504938","Tip Off Luncheon"]
["A","504939","Arena Suite Revenue"]
["A","504940","Sponsorships"]
["A","505109","Indep Ops Reimb-CSU"]
["A","505110","Indep Ops Reimb-State"]
["A","505110","Indep Ops Reimb-State"]
["A","505111","Intra-State Reimb-Others"]
["A","505112","Conc Enrol Reimbursements"]
["A","505114","NDSL Cancellation"]
["A","505201","Reimbursements-External"]
["A","505801","REIM FRM FDN"]
["A","505802","CA Workstudy-Admin. Allow"]
["A","505803","REIMB-ADMIN OVHD-EO753"]
["A","506001","Transfer In-General Fund"]
["A","506005","Transfers In-H.E. Fees & Incom"]
["A","506008","Transfer In-Cont Educ. Rev Fun"]
["A","506009","Transfer In-DBMER"]
["A","506012","Transfer In-Dorm Revenue Fund"]
["A","506014","Transfer In-Parking Rev Fund"]
["A","506018","Trf In-Higher Ed Cap Outlay Bo"]
["A","506021","Trf In-CSU Lottery"]
["A","506025","Transfer In-Trust Fund"]
["A","506026","TFRS IN-OTHER APPROP"]
["A","506030","Trf In-Child Care Fund"]
["A","506040","Trf In-Lotter Rev-CO"]
["A","506051","TRF IN-External Investments"]
["A","506100","RMP SWAT REVENUE"]
["A","506121","TRNSFR IN CSU LEF INTERAGENCY"]
["A","506125","TransfersIn CSU TF Interagency"]
["A","506126","TRANSFERS IN INTERAGENCY"]
["A","506151","TRF IN-Inv Earngs(Interagency)"]
["A","506801","Federal Allow- SEOG"]
["A","506801","Federal Allow- SEOG"]
["A","506801","Federal Allow- SEOG"]
["A","506801","Federal Allow- SEOG"]
["A","506802","Federal Allow- Perkins"]
["A","506802","Federal Allow- Perkins"]
["A","506802","Federal Allow- Perkins"]
["A","506802","Federal Allow- Perkins"]
["A","506803","Federal Allow.- PELL"]
["A","506803","Federal Allow.- PELL"]
["A","506803","Federal Allow.- PELL"]
["A","506803","Federal Allow.- PELL"]
["A","506804","Fed Allow.-College Work Study"]
["A","506804","Fed Allow.-College Work Study"]
["A","506804","Fed Allow.-College Work Study"]
["A","506804","Fed Allow.-College Work Study"]
["A","506805","Fed Col Work Study-Off Camp"]
["A","506805","Fed Col Work Study-Off Camp"]
["A","506806","Fed Col Work Study-On Camp"]
["A","506806","Fed Col Work Study-On Camp"]
["A","506807","CE-Conc Enroll"]
["A","506808","Trf In DRF-Work Capital"]
["A","506901","Transfers In"]
["A","507001","Interest from SMIF"]
["A","507002","Interest Student loans"]
["A","507801","Interest Cancelled"]
["A","508001","Income from External Investmen"]
["A","508002","Income from LAIF"]
["A","508003","Gain/Loss Sale of Securities"]
["A","508004","Realized Gain/Loss"]
["A","508090","Rev from Invest-Other"]
["A","508801","Allocated Income from Ext Inv"]
["C","521","Office Revolving Fund- Calstar"]
["C","531","TF Housing-Operations and Reve"]
["C","532","TF Housing-Maintenance and Rep"]
["C","533","TF Housing-Construction"]
["C","534","TF Campus Union-Operations and"]
["C","535","TF Campus Union-Maintenance an"]
["C","536","TF Campus Union-Construction"]
["C","537","TF Auxiliary Org.-Operations a"]
["C","538","TF Auxiliary Org.-Maintenance"]
["C","539","TF Auxiliary Org.-Construction"]
["C","541","TF Pooled Investment Fund"]
["C","542","TF Capital Project Management"]
["C","543","TF Campus Services - Internal"]
["C","544","TF Campus Services - Enterpris"]
["C","545","TF Channel Islands Site/Financ"]
["C","546","TF Stockton Site Authority"]
["C","547","TF CSU Risk Management"]
["A","570000","Tfrs In within same CSU Fund"]
["A","570401","Tfr In fr CSU 401-Suppl. OEG"]
["A","570403","Tfr In fr CSU 403-Perkins"]
["A","570406","Tfr In fr CSU 406-Nursing Grad"]
["A","570407","Tfr In fr CSU 407-Nursg Undrgd"]
["A","570408","Tfr In fr CSU 408-Pell Grant"]
["A","570409","Tfr In fr CSU 409-College WS"]
["A","570410","Tfr In fr CSU 410-W Ford Dirct"]
["A","570411","Tfr In fr CSU 411-ACG/SMART Gr"]
["A","570421","Tfr In fr CSU 421-St EOG"]
["A","570422","Tfr in fr CSU 422-St Univ Grnt"]
["A","570424","Tfr in fr CSU 424-Cal Grnt Prg"]
["A","570431","Tfr In fr CSU 431-Unr Scholar"]
["A","570432","Tfr In fr CSU 432-Rstr Scholar"]
["A","570436","Tfr In fr CSU 436-FA-Agency"]
["A","570441","Transfers In fr CSU 441-CERF"]
["A","570442","Tfr In fr CSU 442-CERF Constr"]
["A","570443","Tfr In fr CSU 443-Maint&Equip"]
["A","570451","Tfr In fr CSU 451-Health Svc F"]
["A","570452","Tfr In fr CSU 452-Health Fac F"]
["A","570454","Tfr In fr CSU 454-Fac Rev M&E"]
["A","570461","Tfr In fr CSU 461-Assoc Studnt"]
["A","570463","Tfr In fr CSU 463-IRA Trusts"]
["A","570465","Tfr In fr CSU 465-Grants Contr"]
["A","570467","Tfr In fr CSU 467-Student Fees"]
["A","570471","Tfr In fr CSU 471-Pkg Fine&For"]
["A","570472","Tfr In fr CSU 472-Parking Fees"]
["A","570473","Tfr In fr CSU 473-Prkg Constrc"]
["A","570481","Tfr In fr CSU 481-TF LotteryEd"]
["A","570485","Tfr In fr CSU 485-Operating Fd"]
["A","570496","Tfr In fr CSU 496-Misc Trust"]
["A","570499","Tfr In fr CSU 499-Revolving Fd"]
["A","570531","Tfr In fr CSU 531-Housing Oper"]
["A","570532","Tfr In fr CSU 532-Hsg Maint Rp"]
["A","570533","Tfr In fr CSU 533-Hsg Constrct"]
["A","570534","Tfr In fr CSU 534-Cmp Union Op"]
["A","570535","Tfr In fr CSU 535-Cmp Un Maint"]
["A","570541","Tfr In fr CSU 541-Pool Investm"]
["A","570542","Tfr In fr CSU 452-Cap Proj Mgt"]
["A","571000","Tfr in 948 Campus and CO"]
["A","571465","Tfr in fr CSU 465 Interagency"]
["A","580001","Rental of State Property"]
["A","580002","Misc Use of Property"]
["A","580003","Sales of Fixed Assets"]
["A","580004","Escheat of Unclmd Chcks, Wrnts"]
["A","580005","Project Revenue"]
["A","580007","Trust Receipts"]
["A","580008","Campus Collection Costs"]
["A","580009","Late Charges collected"]
["A","580012","Interfund Interest Revenue"]
["A","580013","Revenue-Others (Gov Funds)"]
["A","580015","Royalty Income"]
["A","580090","Revenue-Other"]
["A","580094","Cost Recovery Other CSU Funds"]
["A","580095","Cost Recovery Auxiliaries"]
["A","580096","Cost Recovery fr Othr State Fd"]
["A","580801","Coll Agcy Charges"]
["A","580802","Penalty Charges"]
["A","580803","Misc Revenue-Other"]
["A","580804","Subpoena's"]
["A","580805","Pub Rec-Copies"]
["A","580806","Jazz T-Shirt sales"]
["A","580807","BID-FILING FEES"]
["A","580808","Admin. Overhead-EO 753"]
["A","580808","EO1000 (MOVE TO 580095)"]
["A","580808","EO1000 (MOVE TO 580095)"]
["A","580809","FDN. SCHOLARSHIPS REV"]
["A","580810","ATH SCHOLARSHIP REV"]
["A","580811","JAZZ FESTIVAL TICKETS"]
["A","580812","PENALTY CHARGE WRITE OFF"]
["A","580813","LOST SUF FROM INSTALLMENT"]
["A","580891","TRUST FB FWD OFFSET-DR"]
["A","580892","TRUST -FUND BAL FORWARD"]
["A","580901","Admin. Charge - Athletics"]
["A","580902","Admin Charge - Children's Cent"]
["A","580903","Admin Charge - Food Service"]
["A","580904","Admin Charge - Endowments"]
["A","580905","Admin Charge - Agency"]
["A","580906","Admin Charge - Housing"]
["A","580907","Admin Charge - Pres. Assoc."]
["A","580908","Admin Charge - Building Fund"]
["A","580909","Admin Charge - Centers & Insti"]
["A","580910","Admin Charge - Dev/Pub Affairs"]
["A","580911","Admin Charge - Dorms"]
["A","580912","Admin Charge - Vending"]
["A","580913","Admin Charge - Loans"]
["A","580914","Admin Charge - Student Union"]
["A","580915","Acquisition"]
["A","580916","INVESTMENT FEE"]
["A","580950","Retirement Contributions"]
["A","580953","In-Kind Revenue"]
["A","590001","Prior Year Revenue Adjustment"]
["A","590002","Prior Year Surplus Adjustment"]
["A","601000","Salaries and Wages"]
["A","601030","President"]
["A","601100","Academic Salaries"]
["A","601103","Graduate Assistant"]
["A","601201","Management and Supervisory"]
["A","601300","Support Staff Salaries"]
["A","601301","Overtime"]
["A","601302","Temporary Help"]
["A","601303","Student Assistant"]
["A","601304","Teaching Associates"]
["A","601801","Music Studio Faculty"]
["A","601802","Academic Supplemental Salaries"]
["A","601803","Lecturers"]
["A","601804","Special Consultants"]
["A","601804","Special Consultants"]
["A","601805","Extended Univ. Faculty"]
["A","601806","Support Staff  Supplemental Sa"]
["A","601807","Summer Faculty"]
["A","601808","Hazard/Asbestos"]
["A","601809","Shift Differential"]
["A","601810","Jury Duty Abatements"]
["A","601910","Custodian"]
["A","601911","Accountant"]
["A","601912","Acct. Tech. I - Cashier"]
["A","601913","Acct. Tech. I - A/P"]
["A","601914","Cook"]
["A","601915","Director"]
["A","601916","Equipment Tech.-Mailroom"]
["A","601917","Coordinator"]
["A","601918","Manager"]
["A","601919","Payroll/Human Resources"]
["A","601920","Teachers"]
["A","601921","Tutors"]
["A","601922","Information Desk"]
["A","602001","Work Study-On Campus"]
["A","602002","Work Study-Off Campus"]
["A","603001","OASDI"]
["A","603003","Dental Insurance"]
["A","603004","Health and Welfare"]
["A","603005","Retirement"]
["A","603006","TEACHER RETIREMENT"]
["A","603007","Workers Compensation"]
["A","603008","Industrial Disability"]
["A","603009","Non-Industrial Disability"]
["A","603010","Unemployment Compensation"]
["A","603011","Life Insurance"]
["A","603012","Medicare"]
["A","603013","Vision Care"]
["A","603014","Long-Term Disability Insurance"]
["A","603015","Flex Cash"]
["A","603016","DEPENDENT CARE REIMBURSEMENT"]
["A","603025","Early Retirement Program"]
["A","603090","Benefits-Others"]
["A","603801","Exec-Auto Allowance"]
["A","603802","Non-CSU Benefit code"]
["A","603803","CSU-Interagency benefit code"]
["A","603804","PRESIDENTS HOUSING ALLOW"]
["A","603805","PRES. ENTERTAINMENT ALLOW"]
["A","603806","PRES. HOSPITALITY"]
["A","603806","PRES. HOSPITALITY"]
["A","603807","CLOTHING & SAFETY"]
["A","603808","UNIFORM ALLOWANCE"]
["A","603902","Fringe Benefits"]
["A","604001","Telephone Usage"]
["A","604002","Computer Networks"]
["A","604090","Other Communications"]
["A","605001","Utilities - Electricity"]
["A","605002","Utilities - Gas"]
["A","605003","Utilities - Oil"]
["A","605004","Utilities - Water"]
["A","605005","Utilities - Sewage"]
["A","605006","Haz Waste Removal"]
["A","605090","Utilities - Other"]
["A","605801","Non-Hazardous Waste"]
["A","605991","Utilities - Chargeback Credit"]
["A","606001","Travel-In State"]
["A","606002","Travel-Out of State"]
["A","606801","Reportable Meals"]
["A","606913","Season Travel"]
["A","606914","Post Season Travel"]
["A","606915","Student Conference Travel"]
["A","607001","Master Plan"]
["A","607002","Acquisition"]
["A","607003","ACQUISITION"]
["A","607010","Lease Purchase"]
["A","607011","Minor Capital Outlay"]
["A","607021","DESIGN OTHER"]
["A","607022","DESIGN ARCH.FEES"]
["A","607023","DESIGN ARCH.EXTRA SVC"]
["A","607024","DESIGN ARCH.EXTRA SVC-CONTR"]
["A","607025","DESIGN REIMBURSABLES"]
["A","607031","CONSTRUCTION CONTRACTS"]
["A","607032","CONSTRUCTION MGMT"]
["A","607033","CONSTRUCTION OTHER"]
["A","607034","CONSTR-ARCH FEES"]
["A","607035","CONSTR-ARCH-EXTRA SVC"]
["A","607036","C-ARCH REIMBURSEMENT"]
["A","607041","CONTINGENCY"]
["A","607042","CONSTRUCTION RESERVE"]
["A","607051","EQUIPMENT-GROUP II"]
["A","607051","EQUIPMENT-GROUP II"]
["A","607100","Engineering"]
["A","607101","Contract Management"]
["A","607102","Builder's Risk Insurance"]
["A","607801","DO-SEISMIC REVIEW BD."]
["A","607802","DO-FEASIBILITY STUDY"]
["A","607803","DO-CONSULTG ARCH.-MSTR PLN"]
["A","607804","DO-SPECIAL DESIGN SVC"]
["A","607805","DO-PLAN CK-DSA SVC"]
["A","607806","DO-PEER & CONSTRCTBLTY REV."]
["A","607807","DO-CEQA"]
["A","607808","DO-SOILS INVESTIG."]
["A","607809","DO-SURVEYS"]
["A","607810","DO-HAZ MAT SURVEYS"]
["A","607811","CM-INSPECTN & CONSTR.MGMT"]
["A","607812","CO-TESTING"]
["A","607813","CO-SOILS TESTING"]
["A","607814","CO-LEGAL FEES"]
["A","607815","CO-MISC. COSTS"]
["A","607816","CO-HAZ MAT REMOVAL"]
["A","607817","CO-HAZ MAT MONITORING"]
["A","607818","CO-UTIL TRF/HOOKUPS"]
["A","607819","CO-MISC CONSTR.CONTRACTS"]
["A","607820","PROJECT CONTINGENCY"]
["A","607821","DR-DESIGN ARCH.TVL-SP.CND-REIM"]
["A","607822","DR-DESIGN ADVERT-REIMB"]
["A","607823","DR-DESIGN PRINT & REPROD-REIMB"]
["A","607824","DR-DESIGN PRNT-BID DOCS-REIMB"]
["A","607825","C-CONSTR ARCH TVL-SP COND.REIM"]
["A","607826","C-CONSTR ADVERT.-REIM"]
["A","607827","C-CONSTR PRNT & REPROD-REIM"]
["A","607828","C-CONSTR.PRNT-BID DOCS-REIM"]
["A","607829","CR-UNALLOCATED"]
["A","607830","CR-REVERSION RESERVE"]
["A","607831","ENCUMB. TO PROJECT"]
["A","607832","CO-TRF OUT-TR-CPDC ADM FEES"]
["A","607833","CO-TRF OUT-TR-CONSTR CLAIMS"]
["A","607834","CO-TRF OUT-TR-ACCTG FEES"]
["A","608001","Books"]
["A","608002","Book Binding"]
["A","608003","Library Serials"]
["A","608004","Periodicals"]
["A","608005","SUBSCRIPTIONS"]
["A","608900","Library Materials"]
["A","609001","State E.O.P. Grant Program"]
["A","609002","State University Grant"]
["A","609004","State Graduate Fellowship"]
["A","609005","Other Student Schlrshps/Grants"]
["A","609006","State Federal Match Grant"]
["A","609801","ATHLETIC SCHOLARSHIPS"]
["A","609802","ENDOWMENTS"]
["A","609805","STUDENT GRANTS AWARD"]
["A","609806","OTH GRANT DISB"]
["A","609807","Cal Grant A -Fees"]
["A","609808","Cal Grant B -Fees"]
["A","609809","CAL GRNT B STIP DI"]
["A","609810","CAL GRNT A TCH DISB"]
["A","609811","CSAC AWARDS"]
["A","609812","OTHER MISC. FINANCIAL AID"]
["A","609813","PRIOR YEAR ADJUSTMENTS"]
["A","610001","Non-Expenditure Disbursements"]
["A","612001","STATE PRO RATA CHGS"]
["A","613001","Contractual Services"]
["A","613801","CS-EMPLOYEE ASSIST.PROG"]
["A","613802","CS-GORDIAN GROUP"]
["A","613803","CS-Master Teacher Contr"]
["A","613804","CS-Finance Contract"]
["A","613805","CS-CREDIT CARD COSTS"]
["A","613806","CS-SPECIAL LECTURER"]
["A","613807","CS-Laundry Services"]
["A","613808","CS-Payroll from other Agencies"]
["A","613809","CS-Release Time Salaries"]
["A","614001","Lease Purchase Bond Payment"]
["A","614002","Energy Bond Payment"]
["A","614003","Deferred Maint. Bond Payment"]
["A","616001","IT/Communications"]
["A","616002","I/T Hardware (Computers)"]
["A","616003","I/T-Software Expense"]
["A","616005","Misc. Info Tech Cost"]
["A","616800","Telecommunications Equipment"]
["A","617001","Servcs frm Othr Funds/Agencies"]
["A","617801","Interest & Redemption Reserve"]
["A","619001","Equipment (under $5000)"]
["A","619002","Equipment - Instructional"]
["A","619801","Equipment over $5000"]
["A","619802","Instr Eq-over $5000"]
["A","619803","PHYS ED EQUIPMENT"]
["A","660001","Postage and Freight"]
["A","660002","Printing"]
["A","660003","Supplies and Services"]
["A","660006","Interest on Bonds and Notes"]
["A","660008","INTEREST CHGS-OTHER"]
["A","660009","Specialized Training"]
["A","660010","Insurance Expense"]
["A","660011","Insurance Claim NDI/IDL"]
["A","660012","INSURANCE CLAIM DEUCTIBLE"]
["A","660017","Advert. & Prom. Pub."]
["A","660019","Legal Costs"]
["A","660020","Interest Penalty"]
["A","660021","Repairs and Maintenance"]
["A","660022","NO CONSTR ENG"]
["A","660023","Loan Principle Disbursements"]
["A","660024","Overhead - Grants & Contracts"]
["A","660025","Overhead-Chancellor's Office"]
["A","660026","Teale Data Center"]
["A","660040","Bad Debt Expense"]
["A","660041","Space Rental"]
["A","660042","Recruitment Expense"]
["A","660043","Accreditation Expense"]
["A","660044","Loan Cancellatn & Defaults"]
["A","660045","Student Union Return of Surplu"]
["A","660045","Student Union Return of Surplu"]
["A","660046","WELLS FARGO BANK CHARGES"]
["A","660047","CO CASH MGMT OVERHEAD"]
["A","660048","Interest Payback to State"]
["A","660049","INVESTMENT SERV CHARGE"]
["A","660090","Other Costs"]
["A","660091","Depr - Building/Improvements"]
["A","660091","Depr - Building/Improvements"]
["A","660092","Depr - Imprv Oth Than Building"]
["A","660092","Depr - Imprv Oth Than Building"]
["A","660093","Depr - Infrastructure"]
["A","660093","Depr - Infrastructure"]
["A","660094","Depr - Leasehold Improvements"]
["A","660094","Depr - Leasehold Improvements"]
["A","660095","Depr - Equipment"]
["A","660095","Depr - Equipment"]
["A","660096","Depr-Library Books"]
["A","660096","Depr-Library Books"]
["A","660097","Depr-Works of Art"]
["A","660097","Depr-Works of Art"]
["A","660098","Depr - Intangible Assets"]
["A","660098","Depr - Intangible Assets"]
["A","660801","Carrier Svc./Other Mail Svc"]
["A","660802","SS - Furniture"]
["A","660803","SS - Memberships"]
["A","660804","SS-UBIT / NRA Taxes"]
["A","660806","SS-Audit Costs"]
["A","660808","SS-Admin. Deadline Fee"]
["A","660809","SS-EFT Costs"]
["A","660810","SS-Medical"]
["A","660811","SS-Bulk Gasoline"]
["A","660812","SS-Oil"]
["A","660813","SS - Chemicals"]
["A","660814","SS - Operational Fees"]
["A","660815","SS - Paper Products"]
["A","660820","SS-Vehicle Maintenance"]
["A","660822","Liability Occurences"]
["A","660823","SCO Charges (CIRS)"]
["A","660824","SS-Voyager Fuel Cards"]
["A","660825","Moving Allowance"]
["A","660826","EO-WEB CHARGES"]
["A","660828","EO-Hospitality"]
["A","660829","Space Rental-Faculty"]
["A","660830","Space Rental-Admin"]
["A","660831","Space Rental-Classrm"]
["A","660832","Space Rental-Other"]
["A","660833","EO-STATE GEN SERVICES"]
["A","660834","EO-Honorarium"]
["A","660835","EO-Uniform Allowance"]
["A","660836","Vendor Ins Payments"]
["A","660837","EO-ENER BOND-SERV FEE"]
["A","660838","EO-Scholarships"]
["A","660839","EO-Stipends"]
["A","660840","Catalog Printing"]
["A","660841","Class Schedule printing"]
["A","660843","EO-Unallocated OE&E"]
["A","660844","EO-Unallocated-Other"]
["A","660845","EO-YRO Buy Down"]
["A","660846","EO-Administration Expense"]
["A","660850","SS-Athletic Uniforms"]
["A","660852","LPC-TCHR SHORTAGE"]
["A","660853","LIC-TCHR SHORTAGE"]
["A","660854","LPC-HEALTH SVC"]
["A","660855","LIC-HLTH SV"]
["A","660856","LPC-VOLUNTEER"]
["A","660857","LPC PR 72-TCH"]
["A","660858","LPC-MLTRY PR/72"]
["A","660859","LAW ENF LPC"]
["A","660860","LPC- AF/72 TEACH"]
["A","660861","LIC-PR72-TEACH"]
["A","660862","LIC-VOLUNTEER"]
["A","660862","LIC-VOLUNTEER"]
["A","660863","LIC-AF72-TEACH"]
["A","660864","LAW ENF LIC"]
["A","660865","LPC-DEATH/DISABILITY"]
["A","660866","LPC- BANKRUPTCY"]
["A","660867","PRINC CAN-OTHER ADJ"]
["A","660868","LIC-DEATH/DISABILITY"]
["A","660869","INT CANC BANKRUPTCY"]
["A","660870","LPC-HIGH RISK"]
["A","660871","LIC-HIGH RISK"]
["A","660872","ADMINISTRATION EXP-1%"]
["A","660873","OTHER COLL COSTS"]
["A","660874","RETURN FED CAP CONTR"]
["A","660875","PRINC ASIGN-FED"]
["A","660876","INT ASSIGN-FED"]
["A","660877","PRIN CANC OTHER"]
["A","660878","LPC-NURS EMPL"]
["A","660879","LIC-EMPLOY"]
["A","660880","OTHER-LITIGATION COSTS"]
["A","660881","BORROWER PAID OTHER COSTS"]
["A","660882","COLL. FEES PD BY BORROWER"]
["A","660883","A/P COLL FEE & OTH"]
["A","660886","REV TRANSFER OUT"]
["A","660887","ACCOUNTING CHARGEBACK"]
["A","660888","PARKING PERMITS"]
["A","660889","Athletic Awards"]
["A","660890","ENTRY FEES"]
["A","660891","Transfer to BKASI"]
["A","660892","TRANSFER BTWN BKCMP/BKFDN"]
["A","660893","EOC EMERGENCY COSTS"]
["A","660901","Conference Registration Fees"]
["A","660920","General Expense"]
["A","660921","Dues & Subscriptions"]
["A","660922","Banquet"]
["A","660924","Instructional Supplies"]
["A","660925","Garden Supplies"]
["A","660928","Foundation Service Charge"]
["A","660929","Tuition and Fees"]
["A","660929","Scholarships"]
["A","660929","OTHER SCHOLARSHIPS"]
["A","660930","Special Assistance"]
["A","660932","Programming"]
["A","660934","Summer Camps"]
["A","660935","Training/Testing"]
["A","660936","Roadrunner Club"]
["A","660937","Food/Drink Expense"]
["A","660938","AD Development"]
["A","660939","AAD Development"]
["A","660940","SID"]
["A","660941","Transfers Out"]
["A","660941","Transfers Out"]
["A","660942","Campus Services"]
["A","660943","Alumni Board Operations"]
["A","660944","Incentives"]
["A","660945","Other Supplies"]
["A","660948","Ticket Expense"]
["A","660949","Executive Committee Operations"]
["A","660950","Big Step Project"]
["A","660951","Stewardship"]
["A","660952","Brokerage Fee"]
["A","660953","In-Kind Expenses"]
["A","660954","Special Events"]
["A","660991","SS-Chgback Credit"]
["A","660992","Printing Chgback Credit"]
["A","660993","SS-IKON copier Chgback Credit"]
["A","660994","Postage Chgback Credit"]
["A","660995","Expenses TFR other Agencies"]
["A","660996","Facilities Chargeback"]
["A","670000","Tfrs Out w/in same CSU Fund"]
["A","670401","Tfr Out to CSU 401-Suppl EOG"]
["A","670403","Tfr Out to CSU 403-Perkins Ln"]
["A","670407","Tfr Out to CSU 407-Nrsng Udrgr"]
["A","670408","Tfr Out to CSU 408-Pell Grant"]
["A","670409","Tfr Out to CSU 409-College WS"]
["A","670410","Tfr Out to CSU 410-W Ford Dirc"]
["A","670411","Tfr Out to CSU 411-ACG/Smart"]
["A","670421","Tfr Out to CSU 421-St EOG"]
["A","670422","Tfr Out to CSU 422-St Univ Grn"]
["A","670424","Tfr Out to CSU 424-Cal Grant"]
["A","670431","Tfr Out to CSU 431-Unrs Scholr"]
["A","670432","Tfr Out to CSU 432-Restr Schlr"]
["A","670436","Tfr Out to CSU 436-FA-Agency"]
["A","670441","Tfr Out to CSU 441-CERF Ext Ed"]
["A","670442","Tfr Out to CSU 442-CERF Constr"]
["A","670443","Tfr Out to CSU 443-CERF Maint"]
["A","670451","Tfr Out fr CSU 451-Health Svcs"]
["A","670452","Tfr Out fr CSU 452-Health Fac"]
["A","670454","Tfr Out fr CSU 454-Fac Rev M&E"]
["A","670461","Tfr Out fr CSU 461-Assoc Studn"]
["A","670463","Tfr Out fr CSU 463-IRA Trusts"]
["A","670465","Tfr Out fr CSU 465-Grants Cntr"]
["A","670467","Tfr Out fr CSU 467-Student Fee"]
["A","670471","Tfr Out fr CSU 471-Pkg FineFor"]
["A","670472","Tfr Out fr CSU 472-Parking Fee"]
["A","670473","Tfr Out fr CSU 473-Prkg Constr"]
["A","670481","Tfr Out fr CSU 481-Lottery Ed"]
["A","670485","Tfr Out fr CSU 485-OperatingFD"]
["A","670496","Tfr Out fr CSU 496-Misc Trust"]
["A","670499","Tfr Out fr CSU 499-RevolvingFd"]
["A","670531","Tfr Out fr CSU 531-Housing Opr"]
["A","670532","Tfr Out fr CSU 531-Hsg Maint R"]
["A","670533","Tfr Out fr CSU 533-Hsg Constrc"]
["A","670534","Tfr Out fr CSU 534-Cmp Union"]
["A","670535","Tfr Out fr CSU 535-Cmp Un Main"]
["A","670541","Tfr Out fr CSU 541-Pool Invest"]
["A","670542","Tfr Out to CSU 542-TF Cap Proj"]
["A","670543","Tfr Out to CSU 543 -TF Int Ser"]
["A","671000","Tfr Out 948 Campus and CO"]
["A","671801","Interest & Redemption Reserve"]
["A","680005","STU PAYROLL-HIGH ED"]
["A","680008","TRAN TO CONTIN EDUC"]
["A","680009","TRAN TO DORM BM+ER"]
["A","680010","TRAN TO DORM CONSTRUCTION"]
["A","680011","TRAN TO DORM INT+RED"]
["A","680012","Transfer Out Dorm Revenue Fund"]
["A","680013","TRANSFER OUT FACILITY RF"]
["A","680014","TRAN TO PARKG REV FD"]
["A","680021","TRANSFER TO LOTTERY FUND 839"]
["A","680025","TRAN OUT -TRUST FUND"]
["A","680026","TRANSFER TO APPRN"]
["A","680051","TRF OUT-External Investments"]
["A","680100","Transfers Out - RMP SWAT"]
["A","680109","TRAN TO BLDG MAINT"]
["A","680110","TRAN TO DORM CONSTRUC"]
["A","680111","TRANSF TO DIRF-CSU"]
["A","680125","TRF TO CSU TRUST_INTERAGENCY"]
["A","680126","TRANSFER OUT-INTER AGENCY"]
["A","680151","TRF OUT-Inv Earng(Interagency)"]
["A","680801","ADM ALLOW-HIGH EDUC-"]
["A","680801","ADM ALLOW-HIGH EDUC-"]
["A","680801","ADM ALLOW-HIGH EDUC-"]
["A","690001","Refunds to Reverted Approp"]
["A","690002","Prior Year Expend Adjust."]
["A","690003","TR IN-FED PROG REV TRF"]
["A","690003","RMP Expenditure Offset from GF"]
["A","690006","ARRA Grants Expenditure Offset"]
["A","690007","GF Approp Refund to State"]
["A","690801","TR IN-FED ALLOW SEOG"]
["A","690802","TR IN-FED ALLOW PERK"]
["A","690803","TR IN-FED ALL PELL"]
["A","690804","TR IN-FED ALL CWS"]
["A","690805","TR IN-CWS-ON CAMPUS"]
["A","690806","TR IN-CWS-OFF CAMPUS"]
["A","690807","GF NONFED REV TRF"]
["A","690808","TR IN-NDI/IDL/UNEMPL"]
["A","690809","TR IN-CERF-CONC ENRL"]
["A","690810","GF NON-RESIDENT FEE"]
["A","690811","GF APPLICATION FEE"]
["A","690812","GF STATE UNIV FEE"]
["A","690813","GF CATALOG FEE"]
["A","690814","GF OVERHEAD-FOUNDTN"]
["A","690815","GF REVENUE-OTHER"]
["A","690816","498 Revenue Transfer Out"]
["A","690817","STUDENT HEALTH FEE-GF"]
["A","699998","To be Reviewed - Not used CSU"]
["A","711101","Cash and cash equivalents"]
["A","711102","Short-term investments"]
["A","711103","Accounts receivable, net"]
["A","711104","Due from other funds (conversi"]
["A","711105","Leases receivable, current por"]
["A","711106","Pledges  receivable, net"]
["A","711107","Prepaid expenses and other ass"]
["A","711110","Notes Receivable, current port"]
["A","711201","Restricted cash and cash equiv"]
["A","711202","Accounts receivable, net"]
["A","711203","Student loans receivable, net"]
["A","711204","Pledges  receivable, net"]
["A","711205","Endowment investments"]
["A","711206","Other long-term investments"]
["A","711207","Capital assets, net"]
["A","711208","Other assets"]
["A","711209","Leases receivable, net of curr"]
["A","711210","Notes receivable, net of curre"]
["A","712101","Accounts payable"]
["A","712102","Due to other funds (conversion"]
["A","712103","Accrued salaries and benefits"]
["A","712104","Accrued compensated absences,"]
["A","712105","Deferred revenue - current"]
["A","712106","Capitalized lease obligations"]
["A","712107","Long-term debt obligations - c"]
["A","712108","Self-insurance claims liabilit"]
["A","712109","Other liabilities-current"]
["A","712201","Accrued compensated absences,"]
["A","712202","Deferred revenue - noncurrent"]
["A","712203","Grants refundable"]
["A","712204","Capitalized lease obligations,"]
["A","712205","Long-term debt obligations, ne"]
["A","712206","Self-insurance claims liabilit"]
["A","712207","Depository accounts"]
["A","712208","Other liabilities - noncurrent"]
["A","712209","Other Postemployment benefits"]
["A","713811","Invested in capital assets, ne"]
["A","713821","Restricted: nonexpendable, end"]
["A","713831","Restricted: expendable, schola"]
["A","713832","Restricted: expendable, resear"]
["A","713833","Restricted: expendable, loans"]
["A","713834","Restricted: expendable, capita"]
["A","713835","Restricted: expendable, debt s"]
["A","713836","Restricted: expendable, other"]
["A","713881","Unrestricted"]
["A","713891","Agency (conversion template on"]
["A","713899","Fund balance clearing (convers"]
["A","714001","Legal - Balance must be 0 for"]
["A","714002","Legal- Balance need to reclass"]
["A","721001","Student tuition and fees (net"]
["A","721002","Grants and contracts, noncapit"]
["A","721003","Grants and contracts, noncapit"]
["A","721004","Grants and contracts, noncapit"]
["A","721005","Sales and services of educatio"]
["A","721006","Sales and services of auxiliar"]
["A","721007","Other operating revenues"]
["A","721008","Grants and contracts, noncapit"]
["A","722001","Salaries"]
["A","722002","Benefits"]
["A","722003","Scholarships and Fellowships"]
["A","722004","Supplies and Other Services"]
["A","722005","Depreciation"]
["A","722006","Reimbursable Activities (Conve"]
["A","723001","State appropriations, noncapit"]
["A","723002","Gifts, noncapital"]
["A","723003","Investment income, net"]
["A","723004","Endowment income"]
["A","723005","Interest Expenses"]
["A","723006","Other nonoperating revenues (e"]
["A","723007","Federal Financial aid grants,"]
["A","723008","State Financial Aid Grants, no"]
["A","723009","Nongovernmental and other Fina"]
["A","723010","Local Financial aid grants, no"]
["A","723011","Other Federal nonoperating gra"]
["A","724001","State appropriations, capital"]
["A","724002","Grants and gifts, capital"]
["A","724003","Additions to permanent endowme"]
["A","724004","Transfers to/from other CSU ca"]
["A","799999","Dummy Natural Classification"]
["F","811","Invested in Capital Assets, Ne"]
["C","811","Invested in Capital Assets, Ne"]
["F","821","Restricted: Nonexpendabe - End"]
["C","821","Restricted, Nonexpendable - En"]
["F","831","Restricted: Expendable - Schol"]
["C","831","Restricted, Expendable - Schol"]
["F","832","Restricted: Expendable - Resea"]
["C","832","Restricted, Expendable - Resea"]
["F","833","Restricted: Expendable - Loans"]
["C","833","Restricted, Expendable - Loans"]
["F","834","Restricted: Expendable - Capit"]
["C","834","Restricted Expendable - Capita"]
["F","835","Restricted: Expendable - Debt"]
["C","835","Restricted, Expendable - Debt"]
["F","836","Restricted: Expendable - Other"]
["C","836","Restricted, Expendable - Other"]
["F","881","Unrestricted"]
["C","881","Unrestricted (GAAP only)"]
["F","882","Unrestricted, Reimbursed Activ"]
["C","882","Unrestricted, Reimbursed Activ"]
["F","891","Agency Funds-Depository Accoun"]
["C","891","Agency Funds - Depository Acco"]
["F","892","Agency Funds-Grants Refundable"]
["C","892","Agency Funds - Grants Refundab"]
["P","90","Non Expenditure/Revenue Items"]
["C","900","CSU Auxiliary Organization Fun"]
["P","9000","Non-Expenditure/Revenue"]
["P","9001","Provision For Allocations"]
["P","9002","Balance Sheet Items"]
["P","9003","Use of Reserves from Prior Yea"]
["C","901","Auxiliary Organization - Curre"]
["C","902","Auxiliary Organization - Curre"]
["C","903","Auxiliary Organization - Endow"]
["C","904","Auxiliary Organization - Quasi"]
["C","905","Auxiliary Organization - Plant"]
["C","906","Auxiliary Organization - Plant"]
["C","907","Auxiliary Organization - Plant"]
["C","908","Auxiliary Organization - Loan"]
["C","909","Auxiliary Organization - Agenc"]
["C","999","Non-State Funds"]
["J","99999","Foundation"]
["F","999999","DUMMY"]
["A","999999","Commitment Control Offset"]
["A","999999","DUMMY"]
["D","999999","DUMMY"]
["P","999999","DUMMY"]
["J","999999","DUMMY"]
["C","999999","DUMMY"]
["F","A0000","Agency Accounts"]
["F","A0001","Campus Cats"]
["F","A0002","CSUB Wellness Program"]
["F","A0003","Anthropology Club"]
["F","A0004","Elementary Education"]
["F","A0005","Biology Dept."]
["F","A0006","CSUB Singers-Opera"]
["F","A0007","Publicity/Promotion"]
["F","A0008","Fred Dorer Retirement"]
["F","A0009","Sigma Tau Delta"]
["F","A0011","Theta Sigma Chi"]
["F","A0013","Cesar Chavez Memorial"]
["F","A0014","Bidgoli Printing"]
["F","A0015","Ballet Folklorico"]
["F","A0016","Cliff Loader Memorial"]
["F","A0017","Trio Parapro"]
["F","A0018","President's Advisory Board"]
["F","A0019","Reading Conf/New Vision"]
["F","A0020","Recreational Sports"]
["F","A0025","Criminal Justice Club"]
["F","A0026","Rec Sports"]
["F","A0027","CHAMPS"]
["F","A0028","Judo Club"]
["F","A0029","Jean Shelton Memorial"]
["F","A0030","School of Ed Prof"]
["F","A0031","Funk Squad"]
["F","A0032","Mini Corps"]
["F","A0033","Reading Center"]
["F","A0034","Testing"]
["F","A0035","The Runner"]
["F","A0037","SSD Development"]
["F","A0038","K-12 MST Conf"]
["F","A0039","Shearer Dissertation"]
["F","A0040","CSUB Panhellenic"]
["F","A0041","SAC Club"]
["F","A0042","Cal/Great Basin Anthropology"]
["F","A0043","Delta Sigma Theta"]
["F","A0045","Counseling Students"]
["F","A0047","Health Mgmt Library"]
["F","A0048","Lopez Fund"]
["F","A0049","Intl Student Assn"]
["F","A0050","Pi Alpha Alpha"]
["F","A0051","Lupe Club"]
["F","A0052","Annual English Retreat"]
["F","A0054","University Assn of Accts."]
["F","A0055","Nursing Application Fee"]
["F","A0055","Nursing Application Fee"]
["F","A0057","Dore Gala"]
["F","A0058","SAACS"]
["F","A0059","Pep Squad"]
["F","A0061","Library Comm"]
["F","A0062","Orientation"]
["F","A0063","Proc Structured Learning"]
["F","A0064","Club Literario \"\"Hermes\"\"\""]
["F","A0065","Alpha Chi"]
["F","A0066","Faculty TLC"]
["F","A0067","MECHA"]
["F","A0068","Counseling"]
["F","A0069","Gaelic Club"]
["F","A0070","Runner Christian Fellowship"]
["F","A0071","Pacific Rim Student Assn"]
["F","A0072","MIS Club"]
["F","A0073","NCARE"]
["F","A0075","Communication Club"]
["F","A0076","Candue Club"]
["F","A0077","Pacific View"]
["F","A0078","Phi Alpha Theta"]
["F","A0079","CLUB SOC"]
["F","A0080","Facilities Management Retire"]
["F","A0082","Women's Studies Network"]
["F","A0083","Nursing Class of 2000"]
["F","A0083","Nursing Class of 2009"]
["F","A0084","Math Diagnosis"]
["F","A0086","AASU"]
["F","A0087","Desk & Derrick Club"]
["F","A0088","Chicano Commencement"]
["F","A0089","Financial Aid"]
["F","A0090","CSUB Women's Club"]
["F","A0091","CIE/ISS Program"]
["F","A0092","College Republicans"]
["F","A0093","Unix Courses"]
["F","A0094","Class Schedules"]
["F","A0095","Global Affairs"]
["F","A0096","Chi Sigma Iota"]
["F","A0097","CSUB Golf Assn"]
["F","A0098","Health Fair"]
["F","A0099","Dept of Nursing"]
["F","A0100","Nelda Higgins Retirement"]
["F","A0101","Clinical Trials"]
["F","A0102","ITV Special Projects"]
["F","A0103","SHRM"]
["F","A0104","College Chapter AMA"]
["F","A0106","Icardo Celebration"]
["F","A0107","Kappa Alpha Order"]
["F","A0108","Beta Gamma Sigma"]
["F","A0110","Sigma Theta Tau"]
["F","A0111","Jazz Coffeehouse"]
["F","A0112","MSW Orientation"]
["F","A0113","Wilder Fund"]
["F","A0116","Re-entry Program"]
["F","A0117","Alpha Kappa Psi"]
["F","A0118","Geology Club"]
["F","A0119","AAC Tutoring"]
["F","A0120","Gay & Lesbian Alliance"]
["F","A0121","Jody Powell Memorial"]
["F","A0122","Staff Forum"]
["F","A0123","CSEA Chapter 310"]
["F","A0124","Memorial Fund"]
["F","A0125","Kathy Walton Retirement"]
["F","A0126","FMA"]
["F","A0127","SCA"]
["F","A0128","Human Corp"]
["F","A0129","CSU Debate Team"]
["F","A0131","Vic Mungary Retirement"]
["F","A0132","Gary Gleed Retirement"]
["F","A0134","David Ost Retirement"]
["F","A0135","Julie Zajack Retirement"]
["F","A0136","GLSSN"]
["F","A0137","Nursing Class of 2002"]
["F","A0138","LAMBDA PI ETA (communication)"]
["F","A0139","Sigma Gamma Roh"]
["F","A0140","CSU Councelors Conference"]
["F","A0141","George Bowes"]
["F","A0142","CSUB Singers Club"]
["F","A0143","VEP Reading Disabled Children"]
["F","A0144","Museum of Tolerance"]
["F","A0145","The Newman Club"]
["F","A0146","Nursing Class of 2003"]
["F","A0147","CNSA @ CSUB"]
["F","A0148","American Cancer Association"]
["F","A0149","The Club"]
["F","A0150","Delta Zeta Tau Fraternity"]
["F","A0151","Christmas Adopt a Family"]
["F","A0153","Jan Moore Retirement"]
["F","A0154","Inter Fraternity Concil (IFC)"]
["F","A0155","CSUB Wrestling Club"]
["F","A0156","CSUB Fiscal Accounting"]
["F","A0157","Theta Chi Fraternity"]
["F","A0158","General-VP Bus."]
["F","A0159","Nursing Class of 2001"]
["F","A0159","Nursing Class of 2010"]
["F","A0160","Psi Chi"]
["F","A0161","The Mentor Club"]
["F","A0162","Gamma Phi Beta Sorority"]
["F","A0163","Mike Higgins Retirement"]
["F","A0164","WASFAA"]
["F","A0165","Virginia Woolf Studies"]
["F","A0166","CAMP Fundraising"]
["F","A0168","California Faculty Association"]
["F","A0169","CSUB Public Relations SSA"]
["F","A0170","CSUB Philos/Relig Studies Club"]
["F","A0171","Biology Club"]
["F","A0173","CSUB Social Work Club"]
["F","A0174","OXY Young Scientist Award"]
["F","A0175","CALSWEC Collections"]
["F","A0176","Ella Pedroza Memorial Fund"]
["F","A0177","Ivy Interest Club/AKA"]
["F","A0178","Students In Free Enter-SIFE"]
["F","A0179","Career Development Fund"]
["F","A0180","Salsa Dance Club"]
["F","A0181","CSUB Honors Program"]
["F","A0182","Nursing Class of 2004"]
["F","A0183","Psychology Club"]
["F","A0184","Shire Council"]
["F","A0184","Residence Hall Association"]
["F","A0185","Kaibigan Filipino American"]
["F","A0186","Mariachi Club"]
["F","A0187","Community Service Programs"]
["F","A0188","Journal of African Comm"]
["F","A0191","Computer Science Club"]
["F","A0193","The French Club"]
["F","A0194","Jewel Benoit Retirement"]
["F","A0195","Library Sale Fund"]
["F","A0197","Science Deans Conference"]
["F","A0198","HESF Event"]
["F","A0199","Chi Alpha Epsilon"]
["F","A0200","Dezember Reading Room"]
["F","A0201","English Club"]
["F","A0202","Phi Beta Sigma"]
["F","A0203","Project H.O.P.E."]
["F","A0204","KCASC"]
["F","A0205","KSC"]
["F","A0206","BPA Graduate Student Assn"]
["F","A0209","20yr Leadership-Pres Arciniega"]
["F","A0210","Asso of Student Theatrical Art"]
["F","A0211","CSUB Water Polo Club"]
["F","A0212","Muslim Student Assn."]
["F","A0213","Pysch Club-AV"]
["F","A0214","Nursing Class of 2005"]
["F","A0217","Poetry Club"]
["F","A0218","Psychology Dept Retirement"]
["F","A0219","ICMLA"]
["F","A0221","MBA/MPA Grad Lab"]
["F","A0222","MEP/SHPE"]
["F","A0223","Dept of Nursing"]
["F","A0224","Sigma Delta Pi"]
["F","A0226","Gear-Up Donations"]
["F","A0228","Child Development Club"]
["F","A0229","Career Beginnings Club"]
["F","A0230","Black Women on Campus (BWOC)"]
["F","A0231","Lamda Alpha"]
["F","A0232","History Club"]
["F","A0233","Alpha Phi Sigma"]
["F","A0234","Student Athlete Advisory Comm"]
["F","A0235","Nu Phi Chi"]
["F","A0236","BAS Adopt-a-family"]
["F","A0237","Retirement Dinner"]
["F","A0238","Cash for College"]
["F","A0239","CSUB Nursing Class of 2006"]
["F","A0240","Peak Club"]
["F","A0241","Sociology Club - AV"]
["F","A0242","Spanish Honor Society"]
["F","A0243","Associated CSUB Democrats"]
["F","A0244","SIFE"]
["F","A0245","From Hood to All Good"]
["F","A0246","Catie Lowrimore Memorial"]
["F","A0247","The Art Club"]
["F","A0248","SAAP Soc. for Adv. American Ph"]
["F","A0249","Arciniega Fiesta"]
["F","A0250","Phi Sigma Sigma"]
["F","A0251","Nursing Class of 2007 Dues"]
["F","A0252","Kappa Delta Nu"]
["F","A0253","Fencing Club"]
["F","A0254","Nursing Class 2007 Dues"]
["F","A0255","English Club - AV"]
["F","A0256","SAAP Conference"]
["F","A0257","Education Counseling Associati"]
["F","A0258","CSUB Hip Hop Club"]
["F","A0259","Shinsuke Sato Memorial Fund"]
["F","A0260","Provost Retirement"]
["F","A0261","Dreams Come True Foundation"]
["F","A0262","United Resources for Social Ch"]
["F","A0263","Student Ambassadors for Farmwo"]
["F","A0264","ICMLA"]
["F","A0265","Resident Assistant Club"]
["F","A0266","School of Education Retirement"]
["F","A0267","Hibbard Retirement Account"]
["F","A0268","Kappa Sigma Fraternity"]
["F","A0269","Black Men on Campus"]
["F","A0270","AV Center for Community Devel"]
["F","A0271","Dr. Homer Montalvo Retirement"]
["F","A0273","Physics Honor Society"]
["F","A0274","NURSING CLASS OF 2008"]
["F","A0275","GREEK COUNCIL"]
["F","A0276","V.P. FOR S.A. SPECIAL EVENT"]
["F","A0277","Student Health Outreach Team"]
["F","A0278","Chican@ Studies Lecture Series"]
["F","A0279","EMPL SEPARATION FUND-PRESIDENT"]
["F","A0280","EMPL SEPARATION FUND-ACAD AFFR"]
["F","A0281","EMPL SEPARATION FUND-BAS"]
["F","A0282","EMPL SEPARATION FUND-STU AFFRS"]
["F","A0283","EMPL SEPARATION FUND-UNIV ADVA"]
["F","A0285","ULTIMATE FRISBEE CLUB"]
["F","A0286","Environmental Club"]
["F","A0287","Educational Reading Program"]
["F","A0288","NORML"]
["F","A0289","CAMPUS CRUSADE"]
["F","A0290","Kappa Delta Pi-Rho Epsilon Ch"]
["F","A0291","Japan and Beyond"]
["F","A0292","MATH CLUB"]
["F","A0293","SPARC-PROJECT GRAD"]
["F","A0294","Alcohol&Drug Ed. Comm/STAANDUP"]
["F","A0295","EOP-Project BIG"]
["F","A0296","Hogwarts Honour Society"]
["F","A0297","Sociology for Inner City"]
["F","A0298","Black Young Stars"]
["F","A0299","Intramural Sports Club"]
["F","A0300","Communicating Network AV"]
["F","A0302","Annual Charity Fundraiser"]
["F","A0303","Sport Management Club"]
["F","A0303","Sport Management Club"]
["F","A0304","Indigenous Native Amer Club"]
["F","A0305","Black Women on Campus - AV"]
["F","A0306","AUCTION FOR HEALING-VIRG TECH"]
["F","A0307","Filipino Comm. of Bakersfield"]
["F","A0308","Migrant Student MBA Chapter"]
["F","A0309","Runner Reader Program"]
["F","A0310","School of Ed Academic Council"]
["F","A0311","African Amer Student Union -AV"]
["F","A0312","Hispanic Scholarship Fund Club"]
["F","A0313","Community Service Cooperative"]
["F","A0314","American Medical Student Assoc"]
["F","A0315","Council of Graduate Students"]
["F","A0316","Soc. of Success and Leadership"]
["F","A0317","Students Org and Club Councils"]
["F","A0318","Earth Day"]
["F","A0319","Accelerated BSN 2009 Club"]
["F","A0320","CSUB-AV Education Club"]
["F","A0321","Mission 242"]
["F","A0322","Nursing Class of 2011"]
["F","A0323","Basque Studies"]
["F","A0324","ATENA"]
["F","A0325","ISP-IREX"]
["P","A101","Antelope Valley"]
["P","A101","ANTELOPE VALLEY CAMPUS"]
["P","A101","Antelope Valley"]
["P","A101","Antelope Valley Campus"]
["P","A102","AV-ITV"]
["P","A103","AV-Distance Learning"]
["P","A104","AV-RELEASE TIME"]
["F","A9999","Agency Miscellaneous"]
["F","AD200","2000-2001 General Fund Expense"]
["F","AD201","2001-2002 General Fund Expense"]
["F","AD202","2002-2003 General Fund Expense"]
["F","AD202","2002-2003 General Fund Expense"]
["F","AD203","2003-2004 General Fund Expense"]
["F","AD203","2003-2004 General Fund Expense"]
["F","AD204","2004-2005 General Fund Expense"]
["F","AD204","2004-2005 General Fund Expense"]
["F","AD205","2005-2006 General Fund"]
["F","AD205","2005-2006 General Fund"]
["F","AD206","2006-07 General Fund"]
["F","AD206","2006-07 General Fund"]
["F","AD207","2007-08 General Fund"]
["F","AD208","2008-09 General Fund"]
["F","ADADV","Office Revolving Fund"]
["F","ADADV","Office Revolving Fund"]
["F","AE201","2001-2002 GF REVOLVING FUND"]
["F","AE202","2002-2003 GF Revolving Fund"]
["F","AE203","2003-2004 GF Revolving Fund"]
["F","AE204","2004-2005 GF Revolving Fund"]
["F","AE205","2005-2006 GF REVOLVING FUND"]
["F","AE206","2006-2007_GF_REVOLVING_FUND"]
["F","AF200","2000-2001 GF Revenue Trf In"]
["F","AF201","2001-2002 GF Revenue Trf In"]
["F","AF201","2001-2002 GF Revenue Trf In"]
["F","AF202","2002-2003 GF Revenue Trf In"]
["F","AF203","2003-2004 GF Revenue Trf In"]
["F","AF204","2004-2005 GF Revenue Trf In"]
["F","AF204","2004-2005 GF Revenue Trf In"]
["F","AF205","2005-2006 GF REVENUE TRF IN"]
["F","AG205","2005-2006 GF Capital Project"]
["F","AH205","GEN FUND CAPITAL OUTLAY"]
["F","AL020","Alumni"]
["F","AL022","Postage"]
["F","AL023","Supplies"]
["F","AL030","MBA Chapter"]
["F","AL031","Soc/Anth Chapter"]
["F","AL032","Nursing Chapter"]
["F","AL033","Education Chapter"]
["F","AL034","Young Alumni"]
["F","AL035","Hispanic Chapter"]
["F","AL036","BPA Chapter"]
["F","AL037","Sixty Plus"]
["F","AL038","CSU Alumni Special Events"]
["F","AR203","2006-2007 GF REVERTED APPROP"]
["F","AR203","2005-2006 GF REVERTED APPROP"]
["F","AS001","Associated Students"]
["J","AS5101","ASI FINANCE"]
["J","AS5102","ASI FINANCE"]
["J","AS5103","ASI FINANCE"]
["J","AS5104","ASI FINANCE"]
["J","AS5105","ASI FINANCE"]
["J","AS5106","ASI FINANCE"]
["J","AS5107","ASI FINANCE"]
["J","AS5108","ASI FINANCE"]
["J","AS5109","ASI FINANCE"]
["J","AS5110","ASI FINANCE"]
["J","AS5111","ASI FINANCE"]
["J","AS5112","ASI FINANCE"]
["J","AS5113","ASI FINANCE"]
["J","AS5114","ASI FINANCE"]
["J","AS5115","ASI FINANCE"]
["J","AS5116","ASI FINANCE"]
["J","AS5117","ASI FINANCE"]
["J","AS5118","ASI FINANCE"]
["J","AS5119","ASI FINANCE"]
["J","AS5120","ASI FINANCE"]
["J","AS5121","ASI FINANCE"]
["J","AS5122","ASI FINANCE"]
["J","AS5123","ASI FINANCE"]
["J","AS5124","ASI FINANCE"]
["J","AS5125","ASI FINANCE"]
["J","AS5126","ASI FINANCE"]
["J","AS5127","ASI FINANCE"]
["J","AS5128","ASI FINANCE"]
["J","AS5129","ASI FINANCE"]
["J","AS5130","ASI FINANCE"]
["J","AS5131","ASI FINANCE"]
["J","AS5132","ASI FINANCE"]
["J","AS5133","ASI FINANCE"]
["J","AS5134","ASI FINANCE"]
["J","AS5135","ASI FINANCE"]
["J","AS5136","ASI FINANCE"]
["J","AS5137","ASI FINANCE"]
["J","AS5138","ASI FINANCE"]
["J","AS5139","ASI FINANCE"]
["J","AS5140","ASI FINANCE"]
["J","AS5141","ASI FINANCE"]
["J","AS5142","ASI FINANCE"]
["J","AS5143","ASI FINANCE"]
["J","AS5144","ASI FINANCE"]
["J","AS5145","ASI FINANCE"]
["J","AS5146","ASI FINANCE"]
["J","AS5147","ASI FINANCE"]
["J","AS5148","ASI FINANCE"]
["J","AS5149","ASI FINANCE"]
["J","AS5150","ASI FINANCE"]
["J","AS5201","ASI FINANCE"]
["J","AS5202","ASI FINANCE"]
["J","AS5203","ASI FINANCE"]
["J","AS5204","ASI FINANCE"]
["J","AS5205","ASI FINANCE"]
["J","AS5206","ASI FINANCE"]
["J","AS5207","ASI FINANCE"]
["J","AS5208","ASI FINANCE"]
["J","AS5209","ASI FINANCE"]
["J","AS5210","ASI FINANCE"]
["J","AS5211","ASI FINANCE"]
["J","AS5212","ASI FINANCE"]
["J","AS5213","ASI FINANCE"]
["J","AS5214","ASI FINANCE"]
["J","AS5215","ASI FINANCE"]
["J","AS5216","ASI FINANCE"]
["J","AS5217","ASI FINANCE"]
["J","AS5218","ASI FINANCE"]
["J","AS5219","ASI FINANCE"]
["J","AS5220","ASI FINANCE"]
["J","AS5221","ASI FINANCE"]
["J","AS5222","ASI FINANCE"]
["J","AS5223","ASI FINANCE"]
["J","AS5224","ASI FINANCE"]
["J","AS5225","ASI FINANCE"]
["J","AS5226","ASI FINANCE"]
["J","AS5227","ASI FINANCE"]
["J","AS5228","ASI FINANCE"]
["J","AS5229","ASI FINANCE"]
["J","AS5230","ASI FINANCE"]
["J","AS5231","ASI FINANCE"]
["J","AS5232","ASI FINANCE"]
["J","AS5233","ASI FINANCE"]
["J","AS5234","ASI FINANCE"]
["J","AS5235","ASI FINANCE"]
["J","AS5236","ASI FINANCE"]
["J","AS5237","ASI FINANCE"]
["J","AS5238","ASI FINANCE"]
["J","AS5239","ASI FINANCE"]
["J","AS5240","ASI  FINANCE"]
["J","AS5241","ASI FINANCE"]
["J","AS5242","ASI FINANCE"]
["J","AS5243","ASI FINANCE"]
["J","AS5244","ASI FINANCE"]
["J","AS5245","ASI FINANCE"]
["J","AS5246","ASI FINANCE"]
["J","AS5247","ASI FINANCE"]
["J","AS5248","ASI FINANCE"]
["J","AS5249","ASI FINANCE"]
["J","AS5250","ASI FINANCE"]
["J","AS5301","ASI FINANCE"]
["J","AS5302","ASI FINANCE"]
["J","AS5303","ASI FINANCE"]
["J","AS5304","ASI FINANCE"]
["J","AS5305","ASI FINANCE"]
["J","AS5306","ASI FINANCE"]
["J","AS5307","ASI FINANCE"]
["J","AS5308","ASI FINANCE"]
["J","AS5309","ASI FINANCE"]
["J","AS5310","ASI FINANCE"]
["J","AS5311","ASI FINANCE"]
["J","AS5312","ASI FINANCE"]
["J","AS5313","ASI FINANCE"]
["J","AS5314","ASI FINANCE"]
["J","AS5315","ASI FINANCE"]
["J","AS5316","ASI FINANCE"]
["J","AS5317","ASI FINANCE"]
["J","AS5318","ASI FINANCE"]
["J","AS5319","ASI FINANCE"]
["J","AS5320","ASI FINANCE"]
["J","AS5321","ASI FINANCE"]
["J","AS5322","ASI FINANCE"]
["J","AS5323","ASI FINANCE"]
["J","AS5324","ASI FINANCE"]
["J","AS5325","ASI FINANCE"]
["J","AS5326","ASI FINANCE"]
["J","AS5327","ASI FINANCE"]
["J","AS5328","ASI FINANCE"]
["J","AS5329","ASI FINANCE"]
["J","AS5330","ASI FINANCE"]
["J","AS5331","ASI FINANCE"]
["J","AS5332","ASI FINANCE"]
["J","AS5333","ASI FINANCE"]
["J","AS5334","ASI FINANCE"]
["J","AS5335","ASI FINANCE"]
["J","AS5336","ASI FINANCE"]
["J","AS5337","ASI FINANCE"]
["J","AS5338","ASI FINANCE"]
["J","AS5339","ASI FINANCE"]
["J","AS5340","ASI FINANCE"]
["J","AS5341","ASI FINANCE"]
["J","AS5342","ASI FINANCE"]
["J","AS5343","ASI FINANCE"]
["J","AS5344","ASI FINANCE"]
["J","AS5345","ASI FINANCE"]
["J","AS5346","ASI FINANCE"]
["J","AS5347","ASI FINANCE"]
["J","AS5348","ASI FINANCE"]
["J","AS5349","ASI FINANCE"]
["J","AS5350","ASI FINANCE"]
["J","AS5400","ASI PROGRAMMING-ANTELOPE VALL"]
["J","AS5401","ASI PROGRAMMING-NEWSPAPER PROG"]
["J","AS5402","ASI-HOMECOMING"]
["J","AS5403","ASI-LUAU"]
["J","AS5404","ASI-ATHLETIC EVENTS"]
["J","AS5405","ASI-WELCOME BACK"]
["J","AS5406","ASI-PROG UNALLOCATED"]
["J","AS5407","ASI-PROG UNALLOCATED"]
["J","AS5408","ASI-PROG UNALLOCATED"]
["J","AS5409","ASI-PROG UNALLOCATED"]
["J","AS5410","ASI-PROG UNALLOCATED"]
["F","AT050","Athletic General Fund"]
["J","AT1417","ATHLETIC GOLF TOURNAMENT"]
["J","AT1418","ATHLETIC REVERSE DRAW"]
["J","AT1419","GAME MANAGEMENT"]
["J","AT1420","SPECIAL PROJECTS"]
["J","AT1421","ATHLETICS-SPRING BBQ"]
["J","AT1445","ATHLETICS-FALL BBQ"]
["J","AT1449","DIVISION I EXPENSES"]
["J","AT1450","DIVISION I COSTS"]
["J","AT1451","PE INSTRUCTIONAL EXPENSES"]
["J","AT1452","SPORTS CAMPS"]
["J","AT1453","MISCELLANEOUS PROJECTS"]
["J","AT1454","TIP OFF LUNCHEON"]
["J","AT1455","GAME GUARANTEE"]
["J","AT1456","College Prep Camp"]
["J","AT1460","GROUP TICKET SALES"]
["J","AT1461","NCAA TOURNAMENT"]
["J","AT1462","CONFERENCE TOURNAMENTS"]
["J","AT1465","Icardo Room Rental Income/Exp"]
["J","AT1466","ATHLETICS-CASINO NIGHT"]
["J","AT1467","Academic Advising Facility"]
["J","AT1468","Baseball Facility"]
["J","AT1469","Car Show"]
["J","AT1471","ICARDO CENTER RENTAL"]
["J","AT1472","OLD GYM RENTAL"]
["J","AT1473","TRACK RENTAL"]
["J","AT1474","SOCCER FIELD RENTAL"]
["J","AT1475","HILLMAN AQUATIC CTR RENTAL"]
["J","AT1476","INTRAMURAL FIELD RENTAL"]
["J","AT1477","TENNIS COURTS RENTAL"]
["J","AT1478","Wrestling Complex"]
["J","AT1479","Softball Complex"]
["J","AT1480","Custodial Supplies"]
["J","AT1481","Miscellaneous Supplies"]
["A","B50000","BUDGET-REV TRF IN FROM 498"]
["A","B50001","REVENUE BUDGET"]
["A","B50002","BUDGET-REIMBURSEMENTS"]
["A","B60001","SALARIES & WAGES BUDGET"]
["A","B60002","BENEFITS BUDGET"]
["A","B60003","OPERATING EXPENSES-BUDGET"]
["A","B60004","INDIRECT COSTS BUDGET"]
["A","B60005","BUDGET OFFSET"]
["A","B60701","CAP OUTLAY BUDGET"]
["A","B60701","CAP OUTLAY BUDGET"]
["F","BD200","2000-2001 Reimb Activity Exp"]
["F","BD201","2001-2002 Reimb Activity Exp"]
["F","BD202","2002-2003 Reimb Activity Exp"]
["F","BD202","2002-2003 Reimb Activity Exp"]
["F","BD203","2003-2004 Reimb Activity Exp"]
["F","BD203","2003-2004 Reimb Activity Exp"]
["F","BD204","2004-2005 Reimb Activity Exp"]
["F","BD204","2004-2005 Reimb Activity Exp"]
["F","BD205","2005-2006 REIMB ACTIVITY EXP"]
["F","BD205","2005-2006 REIMB ACTIVITY EXP"]
["F","BF001","05-06 UNSCHEDULE REIMB"]
["F","BF200","2000-2001 Reimbursements"]
["F","BF201","2001-2002 Reimbursements"]
["F","BF202","2002-2003 Reimbursements"]
["F","BF203","2003-2004 Reimbursements"]
["F","BF204","2004-2005 Reimbursements"]
["F","BF205","2005-2006 REIMBURSEMENTS"]
["F","BK001","CSU OPERATING FUND"]
["F","BKARA","ARRA Federal Stimulus Funding"]
["F","BKDVP","DIRECT VENDOR PAY TRUST"]
["F","BKESC","2007 Escheat of Unclaim"]
["F","BKOII","Operating Investment Income"]
["F","BKPII","Pooled Investment Income"]
["F","BKRAE","Reimbursed Activities Expense"]
["F","BKRAR","Reimbursed Activities Reimb"]
["F","BKREV","TF Student Fees and Income"]
["F","BO000","Computer Corner"]
["C","C0001","User Defined 001"]
["C","C0001","Custodial Services - MOU1473"]
["C","C0001","USER DEFINED 001"]
["C","C0002","User Defined 002"]
["C","C0002","USER DEFINED 002"]
["C","C0002","USER DEFINED 002"]
["C","C0003","User Defined 003"]
["C","C0003","USER DEFINED CLASS 003"]
["C","C0003","USER DEFINED 003"]
["C","C0004","USER DEFINED 004"]
["C","C0004","User Defined 004"]
["C","C0004","USER DEFINED CLASS 004"]
["C","C0005","USER DEFINED 005"]
["C","C0005","User Defined 005"]
["C","C0005","USER DEFINED 005"]
["C","C0005","USER DEFINED CLASS 005"]
["C","C0006","User Defined 006"]
["C","C0006","USER DEFINED CLASS 006"]
["C","C0006","USER DEFINED 006"]
["C","C0007","User Defined 007"]
["C","C0007","USER DEFINED 007"]
["C","C0007","USER DEFINED CLASS 007"]
["C","C0008","USER DEFINED CLASS 008"]
["C","C0008","User Defined 008"]
["C","C0008","USER DEFINED 008"]
["C","C0009","User Defined 009"]
["C","C0009","USER DEFINED CLASS 009"]
["C","C0009","USER DEFINED 009"]
["C","C0010","USER DEFINED 010"]
["C","C0010","User Defined 010"]
["C","C0010","USER DEFINED CLASS 010"]
["C","C0011","User Defined 011"]
["C","C0011","USER DEFINED CLASS 011"]
["C","C0011","USER DEFINED 011"]
["C","C0012","User Defined 012"]
["C","C0012","USER DEFINED CLASS 012"]
["C","C0012","USER DEFINED 012"]
["C","C0013","User Defined 013"]
["C","C0013","USER DEFINED 013"]
["C","C0014","User Defined 014"]
["C","C0014","USER DEFINED 014"]
["C","C0015","User Defined 015"]
["C","C0015","USER DEFINED 015"]
["C","C0016","USER DEFINED 016"]
["C","C0016","User Defined 016"]
["C","C0017","User Defined 017"]
["C","C0017","USER DEFINED 017"]
["C","C0018","User Defined 018"]
["C","C0018","USER DEFINED 018"]
["C","C0019","User Defined 019"]
["C","C0019","USER DEFINED 019"]
["C","C0020","User Defined 020"]
["C","C0020","USER DEFINED 020"]
["C","C0021","USER DEFINED 021"]
["C","C0021","User Defined 021"]
["C","C0022","User Defined 022"]
["C","C0022","USER DEFINED 022"]
["C","C0023","USER DEFINED 023"]
["C","C0023","User Defined 023"]
["C","C0024","User Defined 024"]
["C","C0024","USER DEFINED 024"]
["C","C0025","USER DEFINED 025"]
["C","C0025","User Defined 025"]
["C","C0026","USER DEFINED 026"]
["C","C0026","User Defined 026"]
["C","C0027","USER DEFINED 027"]
["C","C0027","User Defined 027"]
["C","C0028","User Defined 028"]
["C","C0028","USER DEFINED 028"]
["C","C0029","User Defined 029"]
["C","C0029","USER DEFINED 029"]
["C","C0030","USER DEFINED 030"]
["C","C0030","User Defined 030"]
["C","C0031","USER DEFINED 031"]
["C","C0031","User Defined 031"]
["C","C0032","User Defined 032"]
["C","C0032","USER DEFINED 032"]
["C","C0033","USER DEFINED 033"]
["C","C0033","User Defined 033"]
["C","C0034","USER DEFINED 034"]
["C","C0034","User Defined 034"]
["C","C0035","USER DEFINED 035"]
["C","C0035","User Defined 035"]
["C","C0036","USER DEFINED 036"]
["C","C0036","User Defined 036"]
["C","C0037","User Defined 037"]
["C","C0037","USER DEFINED 037"]
["C","C0038","User Defined 038"]
["C","C0038","USER DEFINED 038"]
["C","C0039","USER DEFINED 039"]
["C","C0039","User Defined 039"]
["C","C0040","User Defined 040"]
["C","C0040","USER DEFINED 040"]
["C","C0041","USER DEFINED 041"]
["C","C0041","User Defined 041"]
["C","C0042","USER DEFINED 042"]
["C","C0042","User Defined 042"]
["C","C0043","User Defined 043"]
["C","C0043","USER DEFINED 043"]
["C","C0044","USER DEFINED 044"]
["C","C0044","User Defined 044"]
["C","C0045","USER DEFINED 045"]
["C","C0045","User Defined 045"]
["C","C0046","USER DEFINED 046"]
["C","C0046","User Defined 046"]
["C","C0047","USER DEFINED 047"]
["C","C0047","User Defined 047"]
["C","C0048","USER DEFINED 048"]
["C","C0048","User Defined 048"]
["C","C0049","User Defined 049"]
["C","C0049","USER DEFINED 049"]
["C","C0050","User Defined 050"]
["C","C0050","USER DEFINED 050"]
["C","C0051","USER DEFINED 051"]
["C","C0052","USER DEFINED 052"]
["C","C0053","USER DEFINED 053"]
["C","C0054","USER DEFINED 054"]
["C","C0055","USER DEFINED 055"]
["C","C0056","USER DEFINED 056"]
["C","C0057","USER DEFINED 057"]
["C","C0058","USER DEFINED 058"]
["C","C0059","USER DEFINED 059"]
["C","C0060","USER DEFINED 060"]
["C","C0061","USER DEFINED 061"]
["C","C0062","USER DEFINED 062"]
["C","C0063","USER DEFINED 063"]
["C","C0064","USER DEFINED 064"]
["C","C0065","USER DEFINED 065"]
["C","C0066","USER DEFINED 066"]
["C","C0067","USER DEFINED 067"]
["C","C0068","USER DEFINED 068"]
["C","C0069","USER DEFINED 069"]
["C","C0070","USER DEFINED 070"]
["C","C0071","USER DEFINED 071"]
["C","C0072","USER DEFINED 072"]
["C","C0073","USER DEFINED 073"]
["C","C0074","USER DEFINED 074"]
["C","C0075","USER DEFINED 075"]
["C","C0076","USER DEFINED 076"]
["C","C0077","USER DEFINED 077"]
["C","C0078","USER DEFINED 078"]
["C","C0079","USER DEFINED 079"]
["C","C0080","USER DEFINED 080"]
["C","C0081","USER DEFINED 081"]
["C","C0082","USER DEFINED 082"]
["C","C0083","USER DEFINED 083"]
["C","C0084","USER DEFINED 084"]
["C","C0085","USER DEFINED 085"]
["C","C0086","USER DEFINED 086"]
["C","C0087","USER DEFINED 087"]
["C","C0088","USER DEFINED 088"]
["C","C0089","USER DEFINED 089"]
["C","C0090","USER DEFINED 090"]
["C","C0091","USER DEFINED 091"]
["C","C0092","USER DEFINED 092"]
["C","C0093","USER DEFINED 093"]
["C","C0094","USER DEFINED 094"]
["C","C0095","USER DEFINED 095"]
["C","C0096","USER DEFINED 096"]
["C","C0097","USER DEFINED 097"]
["C","C0098","USER DEFINED 098"]
["C","C0099","USER DEFINED 099"]
["C","C0100","USER DEFINED 100"]
["C","C1001","Rcrd-Dept Cards"]
["C","C1001","Hotel"]
["C","C1002","Rcrd-Foundation"]
["C","C1002","Food Expenses"]
["C","C1003","Rcrd-Carne"]
["C","C1003","Postage-External"]
["C","C1004","Rcrd-Library"]
["C","C1004","Printing-External"]
["C","C1005","Rcrd-Print Shop"]
["C","C1005","Copying - External"]
["C","C1006","Rcrd-Sodexho"]
["C","C1006","Publishing - External"]
["C","C1007","Rcrd-Health Ctr"]
["C","C1007","Copying - Internal"]
["C","C1008","Rcrd-Barnes & Noble"]
["C","C1008","Publishing - Internal"]
["C","C1009","C&L-Cingular Wireless"]
["C","C1009","Publications"]
["C","C1010","C&L-Vendor Settlemnt/Rebates"]
["C","C1010","Deans Consultative Dinner"]
["C","C1011","C&L-Arch Communication"]
["C","C1011","Dinner Events"]
["C","C1012","C&L-Grad-Photography"]
["C","C1012","Donor Events - Pres. Associate"]
["C","C1013","C&L-Pac Pipelne-Easement"]
["C","C1013","Local Meals"]
["C","C1014","C&L-Grt Spt Wtrs/Arrowhead"]
["C","C1014","GIft, Tickets, Entertainments"]
["C","C1015","Athletic Facility Rental"]
["C","C1015","Balloons, Decorations, Flowers"]
["C","C1016","Ath-Hillman Aquatic Ctr Rental"]
["C","C1016","Plaques Expenses"]
["C","C1017","Ath-Equipment Replacement"]
["C","C1017","Item"]
["C","C1018","Ath-Custodial"]
["C","C1018","Professional Organizations"]
["C","C1019","Ath-Icardo Ctr Rental"]
["C","C1019","Community Organizations"]
["C","C1020","Ath-Old Gym rental"]
["C","C1020","Social Organization"]
["C","C1021","Ath-Tennis Courts-rental"]
["C","C1022","Ath-Soccer Complex rental"]
["C","C1023","Ath-Track & Field rental"]
["C","C1024","Ath-Athletic Representative"]
["C","C1025","Ath-Facilities Maintenance"]
["C","C1026","CCP Card Offset"]
["C","C1027","Start Up costs"]
["C","C1028","FTLC Grants"]
["C","C1029","Bid Deposit-TLCM Infrastructur"]
["C","C1030","Workmens Comp-Health Ctr"]
["C","C1031","C&L-Gateway rebates"]
["C","C1032","Prior Year"]
["C","C1033","Hispanic Excellence Scholarshi"]
["C","C1034","President's Scholarships"]
["C","C1035","Future Scholars"]
["C","C1036"]
["C","C1040","FACIL WORKORDER CHGBKS"]
["C","C1041","CUSTODIAL CHGBKS"]
["C","C1042","ROADS & GROUNDS CHGBKS"]
["C","C1043","MOTOR VEH CHGBKS"]
["C","C1044","ENGINEERING CHGBKS"]
["C","C1045","FOSS CHARGEBACKS"]
["C","C1046","GATEWAY REBATES"]
["C","C1047","TEST"]
["C","C1047","TEST"]
["C","C1048","Ath-Intramural Field Rental"]
["C","C1049","IKON-COINS"]
["C","C1050","RUNNERCARD-MEDIA SERVICES"]
["C","C1051","RUNNERCARD - ASI"]
["C","C1052","RUNNERCARD-STUDENT SERVICES"]
["C","C1053","C & L-Nextel/Sprint"]
["C","C1054","C&L - SMA Agreement"]
["C","C1414","Graduate Asst. Coaches"]
["C","C1415","Book Loan Expense"]
["C","C1416","5th Year Scholarships"]
["C","C1417","Golf Tournament"]
["C","C1418","Tip Off Luncheon"]
["C","C1421","Spring BBQ"]
["C","C1445","Fall BBQ"]
["C","C1446","Game Guarantees"]
["C","C1447","Championship Ring Donations"]
["C","C1448","Trade Donations"]
["C","C1461","Reverse Drawing"]
["C","C1462","Blue Crew-Athletics"]
["C","C1463","RdrunnerClub Game Day Charters"]
["C","C1464","Cheer Squad / Pep Squad"]
["C","C1465","Icardo Room Rental"]
["C","C1466","Casino Night"]
["C","C1467","Sports/Teams"]
["C","C1468","Baseball Facility"]
["C","C1469","SAAC"]
["C","C1470","Title V - CSUB"]
["C","C1471","Title V - BC"]
["C","C1472","CFLP - SLICK"]
["C","C1473","CFLP - Other"]
["C","C1480","Inauguration/35th Anniv. - Rev"]
["C","C1501","Management-separate613808reimb"]
["C","C1502","Clerical-separate613808 reimb"]
["C","C1503","Student Assistants-613808reimb"]
["C","C1504","Benefits-separate613808reimbPR"]
["C","C1505","Lecturer-separate613808reimbPR"]
["C","C1506","Consultant-seprate613808reimPR"]
["C","C2001","Travel - Hotel Expense"]
["C","C2001","Travel - Hotel Expense"]
["C","C2002","Travel - Food Expense"]
["C","C2002","Travel - Food Expense"]
["C","C2003","External Postage"]
["C","C2003","External Postage"]
["C","C2004","External Printing"]
["C","C2004","External Printing"]
["C","C2005","External Copying"]
["C","C2005","External Copying"]
["C","C2006","External Publishing"]
["C","C2006","External Publishing"]
["C","C2007","Internal Copying"]
["C","C2007","Internal Copying"]
["C","C2008","Internal Publishing"]
["C","C2008","Internal Publishing"]
["C","C2009","Publications"]
["C","C2009","Publications"]
["C","C2010","Deans Consultative Dinner"]
["C","C2010","Deans Consultative Dinner"]
["C","C2011","Dinner Events"]
["C","C2011","Dinner Events"]
["C","C2012","Donor Events-PA"]
["C","C2012","Donor Events-PA"]
["C","C2013","Donor-Local Meals"]
["C","C2013","Donor-Local Meals"]
["C","C2014","Donor-Gifts,Tickets, Ent., etc"]
["C","C2014","Donor-Gifts,Tickets, Ent. etc"]
["C","C2015","Balloons, Decorations, Flowers"]
["C","C2015","Balloons, Decorations, Flowers"]
["C","C2016","Donor Plaques"]
["C","C2016","Donor Plaques"]
["C","C2017","Donor-Other Items"]
["C","C2017","Donor-Other Items"]
["C","C2018","Professional Organizations"]
["C","C2018","Professional Organizations"]
["C","C2019","Comm Organizations (Rotary)"]
["C","C2019","Comm Organizations (Rotary)"]
["C","C2020","Social Organization Country Cl"]
["C","C2020","Social Organization Country Cl"]
["C","C2021","Mileage"]
["C","C2021","Mileage"]
["C","C2500","Division I Campaign"]
["C","C3200","Fraternal Order of Eagles"]
["C","C4312","Button/T-Shirt Sales"]
["C","C4321","PRE DOC SCHOLAR"]
["C","C4336","Haven Drive Elementary"]
["C","C4337","Lake Isabella"]
["C","C4339","DiGiorgio Elementary"]
["C","C4340","Capital Campaign - Adv"]
["C","C4344","In School Youth"]
["C","C4345","Out of School Youth"]
["C","C4347","Arvin High School"]
["C","C4349","Coffee with the Prof"]
["C","C4358","Mountain View Middle School"]
["C","C4359","Classic Movies"]
["C","C4360","Antelope Valley SU Budget"]
["C","C4372","Elder College"]
["C","C4381","Field Trip/Awards"]
["C","C4390","Game Guarantee - Exp"]
["C","C4391","Game Management"]
["C","C4412","Alirow"]
["C","C4413","Bridge"]
["C","C4771","Party in the Park"]
["C","C4773","Mah Jong"]
["C","C4776","Historian"]
["C","C4779","Exploring Investments"]
["C","C5060","Medical College of Ohio"]
["C","C5755","Pres. Community Relations"]
["C","C5929","Navy Study"]
["C","C5932","NCAA Championship"]
["C","C5936","Great Books Group"]
["C","C5937","Awards Committee"]
["C","C6096","Fundraisers"]
["C","C6185","Retirement Seminar"]
["C","C6190","Reverse Drawing"]
["C","C6495","Student Services Discretionary"]
["C","C6501","English Specialists"]
["C","C6830","Special Projects"]
["C","C7270","Workshops"]
["C","C7515","Stiern Project"]
["C","C7735","Wine Trip"]
["C","C7740","Texas Center for Infectious Di"]
["C","C7831","Univ. of California Davis"]
["C","C7835","University of Arizona"]
["C","C7855","VA Medical Research"]
["F","CC025","Children's Center"]
["F","CI300","Centers & Institutes"]
["F","CI301","Accounting Institute"]
["F","CI302","ADV of Science & Tech"]
["F","CI303","Center for Stat Research"]
["F","CI304","FACT"]
["F","CI305","Applied Research Center"]
["F","CI306","Dept of Geology"]
["F","CI307","CTR for Bus & Econ"]
["F","CI308","Comp Sort Dev & Consult"]
["F","CI309","Italian American Heritage"]
["F","CI310","Musica Da Camera"]
["F","CI311","Calcot-Kennedy Prof"]
["F","CI312","Center for Biomedical Research"]
["F","CI313","Ctr Living & Learning"]
["F","CI314","Chevron Homeless"]
["F","CI315","Non Credit Program Dev"]
["F","CI316","Cont Ed-Conf Dev"]
["F","CI317","Regional Programs"]
["F","CI319","Politics Research"]
["F","CI320","Language Development"]
["F","CI321","Public Service Institute"]
["F","CI322","Center for Research AG/Biology"]
["F","CI325","Golden Net Alliance"]
["F","CI327","Hispanic Sch"]
["F","CI329","CSB Womens Club"]
["F","CI330","Malpractice Insurance"]
["F","CI331","Cal Trans  CAR"]
["F","CI332","CSB Plus-Tuition"]
["F","CI333","ARCHAEOLOGICAL STUDIES"]
["F","CI333","ARCHAEOLOGICAL STUDIES"]
["F","CI334","CAR-Cal Trans TO#1"]
["F","CI336","KESWP"]
["F","CI338","Ext Univ - Contracts"]
["F","CI339","MESA-Industry Contrib"]
["F","CI340","MESA-School Dist Cont"]
["F","CI341","All-College Honors"]
["F","CI342","AIC-OHP"]
["F","CI343","AIC"]
["F","CI344","BPA Assoc Program"]
["F","CI345","BREC-Total Quality MGT"]
["F","CI349","BREC-Direct Marketing"]
["F","CI350","Ctr for Econ Ed & Research"]
["F","CI351","Kern Economic Journal"]
["F","CI352","Kern Co. Economic Summit"]
["F","CI354","Inst Study Secondary ED"]
["F","CI355","ESSSJV"]
["F","CI355","ESSSJV"]
["F","CI356","Kegley Inst for Ethics"]
["F","CI357","Summer Bridge"]
["F","CI357","Summer Bridge"]
["F","CI358","Peer Dev & Tutorial Program"]
["F","CI359","CHILDREN'S ART INSTITUTE"]
["J","CR0037","03CR-CAMPUS MASTERPLAN"]
["J","CR0039","04CR-WINTER COMMENCMT CAMPAIGN"]
["J","CR0040","04CR-EXECUTIVE SEARCH-PROVOS"]
["J","CR0041","04CR-MARKETING CAMPAIGN"]
["J","CR0042","04CR-PEOPLESOFT BUDGET AUG"]
["J","CR0043","04CR-WINTER COMMENCEMENT"]
["J","CR0044","05CR-INCREASED UTILITY COSTS"]
["J","CR0045","06/07-SFTWR LICNS & HRDWR MNT"]
["J","CR0046","05/06 TRAINING-ACADEMIC AFFAIR"]
["J","CR0047","05/06 TRAINING-BAS"]
["J","CR0048","05/06 TRAINING-UNIV ADVANCEMNT"]
["J","CR0049","05/06 STUDENT EMPLYEE-ACAD AFF"]
["J","CR0050","05/06 STUDENT EMPLYEE-BAS"]
["J","CR0051","05/06 STUDENT EMPLYEE-STUD AFF"]
["J","CR0052","05/06 STUDENT EMPLYEE-ATHLETIC"]
["J","CR0053","05/06 NONSTATE SFTWR/NTWRK USE"]
["J","CR0054","05/06 STUDENT EMPLYEE-UNIV ADV"]
["J","CR0055","05/06 TRAINING-STUDENT AFFAIRS"]
["J","CR0056","05/06 CELEBRATE_CSUB"]
["J","CR0070","SOE Doctoral Program"]
["J","CR0071","Math Science Bldg. Move"]
["J","CR0072","University Advancement"]
["J","CR0073","07/08CR-Reclass EAP and Bidle"]
["J","CR0074","VP - University Advancement"]
["J","CR0075","VP-University Advancement"]
["J","CR0076","VP-University Advancement"]
["J","CR0077","VP-University Advancement"]
["J","CR0078","CHAMPS Life Skills Program"]
["J","CR0079","VP-University Advancement"]
["J","CR0080","Science I Expansion Study"]
["F","CR200","2000-2001 HE Revenue"]
["F","CR201","2001-2002 HE Revenue"]
["F","CR201","2001-2002 HE Revenue"]
["F","CR202","2002-2003 HE Revenue"]
["F","CR202","2002-2003 HE Revenue"]
["F","CR203","2003-2004 HE Revenue"]
["F","CR203","2003-2004 HE Revenue"]
["F","CR204","2004-2005 HE Revenue"]
["F","CR204","2004-2005 HE Revenue"]
["F","CR205","2005-2006 HE REVENUE"]
["F","CR205","2005-2006 HE REVENUE"]
["F","CR207","2007-2008 HE Revenue"]
["J","CTR100","CTR FOR ARCHAEOLOGICAL RESEARC"]
["J","CTR101","LAB OF ARCHAEOLOGICAL SCIENCES"]
["J","CTR102","MUSEUM OF ANTHROPOLOGY"]
["J","CW0008","CW-ASSESSMENT"]
["D","D10005","Instruction"]
["D","D10010","PROVOST ADMIN"]
["D","D10020","Academic Senate"]
["D","D10030","Diversity Initiatives"]
["D","D10040","FTLC"]
["D","D10091","Provost"]
["D","D10110","H&SS Admin"]
["D","D10115","HS&S Instruction"]
["D","D10120","Art Dept"]
["D","D10130","Music"]
["D","D10131","MUSIC DA CAMERA & MEN'S CHORUS"]
["D","D10132","WOMEN'S CHORUS & SAC CHORAL"]
["D","D10133","SYMPHONIC BAND"]
["D","D10135","Theatre"]
["D","D10140","Criminal Justice"]
["D","D10150","English"]
["D","D10151","Virginia Woolf Study"]
["D","D10152","ENGLISH COURSE MATERIALS FEES"]
["D","D10160","Modern Languages & Lit"]
["D","D10170","Communications"]
["D","D10171","Journal of African Communicatn"]
["D","D10180","Economics"]
["D","D10181","Kern Economic Journal"]
["D","D10190","History"]
["D","D10194","H&SS FACULTY"]
["D","D10200","Liberal Studies"]
["D","D10210","Philosophy/Religious Studies"]
["D","D10220","Political Science"]
["D","D10230","Psychology"]
["D","D10240","Social Work"]
["D","D10250","Sociology/Anthropology"]
["D","D10301","NS&M Admin"]
["D","D10302","NS&M Instructional Support"]
["D","D10305","NS&M Instruction"]
["D","D10310","Biology"]
["D","D10320","Chemistry"]
["D","D10330","Computer Science"]
["D","D10340","Engineering-PRE"]
["D","D10360","Math"]
["D","D10370","Nursing"]
["D","D10380","Geology Department"]
["D","D10380","Physics/Geology"]
["D","D10390","Physics Department"]
["D","D10393","NS&M FACULTY"]
["D","D10401","BPA-Admin"]
["D","D10405","BPA Instruction"]
["D","D10410","FINANCE/ACCOUNTING"]
["D","D10420","APPLIED ECONOMICS"]
["D","D10430","Management/Marketing"]
["D","D10450","Public Adm"]
["D","D10451","BPA ADVISING"]
["D","D10492","BPA FACULTY"]
["D","D10501","Education-Admin"]
["D","D10505","Education Instruction"]
["D","D10510","Advanced Education"]
["D","D10520","Teacher Education"]
["D","D10521","Master Teacher"]
["D","D10530","PEAK"]
["D","D10540","Special Education"]
["D","D10550","Credentials/Grad.Studies"]
["D","D10592","EDUCATION FACULTY"]
["D","D10610","Advising Center"]
["D","D10620","Community Service Programs"]
["D","D10630","General Studies-Admin"]
["D","D10640","Human Corp/Co-Op"]
["D","D10650","International Students"]
["D","D10660","Academic Prep Programs"]
["D","D10670","Teacher Recruit. & Retentn"]
["D","D10675","Access & Development"]
["D","D10710","Graduate Studies-Admin"]
["D","D10710","Grants & Contracts Admin"]
["D","D10710","FDN GRNTS, RSRCH & SPNSRD PRJ"]
["D","D10720","Research & Creative Activ."]
["D","D10730","Grants Res & Sponsored Program"]
["D","D10730","SPONSORED RESEARCH"]
["D","D10801","ATHLETICS-GENERAL"]
["D","D10802","Ath-Men's Basketball"]
["D","D10803","Ath-Women's Basketball"]
["D","D10804","Ath-Women's Cross Country"]
["D","D10805","Ath-Men's Golf"]
["D","D10806","Ath-Men's Soccer"]
["D","D10807","Ath-Women's Soccer"]
["D","D10808","Ath-Softball"]
["D","D10809","Ath-Men's Swimming"]
["D","D10810","Ath-Women's Swimming"]
["D","D10811","Ath-Tennis"]
["D","D10812","Ath-Men's Track & Field"]
["D","D10813","Ath-Women's Track & Field"]
["D","D10814","Ath-Volleyball"]
["D","D10815","Ath-Women's Water Polo"]
["D","D10816","Ath-Wrestling"]
["D","D10817","Ath-Sports Medicine"]
["D","D10818","Ath-Marketing"]
["D","D10819","Sports Information"]
["D","D10820","CSUB CHEERLEADING SQUAD"]
["D","D10821","Ath-Baseball"]
["D","D10822","Ath-Women's Golf"]
["D","D10891","Ath-General-Facil Rntl RA"]
["D","D10910","Antelope Valley"]
["D","D10930","Extention"]
["D","D10932","IELC"]
["D","D10933","Open University"]
["D","D10934","Extention Non-Credit"]
["D","D10935","Contract Training"]
["D","D10936","Intersession"]
["D","D10936","Intersession/Local Special Ses"]
["D","D10937","EU-Marketing"]
["D","D10938","Project Development"]
["D","D10940","Summer Session"]
["D","D10942","Special Session-Regional"]
["D","D10950","Executive Mgmt"]
["D","D10960","GF Ovhd Charges"]
["D","D10965","EU-G.A.S./Postage,Space/Prorat"]
["D","D10970","EU-Utilities"]
["D","D20010","President Administration"]
["D","D20020","Planning Office"]
["D","D21010","VP Business Admin.Svcs."]
["D","D21040","Space Rental"]
["D","D21100","AVP for Fiscal Services"]
["D","D21110","Budget Office"]
["D","D21120","Payroll Services"]
["D","D21130","General Accounting"]
["D","D21140","Student Financial Services"]
["D","D21150","Procurement & Contract Svcs."]
["D","D21160","Reprographics/Print Shop"]
["D","D21200","Public Safety-Spt"]
["D","D21294","FOUNDATION REIMB.S&W"]
["D","D21300","Safety & Risk Svcs."]
["D","D21400","Human Resources"]
["D","D21500","FM-Director Facilities Mgmt."]
["D","D21510","FM-Admin"]
["D","D21520","FM-Facilities Operations"]
["D","D21530","FM-Custodial"]
["D","D21540","FM-Roads & Grounds"]
["D","D21550","FM-Vehicle Operations"]
["D","D21560","FM-FOSS"]
["D","D21590","FPDO"]
["D","D21591","Ath-Custodial"]
["D","D21595","FPDO-Construction"]
["D","D21600","Engineering & Energy Mgmt."]
["D","D21610","Def Maint/Special Repair"]
["D","D22010","VPIR ADMIN"]
["D","D22010","IR ANNUAL SERVICE CONTRACTS"]
["D","D22011","Acad/Tech Support"]
["D","D22015","Photo ID Office"]
["D","D22020","DO NOT USE (Web Svcs)"]
["D","D22020","DO NOT USE (Web Svcs)"]
["D","D22100","Peoplesoft (cms)"]
["D","D22200","Library Administration"]
["D","D22210","Library Circulation"]
["D","D22220","Library General"]
["D","D22230","Library Tech Services"]
["D","D22240","Library Books"]
["D","D22250","Library Reference"]
["D","D22260","Lib. Computer Information Svc."]
["D","D22270","Lib. Interlibrary Loan"]
["D","D22300","IRTS"]
["D","D22320","Media & Network Svcs."]
["D","D22340","E-LEARNING SERVICES"]
["D","D22392","VPIR-EX.MGMT"]
["D","D22400","Administrative Computing Svcs."]
["D","D22410","Admin Computing Systems"]
["D","D22420","Telecommunications"]
["D","D23000","ETS"]
["D","D23001","Communication Plan"]
["D","D23010","VP Student Affairs"]
["D","D23011","ADA Compliance (ATI)"]
["D","D23015","Commencement"]
["D","D23020","Dean of Student Life"]
["D","D23020","AVP Student Services"]
["D","D23030","Judicial Affairs"]
["D","D23030","AVP for Campus Life"]
["D","D23100","AVP of Enrollment Services"]
["D","D23105","Enrollment Mgmt Special Proj"]
["D","D23110","Educational Opportunity Progra"]
["D","D23120","Outreach/EOP"]
["D","D23130","Summer Bridge"]
["D","D23140","Student Affirmative Action"]
["D","D23150","Transfer Center"]
["D","D23160","Financial Aid"]
["D","D23165","Perkins Loans"]
["D","D23170","Scholarships and Grants"]
["D","D23180","Admissions & Records"]
["D","D23200","Assoc Dean (Perry)"]
["D","D23210","Student Activities"]
["D","D23220","Career Planning & Placement"]
["D","D23220","Career Development Center"]
["D","D23230","Housing"]
["D","D23231","HOUSING CUSTODIAL"]
["D","D23232","DORM BLDG. MAINT-HOUSING"]
["D","D23233","DBMRF-CAP DEV/RENOV RESRV"]
["D","D23234","DBMRF-WORKING CAPITAL"]
["D","D23235","DBMRF-MAINT & REPAIR RES"]
["D","D23236","DBMRF-CATASTROPHIC"]
["D","D23240","Associated Students"]
["D","D23300","Associate Dean (Hendrickson)"]
["D","D23310","Counseling"]
["D","D23320","Testing"]
["D","D23330","Health Center"]
["D","D23340","Disabled Services"]
["D","D23350","Child Care Center"]
["D","D24100","UNIVERSITY ADVANCEMENT"]
["D","D24100","VP UNIVERSITY ADVANCEMENT"]
["D","D24120","University Advancement-Admin"]
["D","D24191","VP UNIV. ADVANCEMENT"]
["D","D24191","UNIV ADVANCEMENT"]
["D","D24192","VP Univ Advance-Fdn Reimb"]
["D","D24193","UA Events"]
["D","D24194","Annual Campaign"]
["D","D24194","Annual Campaign"]
["D","D24195","Alumni Operations"]
["D","D24220","ASI-Administration"]
["D","D24221","ASI-PEP SQUAD REFERENDUM"]
["D","D24230","ASI-CHILD CARE REFERENDUM"]
["D","D24231","ASI-INTRAMURAL"]
["D","D24240","CHILDRENS CENTER PARKING LOT"]
["D","D24241","ASI-LEISURE PROGRAMS"]
["D","D24242","ASI-CALENDAR"]
["D","D24243","ASI-GREEK WEEK"]
["D","D24244","ASI-STUDENT RESOURCE"]
["D","D24245","ASI-PROGRAMMING"]
["D","D24246","ASI-SATEL CAMP PROGRAM"]
["D","D24247","ASI-HOMECOMING"]
["D","D24248","ASI-LUAU"]
["D","D24250","ASI-WELCOME BACK WEEK"]
["D","D24310","ASI-SG-CLUB UNALLOCATED"]
["D","D24311","ASI-AAC"]
["D","D24312","ASI-AASU"]
["D","D24313","ASI-ANTHROPOLOGY"]
["D","D24314","ASI-ART CLUB"]
["D","D24315","ASI-BALLET FOLKLORICO"]
["D","D24316","ASI-BLACK MALES ON CAMPUS"]
["D","D24318","ASI-CLUB LIT HERMES"]
["D","D24319","ASI-CLUB SOC"]
["D","D24320","ASI-CRIMINAL JUSTICE"]
["D","D24323","ASI-DELTA ZATA TAU"]
["D","D24324","ASI-GEOLOGY CLUB"]
["D","D24325","ASI-GLOBAL AFFAIRS"]
["D","D24326","ASI-INTERNAT'L STUDENT"]
["D","D24327","ASI-ART CLUB LOCKERS"]
["D","D24328","ASI-JUDO CLUB"]
["D","D24329","ASI-KAIBIGAN"]
["D","D24330","ASI-KAPPA ALPHA"]
["D","D24331","ASI-KAPPA ALPHA PSI"]
["D","D24332","ASI-MECHA"]
["D","D24334","ASI-M.E.P."]
["D","D24337","ASI-PANELLENIC"]
["D","D24338","ASI-PHILOSOPHY & RELIGIOUS STU"]
["D","D24340","ASI-PI ALPHA ALPHA"]
["D","D24341","ASI-PSYCHOLOGY CLUB"]
["D","D24342","ASI-RESIDENT ASSISTANT CLUB"]
["D","D24343","ASI-SAACS"]
["D","D24344","ASI-SHIRE COUNCIL"]
["D","D24345","ASI-STAAR"]
["D","D24346","ASI-THETA CHI"]
["D","D24347","ASI-THETA SIGMA CHI"]
["D","D24348","ASI-TRIO PARAPROS"]
["D","D24349","ASI-UNIV ACCNT ASSOC"]
["D","D24351","ASI-CA STUDNT NURSING ASSOC"]
["D","D24352","ASI-CHILD DEVELOP CLUB"]
["D","D24353","ASI-COLLEGE REPUBLICANS"]
["D","D24354","ASI-COMPUTER SCIENCE"]
["D","D24355","ASI-MANAGEMENT INFO SYSTEM"]
["D","D24356","ASI-NEWMAN CLUB"]
["D","D24357","ASI-PITA SMART"]
["D","D24359","ASI-SIGMA GAMMA RHO"]
["D","D24361","ASI-WOMENS NETWORK"]
["D","D24362","ASI-BIOLOGY CLUB"]
["D","D24363","ASI-CHI ALPHA EPSILON"]
["D","D24366","ASI-MARIACHI CUICATLI"]
["D","D24367","ASI-RUNNER CHRISTIAN FELLOWSH"]
["D","D24370","ASI-BPA"]
["D","D24371","ASI-CAMPUS GREENS"]
["D","D24372","ASI-CAREER BEGINNINGS"]
["D","D24373","ASI-CHI SIGMA LOTA"]
["D","D24374","ASI-NU PHI CHI"]
["D","D24375","ASI-NURSING CLASS 2004"]
["D","D24376","ASI-NURSING CLASS 2005"]
["D","D24377","ASI-POETRY CLUB"]
["D","D24378","ASI-PSYCHOLOGY CLUB (AV)"]
["D","D24379","ASI-SOCIOLOGY CLUB (AV)"]
["D","D24380","ASI-STUDENT UNION (AV)"]
["D","D24381","ASI-ENGLISH CLUB (AV)"]
["D","D24382","ASI-CLUB UNALLOC (AV)"]
["D","D24383","ASI-PSI CHI CLUB"]
["D","D24510","Student Union Administration"]
["D","D24520","Student Union Programming"]
["D","D24530","Student Union Custodial"]
["D","D24550","Student Recreation Center"]
["D","D88888","General"]
["D","D88888","CSUB Foundation"]
["D","D90000","Campus Wide Unallocated"]
["D","D90010","Academic Admin. Unallocated"]
["D","D91000","Instruction Unallocated"]
["D","D92000","Pres. Unallocated"]
["D","D92100","BAS Unallocated"]
["D","D92110","FISCAL ADMINISTRATION"]
["D","D92150","CSUBAK"]
["D","D92200","Info Res - Unallocated"]
["D","D93000","Student Svcs.Unallocated"]
["F","DD200","2000-2001 HE Rev Trf Out"]
["F","DD201","2001-2002 HE Rev Trf Out"]
["F","DD201","2001-2002 HE Rev Trf Out"]
["F","DD202","2002-2003 HE Rev Trf Out"]
["F","DD202","2002-2003 HE Rev Trf Out"]
["F","DD203","2003-2004 HE Rev Trf Out"]
["F","DD204","2004-2005 HE Rev Trf Out"]
["F","DD204","2004-2005 HE Rev Trf Out"]
["F","DD205","2005-2006 HE REV TRF OUT"]
["F","DN015","Dorian Society"]
["F","E0000","Endowments"]
["F","E0051","Merit Scholars"]
["F","E0052","Howard Dallimore Memorial"]
["F","E0053","C.E. Strange Memorial"]
["F","E0054","Knief Lovelace Memorial"]
["F","E0055","Sean Baxter Memorial"]
["F","E0056","G.A. Holtz Memorial"]
["F","E0057","Intercollegiate Athletics"]
["F","E0058","CSUB Honors Program"]
["F","E0059","Lou Galligher Fship"]
["F","E0060","CTA Sierra Service Center"]
["F","E0061","Pelletier Professor"]
["F","E0062","California Well Sample Repos"]
["F","E0063","Lovallo Music Scholarship"]
["F","E0064","Agribusiness Chair"]
["F","E0064","Agribusiness Program"]
["F","E0065","Alumni Operational"]
["F","E0066","Mamie Hawkins"]
["F","E0067","Fine Arts Endowment"]
["F","E0068","Brent Waterman Memorial"]
["F","E0069","Moreland Athletic"]
["F","E0070","Schuetz-Richardson"]
["F","E0071","Hull Memorial"]
["F","E0072","Hopkins Ad Club"]
["F","E0073","Distinguished Chair Acct"]
["F","E0073","Accounting Program Fund"]
["F","E0074","Lori Brock Memorial"]
["F","E0075","Fred McDonnell Memorial"]
["F","E0076","Gladys Rachal Memorial"]
["F","E0077","Beta Gamma Sigma"]
["F","E0078","Kathleen Van Horn"]
["F","E0079","Instrumental Music"]
["F","E0080","Presidents Disc"]
["F","E0081","Christa McAuliffe"]
["F","E0082","Friends of Biology"]
["F","E0083","Dr. E.Williams Memorial"]
["F","E0084","Panama Educ. Foundation"]
["F","E0085","K.C. Sheriffs Res"]
["F","E0086","John Reed Memorial"]
["F","E0087","Palmbach Memorial"]
["F","E0088","Mary Osborne"]
["F","E0089","Clare Estate"]
["F","E0090","Dolores & Victor Cerro"]
["F","E0091","Kern RN Society"]
["F","E0092","Gymnasium Seats"]
["F","E0093","Bakersfield Chapter APPR Inst"]
["F","E0094","Armand Hammer Fine Art"]
["F","E0095","C. Kegley Memorial Lecture"]
["F","E0096","H. Durelle Nursing"]
["F","E0097","Dorian scholarship"]
["F","E0098","EF Karpe Memorial Sch"]
["F","E0099","BPA Endowment"]
["F","E0100","Dr Jimmy D Barnes"]
["F","E0101","John Brock Sr"]
["F","E0102","Audrey Bender Sch"]
["F","E0103","CSUB Teacher Growth"]
["F","E0104","Roadrunner Ath"]
["F","E0105","School of Ed Travel"]
["F","E0105","Howard Zimmerman Memorial Endo"]
["F","E0106","Linda Sue Chaney"]
["F","E0107","Robert C. Marshall"]
["F","E0108","Dwayne Gholston"]
["F","E0109","CSB Wrestling"]
["F","E0110","San Joaquin Chapt API"]
["F","E0111","Filipino Excellence"]
["F","E0112","EB Prof Womens Club"]
["F","E0113","Alumni Scholarship"]
["F","E0114","Marion Reed Nursing"]
["F","E0115","Bill Burton Jazz Memorial Sch"]
["F","E0116","Jeanette Haskin Endowment"]
["F","E0117","Track & Field Endowment Sch"]
["F","E0118","George McMahon Memorial"]
["F","E0119","Jon Kazumi Kada Memorial"]
["F","E0120","Mildred Baer Memorial"]
["F","E0121","Secor Music Scholarship"]
["F","E0122","Bobby Joe Shannon Memorial"]
["F","E0123","M. Marie Brown Scholarship"]
["F","E0124","Benjamin Schneider"]
["F","E0125","Hiram F. & Mary G. Cox Sch."]
["F","E0126","Choral Music Sch."]
["F","E0127","Annabelle Simon Cahn"]
["F","E0128","Dr. Carl Miller Memorial"]
["F","E0129","Leo B. Hart Memorial"]
["F","E0130","Robert Scherb Estate"]
["F","E0131","Joe Wooldridge Memorial"]
["F","E0132","Fairie Decker Memorial"]
["F","E0133","Ablin Endowment"]
["F","E0134","Fred & Beverly Dukes"]
["F","E0135","Italian Heritage"]
["F","E0136","H. Victor Church"]
["F","E0137","Hispanic Excellence"]
["F","E0138","Dr. Paul Dhariwal"]
["F","E0139","Stiern Library Assoc."]
["F","E0140","Ernie Page Memorial"]
["F","E0141","Cornerstone Campaign"]
["F","E0142","Theodore Decker Memorial"]
["F","E0143","Len McGillivray Memorial"]
["F","E0144","Bright House Networks Jazz End"]
["F","E0145","George & Joan Pracy Sch"]
["F","E0146","Dr. Clifford Loader Memorial"]
["F","E0147","Dr. John Forney Memorial"]
["F","E0148","Sheldon Building"]
["F","E0149","Reserve"]
["F","E0150","Victor and Virginia Church"]
["F","E0151","Lee Adams Memorial"]
["F","E0152","Sid Sheffield Memorial"]
["F","E0153","Bruce Bunker Endow Scholar"]
["F","E0154","Charlie Craig Endow."]
["F","E0155","Ray Geigle Merit Award"]
["F","E0156","Residential Life"]
["F","E0157","Harold Freedman"]
["F","E0158","Kegley Family Merrit"]
["F","E0159","Adeline Frasch Memorial"]
["F","E0160","Kris A827Bellur Memorial"]
["F","E0161","Hans Einstein Memorial"]
["F","E0162","Wm. & Lara Edwards"]
["F","E0163","Chee-Mok & Millie Chan Schol"]
["F","E0164","Jimmie Icardo School"]
["F","E0165","Campus Radio"]
["F","E0166","Joseph E. Anderson Memorial"]
["F","E0167","Millie Ablin Teaching Award"]
["F","E0168","Jason Shattenkirk Memorial"]
["F","E0169","Rachel Gamez Memorial"]
["F","E0170","John Barber Memorial"]
["F","E0171","Tim Cartwright Memorial"]
["F","E0172","Richard Foster Memorial"]
["F","E0173","Ralph Smith Nursing Scholar"]
["F","E0174","Cochran Continence Scholar"]
["F","E0175","Sanchez Retirement Planning"]
["F","E0176","Ed Richardson Athletic Scholar"]
["F","E0177","Hugh C. Mays Scholarship Endow"]
["F","E0178","Liberal Studies Endowment"]
["F","E0179","Emma Sims Nursing Scholarship"]
["F","E0180","Cheryl Maglischo Scholarship"]
["F","E0181","Tomas A Arciniega"]
["F","E0182","Robert Storar Memorial"]
["F","E0183","Joseph Chandy Memorial"]
["F","E0184","Doug Davis Comp. or Perf. End."]
["F","E0185","Mimi Deeths Memorial Scholarsh"]
["F","E0186","Stiern Library Multicultural"]
["F","E0187","Flachmann Award Endowment"]
["F","E0188","Ronald Khachigian Mem. Scholar"]
["F","E0189","James Latham McGee Memorial"]
["F","E0190","Athletic Memorial Scholarship"]
["F","E0191","Stephen Neal Wrestling Endow."]
["F","E0192","Don and Kathleen Crabtree End"]
["F","E0193","Lorraine West Memorial Endowme"]
["F","E0194","Wayne and Sally Montgomery End"]
["F","E0195","Dr. James H George Sch. Endow"]
["F","E0196","Rudy & Anne Carvajal Endow for"]
["F","E0197","Ravi & Naina Patel Sch. Endow"]
["F","E0198","Frederick S. Macomber Research"]
["F","E0199","Holloway Endowment Fund"]
["F","E0200","ADELE DAVIS SCHLRSHP ENDOWMENT"]
["F","E0201","HERMAN W. WEDDLE SCHOLARSHIP"]
["F","E0202","E Warner Memorial Endowment"]
["F","E0202","ELIZABETH C WARNER MEMRL FUND"]
["F","E0203","ROBERT AND EDITH COCHRAN CHAIR"]
["F","E0204","DOROTHY JONES ENDOWMENT"]
["F","E0205","PRES ASSOC LIFE MEMBRSHP ENDOW"]
["F","E0206","ROBERT W. BENNETT ENDOWMENT"]
["F","E0207","BERTANO ENDOWMENT"]
["F","E0208","PAVLETICH SCHOLAR ENDOWMENT"]
["F","E0209","FACT Endownment Fund"]
["F","E0210","Leo J Pierucci Endo Schol Fund"]
["F","E0211","Homer and Evangeline Myles End"]
["F","E0211","Homer and Evangeline Myles End"]
["F","E0212","Richard Graves Memorial Endowm"]
["F","E0213","Philip Ohe Mem Jazz Schol End"]
["F","E0214","Adolph W & Chris Edda Schwartz"]
["F","E0215","Stephen Bufton Memorial Ed Fd"]
["F","E0216","Mary S Ming Memorial Schol End"]
["F","E0217","Jan Zaninovich End Schol"]
["F","E0218","Sasaki Endowment Fund"]
["F","E0219","Shirley Fiddler Nsng Sch Endow"]
["F","E0220","Claude Fiddler Stu Res Sch End"]
["F","E0221","Channing & Kullijian Endow/Art"]
["F","E0222","Warner and Pamela Williams End"]
["F","E0223","Dr. Nancy Cook End/Sch Fund"]
["F","E0224","Bob Black Memorial Endowment"]
["F","E1111","Common Funds - Due To/From"]
["F","E2222","First Allied - Due To/From"]
["F","ED001","HECO-CLSRM OFFICE-PPWDC"]
["F","ED002","98 MINOR CAP-623058"]
["F","ED003","98 MINOR CAP -623083"]
["F","ED003","98 MINOR CAP -623083"]
["F","ED004","98 MINOR CAP-623084 TELCM INF"]
["F","ED004","98 MINOR CAP-623084 TELCM INF"]
["F","ED005","98 MINOR CAP-622005 EQ COB III"]
["F","ED006","98 MINOR CAP-622006 TELCOM"]
["F","ED006","98 MINOR CAP-622006 TELCOM"]
["F","ED006","98 MINOR CAP-622006 TELCOM"]
["F","ED006","98 MINOR CAP-622006 TELCOM"]
["F","ED007","02 MINOR CAP"]
["F","ED008","03  MINOR CAP"]
["F","ED009","03 Major Cap-Telcm Infra"]
["F","ED009","03 Major Cap-Telcm Infra"]
["F","ED010","04 HECOBF MATH & COMPUTER SCI"]
["F","ED010","04 HECOBF MATH & COMPUTER SCI"]
["F","ED011","2004 MINOR CAPITAL OUTLAY"]
["F","ED011","2004 MINOR CAPITAL OUTLAY"]
["F","ED012","2002 HECO BOND FUND"]
["F","ED013","04 MIN CAP-BOILER PROJECT"]
["F","ED014","05 MIN CAP CONSTR. PROJECTS"]
["F","ED015","05 MC PWC RENEWAL PROJ"]
["F","ED015","05 MC PWC RENEWAL PROJ"]
["F","ED016","04MC_NURSING_RENOVATE"]
["F","ED017","PWC-PE Bldg Roof Rplmt Phse II"]
["F","ED018","06 Minor Capital Outlay"]
["F","ED019","06 MIN CAP ENERGY INCENTIVE"]
["F","ED020","06 Cap-Nursing Renovation Eq"]
["F","ED021","06 Cap-Math &Computer Sci Eq"]
["F","ED022","06 Capital Outlay-Boiler Replc"]
["F","ED023","06 Cap-Art Ctr Satellite Plnt"]
["F","ED024","98 MINOR CAPITAL OUTLAY"]
["F","ED025","2002 HECOBF-ADA MINOR CAP"]
["J","FA0001","FA IRA-WOMEN'S CHORUS"]
["J","FA0002","FA IRA-THEATREFEST"]
["J","FA0003","FA IRA-INSTRUMENTAL JAZZ"]
["J","FA0004","FA IRA-COMM CONCRT BAND"]
["J","FA0005","FA IRA-JAZZ & OPERA"]
["J","FA0006","FA IRA-MUSIC INSTRUMENT R&M"]
["J","FA0007","FA IRA-JAZZ & CONT ENSEMBLE"]
["J","FA0008","FA IRA-TODD MADIGAN GALLERY"]
["J","FA0009","FA IRA-CHORAL"]
["F","FA001","DBMRF-HSG Maint. & Repair"]
["F","FA001","DBMRF-HSG Maint. & Repair"]
["F","FA001","DBMRF-HSG Maint. & Repair"]
["J","FA0010","FA IRA- OVERHEAD"]
["F","FA002","DBER-AUX.FACIL HLTH"]
["F","FA003","DBMRF-CAMPUS UNION"]
["F","FAR01","DBMRF-HSG Deferred Maint Rev"]
["F","FAR01","DBMRF-HSG Deferred Maint Rev"]
["F","FAR01","DBMRF-HSG Deferred Maint Rev"]
["F","FAR01","DBMRF-HSG Deferred Maint Rev"]
["F","FAR02","DBMRF-HSG-04SMIF"]
["F","FAR02","DBMRF-HSG-05SMIF"]
["F","FAR02","DBMRF-HSG-06SMIF"]
["F","FAR03","DBU-CAMPUS UNION-04SMIF"]
["F","FAR03","DBU-CAMPUS UNION-05 SMIF"]
["F","FAR03","DBU-CAMPUS UNION-06 SMIF"]
["F","FAR03","DBU-CAMPUS UNION-06 SMIF"]
["F","FAR04","DBMRF_CAMPUS UNION_REV"]
["F","FAR04","DBMRF_CAMPUS UNION_REV"]
["F","FD000","General"]
["F","FD001","Graduate Studies & Research"]
["F","FD002","Post Retirement Benefit Fund"]
["F","FD401","ETS"]
["F","FR001","FOUNDATION FOR RESEARCH"]
["D","FR0101","Regular Instruction"]
["D","FR0102","ESCHEAT OF UNCLAIMED"]
["D","FR0103","CEE-SPECIAL SESSION"]
["D","FR0104","CEE-EXTENSION INSTR"]
["D","FR0105","KEMP"]
["D","FR0201","RES & CREATIVE,ACTVT"]
["D","FR0301","GFS-COMMUNITY SERV"]
["D","FR0401","GFS-LIBRARIES"]
["D","FR0403","GFS-AUDIO VIS-TV-MEDIA"]
["D","FR0404","GFS-COMPUTING SUPPRT"]
["D","FR0405","ANCILIARY SUPPORT"]
["D","FR0406","ACAD ADMIN"]
["D","FR0407","FAC DEV"]
["D","FR0409","Academic Support Info Technolo"]
["D","FR0501","GFS-STU SVC ADMIN"]
["D","FR0502","GFS-SOCIAL/CUL-PE"]
["D","FR0503","GFS-CNSL-PLCMT-TST"]
["D","FR0504","FINANCIAL AID ADMIN"]
["D","FR0505","GFS-ADMISSION/RECORD"]
["D","FR0507","GFS-HEALTH SERVICES"]
["D","FR0509","Student Admissions"]
["D","FR0510","Student Records"]
["D","FR0601","GFS-EXECUTIVE MGMT"]
["D","FR0602","GFS-CENTRAL FIN OPER"]
["D","FR0603","G.A.S."]
["D","FR0603","G.A.S."]
["D","FR0604","ADMIN COMP SUPPORT"]
["D","FR0605","PUB RELATIONS/DEVLP"]
["D","FR0606","General Administration"]
["D","FR0607","Admin Information Technology"]
["D","FR0701","PHYSICAL PLANT"]
["D","FR0702","GFS-BUILDINGS MAINT"]
["D","FR0703","GFS-CUSTODIAL SERV"]
["D","FR0704","GFS-UTILITY PLANT"]
["D","FR0705","LANDSCAPE/GRNDS MAIN"]
["D","FR0706","GFS-PLANT EXPAN MOD"]
["D","FR0707","Security & Safety"]
["D","FR0708","Logistical Services"]
["D","FR0801","GRANTS & SCHOLARSHIP"]
["D","FR0903","GFS-REV TRANSFERS"]
["D","FR1100","REIMB ACTIV"]
["D","FR2001","DRH-AUX ENTERPRISES"]
["D","FR3001","CEE-INSTITUTIONAL OP"]
["D","FR3002","I/O FFRDC'S"]
["D","FR5000","REVENUE"]
["D","FR5001","HFI-REV TFRS IN-LGL"]
["D","FR9001","GFS-PROV UNALLO ITEM"]
["F","FS040","Cafe"]
["F","FS041","Dorms"]
["F","FS042","Vending"]
["F","FS043","Housing"]
["J","G10102","HEAD START-HISPANIC SERVT INST"]
["J","G10103","ONR-SCANNING ELECTRON"]
["J","G10106","McNAIR GRANT"]
["J","G10109","SUNY NSF SUBCONTRACT"]
["J","G10111","SUNY NST-SUBCONTRACT #2"]
["J","G10122","CALLI"]
["J","G10129","NURSING TRAINEESHIPS"]
["J","G10135","DOE NURSG TRAINING EQUIP"]
["J","G10137","UMAP"]
["J","G10138","HSIAC PROJECT(HUD CHAMPIONS)"]
["J","G10140","NSF GRANT"]
["J","G10158","CAMP"]
["J","G10159","NATL ENDOWMENT FOR HUMANITIES"]
["J","G10163","HIGH SCHL EQUIVALENCY PROGRM"]
["J","G10224","TITLE V-STRENGTHENING"]
["J","G10234","ALLIANCE FOR MINORITY PARTCPTN"]
["J","G10255","TITLE V-BC COLLABORATIVE"]
["J","G10262","STAAR"]
["J","G10263","EDUCATIONAL TALENT SEARCH"]
["J","G10279","CALSWEC TITLE IV-E"]
["J","G10281","MENTAL HEALTH STIPEND"]
["J","G10297","GEAR UP"]
["J","G10301","CAREER BEGINNINGS"]
["J","G10320","Pipeline to High Tech Profssns"]
["J","G10325","MARC*U*STAR"]
["J","G10341","Core Eval/Harper Lake Basin"]
["J","G10344","SLICC NCLB 5"]
["J","G10345","SLICC NCLB S"]
["J","G10346","Craters of the Moon"]
["J","G10347","Nat'l Parks Chaparral Regen"]
["J","G10352","NCLBS-CMP"]
["J","G10354","Americorps VISTA"]
["J","G10356","Shoshone Class I Analysis"]
["J","G10357","Sho-Ban Ethnographic Study"]
["J","G10358","EnACT"]
["J","G10360","Assuring Quality Care"]
["J","G10363","NCLB 5 CAL POLY SLO/CSUB MATH"]
["J","G10365","NCLBX - CMP"]
["J","G10366","LSAMP Scholars Program"]
["J","G10368","Migrant Book Assistance Prog"]
["J","G10370","NCLB X - CFLP"]
["J","G10372","CAREER Grant"]
["J","G10374","SLICC - NCLB 6"]
["J","G10375","Great Valley MSP Start"]
["J","G10377","Noyce Scholarship Program"]
["J","G10378","CSUB RNSC Expansion Project"]
["J","G20102","ANCE STUDENTS(SONG-BROWN)"]
["J","G20103","ANCE FACULTY(SONG-BROWN)"]
["J","G20104","TRANSITION TO TEACHING"]
["J","G20105","FT. TEJON PLANT STUDY"]
["J","G20106","Comp Teacher Ed Institute"]
["J","G20107","CAL POLY/CSMP NCLB #2"]
["J","G20108","NCLB3-CMP BAKERSFIELD MATH"]
["J","G20116","21ST CENTURY-A COMMUNITY LEARN"]
["J","G20118","21ST CENTURY-B COMMUNITY LEARN"]
["J","G20160","RIAP"]
["J","G20175","ALCOHOL TRAFFIC & SAFETY GRANT"]
["J","G20276","CALIF MATHEMATICS PROJECT"]
["J","G20277","MATHEMATICS PROJECT 05-CSMP"]
["J","G20313","SONG-BROWN OSHPD #2"]
["J","G20317","IC-CAE INTELLIGENCE COMMUNITY"]
["J","G20322","NCLB4 CMP"]
["J","G20332","EAP Early Assessment Program"]
["J","G20333","OSHPD#3 BSN PROGRAM"]
["J","G20342","RIAP"]
["J","G20349","Allensworth"]
["J","G20350","CV Podcasts"]
["J","G20351","CSUPERB-Ribosome Heterogeneity"]
["J","G20355","Eval of Hybrid Zone Gambelia"]
["J","G20364","DHF Assessment Project"]
["J","G20367","CSU College Corps (CCC)"]
["J","G30123","COTTRELL COLLEGE AWARD"]
["J","G30124","BASAL LINEAGES OF THE PHORIDAE"]
["J","G30213","WEILL FDTN CAREER BEGINNINGS"]
["J","G30266","LOKERN GRAZING STUDY"]
["J","G30292","CFLP - SLICC"]
["J","G30293","SLICC-CSMP"]
["J","G30310","KERN WATER BANK AUTHORITY"]
["J","G30312","ROWDY CHOICES"]
["J","G30316","MTI MATH TEACHER INITIATIVE"]
["J","G30319","CA MATH PROJECT  SUPPORT TCHRS"]
["J","G30327","SLICC-NCLB 4"]
["J","G30334","Enhanced Internship Grant"]
["J","G30336","Paraprofessional Teacher Arvin"]
["J","G30337","Teacher Quality Enhancement"]
["J","G30338","TCOE Teacher Transcript Eval."]
["J","G30340","Palmdale Internship Program"]
["J","G30373","HSU Isle of Man"]
["J","G30376","KCSOS CAFS PTTP"]
["J","G40101","KCSOS INTERN TEACHING PROJ"]
["J","G40102","Intern Teaching 06-07"]
["J","G40105","FINANCIAL FITNESS FOR LIFE"]
["J","G40107","SAN JOAQUIN HEALTH CONSORTIUM"]
["J","G40110","EXPLRTN & PLANNING NURSG LDDR"]
["J","G40113","JOB SOURCE PROGRAM OF KC"]
["J","G40125","BHC LICENSED CHILD CARE"]
["J","G40162","CITY OF TEHACHAPI"]
["J","G40168","KERN COUNTY PROBATION DEPT"]
["J","G40180","RSD - QUALIFIED TEACH INSTRCT"]
["J","G40196","UKRF - NAEP"]
["J","G40197","HIGH RISK YOUTH AUTHORIY"]
["J","G40198","Preparing Future Faculty"]
["J","G40202","TOBACCO CESSATION"]
["J","G40235","OWENS VALLEY CAREER DEVELOPMNT"]
["J","G40237","ECE APLLE"]
["J","G40239","FIRST 5-PROP 10 TOBACCO EVAL"]
["J","G40243","KHSD - QUALIFIED TEACH INSTR"]
["J","G40286","FINDING THE MISSING LINK"]
["J","G40287","MIGRANT ED REGION V-WASCO"]
["J","G40289","ENGLISH LEARNER SVCS-REG 21"]
["J","G40296","The Mellon Project"]
["J","G40314","DUEL IN THE DESERT"]
["J","G40315","FOSTER YOUTH SVCS TUTOR CONN"]
["J","G40318","FINANCIAL FITNESS FOR LIFE II"]
["J","G40323","Chevron Revs-Up"]
["J","G40324","Enterprise College"]
["J","G40326","FIRST FIVE KERN AMENDMENT"]
["J","G40328","ISY CAREER BEGINNINGS"]
["J","G40329","OSY CAREER BEGINNINGS"]
["J","G40330","OVCB CAREER BEGINNINGS"]
["J","G40331","OVCLI CAREER BEGINNINGS"]
["J","G40343","Weill Program Evaluation"]
["J","G40348","Saver Automotive Project"]
["J","G40353","GIFT/HPPAE"]
["J","G40359","Raising a Reader Grant"]
["J","G40361","The Women's & Girls' Fund"]
["J","G40362","Volcanic Ashes Kern River Form"]
["J","G40369","BCSD Saturdau Academies"]
["J","G40371","Evaluation Oil Seeps in Ojai"]
["J","G50139","NATNL YOUTH SPORTS PRG 2005"]
["J","G50140","KCSC ASIAN LANGUAGE OUTREACH"]
["F","GA001","DRF-HSG Housing Expenditures"]
["F","GAR01","DRF-HSG Housing Revenue"]
["F","GAR01","DRF-HSG Housing Revenue"]
["F","GAR01","DRF-HSG Housing Revenue"]
["F","GAR01","DRF-HSG Housing Revenue"]
["F","GAR02","DRF-HSG-04 CASH REMITS"]
["F","GAR02","DRF-HSG-05SMIF"]
["F","GAR02","DRF-HSG-06SMIF"]
["F","GAR03","DRF-HSG-04SMIF"]
["J","GR0001","AMP Matching"]
["J","GR0002","KEMP"]
["J","GR0003","Core in Business Project"]
["J","GR0004","KEP"]
["J","GR0005","UC Merced Tutors"]
["J","GR0006","AMP Grant"]
["J","GR0007","Cesar Chavez Grant"]
["J","GR0008","WRCCC Grant"]
["J","GR0009","California WorkStudy program"]
["J","GR0010","CSL-Learn and Serve"]
["J","GR0011","CAPP Grant (RSC Proj)"]
["J","GR0012","Math Workshop Grant"]
["J","GR0013","People & Other Animals"]
["J","GR0014","Across Boundaries"]
["J","GR0015","Lamont Reading Grant"]
["J","GR0016","Homeland Security"]
["J","GR0018","Communications Plan"]
["J","GR0019","Substance Abuse Program"]
["J","GR0020","Early Assesment Program"]
["J","GR0021","Reading Inst.for Acad. Prep."]
["J","GR0022","GEAR-UP GRANT"]
["J","GR0024","LEARN & SERVE GRANT"]
["F","GR401","Grants"]
["F","HA001","DRF-Campus Union Expenditures"]
["F","HA001","DRF-Campus Union Expenditures"]
["F","HA002","DRF-SU FITNESS/REC CENTER"]
["F","HA002","DRF-SU FITNESS/REC CENTER"]
["F","HA002","DRF-SU FITNESS/REC CENTER"]
["F","HA002","DRF-SU FITNESS/REC CENTER"]
["F","HA005","DCF-Stud Recreation Ctr (old)"]
["F","HA006","DCF-Student Recreation Center"]
["F","HAR01","DRF-Campus Union Revenue"]
["F","HAR01","DRF-Campus Union Revenue"]
["F","HAR01","DRF-Campus Union Revenue"]
["F","HAR01","DRF-Campus Union Revenue"]
["F","HAR02","DRF-03 CAMPUS UNION 03 SMIF"]
["F","HAR02","DRF-05 CAMPUS UNION 05 SMIF"]
["F","HAR02","DRF-06 CAMPUS UNION 06 SMIF"]
["F","HAR02","DRF-06 CAMPUS UNION 06 SMIF"]
["F","HAR03","DRF-CAMPUS UNION 04 SMIF"]
["F","HAR03","DRF-CAMPUS UNION 04 SMIF"]
["F","HAR04","DRF-CAMPUS UNION 04CR"]
["F","HAR04","DRF-CAMPUS UNION 04CR"]
["F","HAR05","SU-FITNESS/REC CTR REFEREN"]
["F","HAR05","SU-FITNESS/REC CTR REFEREN"]
["F","HAR05","SU-FITNESS/REC CTR REFEREN"]
["F","HAR06","DRF_CMP_UNION_REC_CNTR_SMIF"]
["F","HAR06","DRF_CMP_UNION_REC_CNTR_SMIF"]
["F","HAR06","DRF_CMP_UNION_REC_CNTR_SMIF"]
["F","IA001","FRF-Facilities Expenditures"]
["F","IA001","FRF-Facilities Expenditures"]
["F","IA002","FRF-AUX ENTER-HLTH SERV FE"]
["F","IAR01","FRF-Facility Fee Revenue"]
["F","IAR01","FRF-Facility Fee Rev-05SMIF"]
["F","IAR01","FRF-Facility Fee Rev-06SMIF"]
["F","IAR02","FRF-AUX-HSF REV"]
["F","IAR02","FRF-AUX-HSF 05SMIF"]
["F","IAR02","FRF-AUX-HSF 06SMIF"]
["F","IAR03","FRF-AUX-HSF-04SMIF"]
["J","IR0001","IRA-TODD MADIGAN GALRY"]
["J","IR0002","IRA-SUMM BRIDGE"]
["J","IR0003","IRA-ORPHEUS"]
["J","IR0004","IRA-GRAD, RSRCH & SPONS  TVL"]
["J","IR0005","IRA-MODEL UN"]
["J","IR0006","IRA-SMART GRAD STU TVL"]
["J","IR0007","IRA-MEXICAN CULTURE DANC"]
["J","IR0008","IRA-PROM AWARNS CUL DIVR"]
["J","IR0009","IRA-CLUB LITERIO HERMES"]
["J","IR0010","IIRA-RA-OVERHEAD"]
["J","IR0011","IIRA-NTRAMURAL SPORTS"]
["J","IR0012","IRA-WOMEN'S DAY"]
["J","IR0013","IRA-RUNNER"]
["J","IR0014","IIRA-RA RESERVE"]
["J","IR0015","IRA-CINCO DE MAYO"]
["J","IR0016","IRA-MARIACHI MUSIC"]
["J","IR0017","IRA-FACT"]
["J","IR0018","IRA-NAT COL SALES CM"]
["J","IR0019","IRA-STU CNCL EXP CHL"]
["J","IR0020","IRA-THEATRE-"]
["J","IR0021","IRA-ADV TARGET TUTORING"]
["J","IR0022","IRA-CAMPUS & STWDE RSRCH"]
["J","IR0023","IRA-SOC CONNECTIONS"]
["J","IR0024","IRA-ENV STUDIES/FACT"]
["J","IR0025","IRA-STUDENT RSRCH SCHOLARS"]
["J","IR0026","IRA-WESTERN PSYCH CONVENTION"]
["J","IR0027","IRA-PHIL & RS UNDERGRAD CONF"]
["J","IR0028","IRA-NATURAL SCIENCE DOCENT PRO"]
["J","IR0029","IRA-AWARENESS OF CULTURAL ORIG"]
["J","IR0030","HR Games"]
["J","IR0031","Nursing Lead.&Professionalism"]
["J","IR0032","Society of Lead. & Succ, IRA"]
["J","IR0033","The Runner Reader Program"]
["F","JA001","PFF-Parking Fines & Forf-Expen"]
["F","JA001","PFF-Parking Fines & Forf-Expen"]
["F","JA001","PFF-Parking Fines & Forf-Expen"]
["F","JA002","PRF-Parking Expenditures"]
["F","JA002","PRF-Parking Expenditures"]
["F","JA002","PRF-Parking Expenditures"]
["F","JA003","PRF-MAINT & EQUIP"]
["F","JAR01","PFF-Parking Fines & Forf-Reven"]
["F","JAR01","PFF-Parkg Fines & Forf-05SMIF"]
["F","JAR01","PFF-Parkg Fines & Forf-05SMIF"]
["F","JAR02","PRF-Parking Revenue"]
["F","JAR02","PRF-Parking Revenue"]
["F","JAR02","PRF-Parking CASH REMITS"]
["F","JAR03","PRF-PARKING ESCHEAT UNCL"]
["F","JAR03","PRF-PARKING 05ESCHEAT UNCL"]
["F","JAR04","PRF-PARKING 05SMIF"]
["F","JAR04","PRF-PARKING SMIF"]
["F","JAR05","PRF-PARKING REVENUE"]
["F","KA001","SLF-LOTTERY FUND- YE ROLL"]
["F","KA001","SLF-LOTTERY FUND- YE ROLL"]
["F","KA002","SLF-FISCAL ADMIN"]
["F","KA002","SLF-FISCAL ADMIN"]
["F","KA003","SLF-TEACHER RECRUITMENT"]
["F","KA003","SLF-TEACHER RECRUITMENT"]
["F","KA004","PRE DOCTORAL"]
["F","KA005","INSTRUCITONAL EQ-CBP"]
["F","KA005","INSTRUCITONAL EQ-CBP"]
["F","KA005","INSTRUCITONAL EQ-CBP"]
["F","KA006","EDUC.EQ -FACULTY MENTORING"]
["F","KA007","FUTURE SCHOLARS-CBP"]
["F","KA007","FUTURE SCHOLARS-CBP"]
["F","KA008","PRES.MATCHING SCHOL-CBP"]
["F","KA008","PRES.MATCHING SCHOL-CBP"]
["F","KA009","CAMPUS BASED PROGRAMS"]
["F","KA010","EDUC.EQ-HIGH SCHOOL"]
["F","KA010","EDUC.EQ-HIGH SCHOOL"]
["F","KA010","EDUC.EQ-HIGH SCHOOL"]
["F","KA011","EDUC.EQ-OUTREACH"]
["F","KA011","EDUC.EQ-OUTREACH"]
["F","KA012","RES.HALL DATA-LOAN"]
["F","KA013","SLF-ADA COMPLIANCE"]
["F","KAR01","SLF-REVENUE OTHER"]
["F","KAR01","SLF-REVENUE OTHER"]
["F","KAR04","2004-SLF-REVENUE OTHER"]
["F","LA001","UNCLAIMED MONEY"]
["F","LD010","Leadership Dev. Center"]
["F","MA001","SUPP EDUC OPPOR GRANT"]
["F","MB001","PERKINS LOAN FUND"]
["F","MC100","Public Service Institute"]
["F","MC101","Calif  Well Sample Repository"]
["F","MC102","S San Joaquin Information Ctr."]
["F","MC102","Archaeological Info Center"]
["F","MC103","Applied Research Center"]
["F","MC104","Politics Research Center"]
["F","MC105","Nursing Ctr for Adv Rsrch/Eval"]
["F","MC106","BREC Buss Research & Ed Center"]
["F","MC333","ARCHAEOLOGICAL STUDIES"]
["F","MD001","NURSING STUDENT LOAN FUND"]
["F","ME001","PELL GRANT PROGRAM"]
["F","ME002","ACADEMIC COMPETITIVENESS GRNT"]
["F","ME002","ACADEMIC COMPETITIVENESS GRNT"]
["F","ME003","SMART GRANT"]
["F","ME003","SMART GRANT"]
["F","ME902","Old Academic Competive Grant"]
["F","MF001","FED COLLEGE WORK STUDY"]
["F","MG001","FED DIR S/F LOAN SUB"]
["F","MG002","FED DIR S/F LOAN-UNSUB"]
["F","MG003","FED DIR S/F LOAN PLUS"]
["F","MH001","STATE EDUC OPPOR GRANT"]
["F","MI001","STATE UNIV GRANT"]
["F","MJ001","CAL GRANT PROGRAM"]
["F","MK001","TF-MISC. FINANCIAL AID"]
["F","MK002","TF-MFA-ROBERT BYRD"]
["F","MK003","TF-MFA-FIN AID OVERPAYMENTS"]
["F","ML001","MISC FIN AID-SDS"]
["F","ML002","GRAD FELLOWSHIP"]
["F","ML002","GRAD FELLOWSHIP"]
["F","ML003","HAM & RYE SCHOLARSHIP"]
["F","ML003","HAM & RYE SCHOLARSHIP"]
["F","ML004","FOUNDATION SCHOL. CLEARING"]
["F","ML004","FOUNDATION SCHOL. CLEARING"]
["F","ML005","MUSICA DA CAMERA SCHOLARSHIP"]
["F","ML005","MUSICA DA CAMERA SCHOLARSHIP"]
["F","ML902","(OLD) Grad Fellowship"]
["F","ML903","(OLD) Ham & Rye Scholarship"]
["F","ML904","(OLD) Foundation Scholar Clear"]
["F","ML905","Musica da Camera Scholarship"]
["F","MLA01","TF-Athletic Scholarship Cleari"]
["F","MLF01","TF-Foundation Scholarship Clea"]
["F","MM001","TF-CERF- Extended University"]
["F","MM002","TF-CERF- EU Proj.Develop"]
["F","MM002","TF-CERF- EU Proj.Develop"]
["F","MM003","TF-CERF-EU-SMIF"]
["F","MM003","TF-CERF-EU-SMIF"]
["F","MM004","TF-CERF-04SMIF"]
["F","MM004","TF-CERF-05SMIF"]
["F","MM005","TF-CERF-04 CASH REMITS"]
["F","MM005","TF-CERF-05 CASH REMITS"]
["F","MM006","TF-04CANCELLED WARRANTS"]
["F","MM006","TF-05CANCELLED WARRANTS"]
["F","MM007","TF Open University"]
["F","MM008","OLLI - Extended Univeristy"]
["F","MM009","Cal-SOAP Consortium"]
["F","MMC01","TF-CERF- EU construction"]
["F","MME01","CERF-CONT EDUC"]
["F","MME02","CERF-CE PROJECT DEVELOP"]
["F","MME03","CERF-CE REVENUE"]
["F","MME04","CERF-CE CONSTRUCTION"]
["F","MMM01","TF-CEM-Maintenance"]
["F","MN001","TF-FRF-Health Services Fees"]
["F","MN001","TF-FRF-Health Services Fees"]
["F","MN002","TF-HEALTH SVCS-05 CASH REMITS"]
["F","MN002","TF-HEALTH SVCS-04 CASH REMITS"]
["F","MN003","Student Health Svcs Reserve"]
["F","MN999","(OLD) Health Services Fee"]
["F","MO001","TF-FRF-Health Facilities Fees"]
["F","MOR01","FRF-Facility Fee Rev-06SMIF"]
["F","MP001","TF-FHC-Auxiliary Enterprises"]
["F","MP001","TF-Campus Union Operations"]
["F","MP002","TF-Campus Union Maint and Rep"]
["F","MP003","TF-Student Union Recreation Cr"]
["F","MP004","SRC AVC Referendum"]
["F","MPR01","DBU-CAMPUS UNION-06 SMIF"]
["F","MPR02","DRF-06 CAMPUS UNION 06 SMIF"]
["F","MQ001","TF-FHM-Auxiliary Enterprises"]
["F","MR001","TF-ASI"]
["F","MR002","TF-ASI ATHLETIC REF"]
["F","MR002","TF-ASI ATHLETIC REF"]
["F","MR002","TF-ASI ATHLETIC REF"]
["F","MR003","TF-ASI CHILDRENS CTR REF"]
["F","MR003","TF-ASI CHILDRENS CTR REF"]
["F","MR003","TF-ASI CHILDRENS CTR REF"]
["F","MR004","ASI-ATH DIV 1 REFERENDUM"]
["F","MR005","ASI-CLUBS REFERENDUM"]
["F","MR006","ASI-ANTELOPE VALLEY REFEREN"]
["F","MRATH","ASB-DIV QI ATH REFERENDUM"]
["F","MRAVC","ASB-AVC STU ACTIV PROJ-REF"]
["F","MRCLB","ASB-CLUBS & ORGAN. REF"]
["F","MRCMP","ASI FEES"]
["F","MSA02","TF-IRA Athletics Ref"]
["F","MSF03","TF-IRA Fine Art-Ref"]
["F","MSI01","TIR-INSTR REL ACTVTY"]
["F","MT001","TF-C&G-MATH WORKSHOP"]
["F","MT002","TF-C&G-ACROSS BOUNDARIES"]
["F","MT003","TF-C&G-PEOPLE & OTHER ANIMALS"]
["F","MT004","TF-C&G-LAMONT READING GRANT"]
["F","MT005","TF-C&G RSC PARTNERSHIP"]
["F","MT006","TF-C&G CESAR CHAVEZ GRANT"]
["F","MT007","TF-C&G AMP GRANT"]
["F","MT008","HOMELAND SECURITY"]
["F","MT009","TF-CME LEARN & SERVE"]
["F","MT011","Politics Research Center Trust"]
["F","MT015","TF-GRASP"]
["F","MT020","GRANTS"]
["F","MT021","CAMP"]
["F","MT022","TITLE V - STRENGTHENING"]
["F","MT023","STAAR"]
["F","MT024","Talent Search"]
["F","MT025","CALSWEC"]
["F","MT026","Career Beginnings"]
["F","MT028","Chevron Revs-Up"]
["F","MT029","CSUB Nursing Educ Partner"]
["F","MT030","McNair Program"]
["F","MT031","National Children's Study"]
["F","MT032","CCRAA - HSI"]
["F","MU001","SFT-ASI FEES"]
["F","MU002","SFT-Lab Breakage Fee"]
["F","MU002","SFT-Lab Breakage Fee"]
["F","MU003","SFT-Augmented Medical Svcs"]
["F","MU003","SFT-Augmented Medical Svcs"]
["F","MU004","SFT-Music Practice Room Key De"]
["F","MU004","SFT-Music Practice Room Key De"]
["F","MU005","SFT-Grad Research"]
["F","MU006","SFT-Biology Lab Fee"]
["F","MU007","SFT-Athletic Facility Rental"]
["F","MU007","MT-Athletic Facility Rental"]
["F","MU008","SFT-ID Fees"]
["F","MU008","SFT-ID Fees"]
["F","MU008","SFT-ID Fees"]
["F","MU009","SFT-Writing Course Material Fe"]
["F","MU010","SFT-SouthWest Little League"]
["F","MU010","MT-SouthWest Little League"]
["F","MU011","SFT-Soccer Field Rental"]
["F","MU011","MT-Soccer Field Rental"]
["F","MU012","SFT-Amphitheatre Rental"]
["F","MU012","MT-Amphitheatre Rental"]
["F","MU013","SFT-Augmented Pharmacy Service"]
["F","MU013","SFT-Augmented Pharmacy Service"]
["F","MU014","SFT-Math Material Use Fee"]
["F","MU014","SFT-Math Material Use Fee"]
["F","MU015","SFT-Modern Language Material F"]
["F","MU016","SFT-PE Material Fee"]
["F","MU017","SFT-Facility Rental-NON-Athlet"]
["F","MU017","MT-Facility Rental-NON-Athlet"]
["F","MU018","SFT-Biology Field Trips"]
["F","MU018","SFT-Biology Field Trips"]
["F","MU019","SFT-Geology Field Trips"]
["F","MU019","SFT-Geology Field Trips"]
["F","MU020","SFT-Art Course Material Fee"]
["F","MU020","SFT-Art Course Material Fee"]
["F","MU021","SFT-TESTING"]
["F","MU021","SFT-TESTING"]
["F","MU022","GWAR-ENGLISH"]
["F","MU022","GWAR-ENGLISH"]
["F","MU023","SFT-NEW STUDENT PROGRAM FEES"]
["F","MU023","SFT-NEW STUDENT PROGRAM FEES"]
["F","MU024","SFT-STUDY ROOM KEY DEPOSIT FEE"]
["F","MU024","SFT-STUDY ROOM KEY DEPOSIT FEE"]
["F","MU025","SFT-Computer Science Labs"]
["F","MU025","SFT-Computer Science Labs"]
["F","MU026","SFT-Thesis Binding"]
["F","MU026","SFT-Thesis Binding"]
["F","MU027","SFT-PHYSICS/GEOLOGY STOCKRM"]
["F","MU903","(OLD) Augmented Medical Svcs"]
["F","MU907","(OLD) Athletic Facility Rental"]
["F","MU908","(OLD) SFT-ID Fees"]
["F","MU910","(OLD) SouthWest Little League"]
["F","MU911","(OLD) Soccer Field Rental"]
["F","MU912","(OLD) Amphitheatre Rental"]
["F","MU913","(OLD) Augmented Pharmacy Srvcs"]
["F","MU917","(OLD) Facility Rental-NON-Ath"]
["F","MU922","(OLD) GWAR-ENGLISH"]
["F","MU999","(OLD) Student Fees Trusts"]
["F","MV001","TF-PFF-F Pkg Fines & Forfeitur"]
["F","MV001","TF-PFF-F Pkg Fines & Forfeitur"]
["F","MW001","TF-PRF-Parking Revenue-Fees"]
["F","MW001","TF-PRF-Parking Revenue-Fees"]
["F","MW002","TF-PRF-Parking CONSTRUCTION"]
["F","MX000","MT-OTHER TRUST EXPEND"]
["F","MX001","MT Library Computer Search"]
["F","MX002","MT Runner"]
["F","MX003","MT Library ILL Trust"]
["F","MX004","MT Dore Theatre"]
["F","MX005","MT Financial Aid Accounting"]
["F","MX006","MT Student Fee Deferment"]
["F","MX007","MT Business Manager Overhea"]
["F","MX008","MT Financial Aid Overhead"]
["F","MX009","MT Placement"]
["F","MX009","MT Career Development Center"]
["F","MX010","MT F&SS Indirect Agreements"]
["F","MX011","MT Information Technology L"]
["F","MX011","MT Information Technology L"]
["F","MX012","MT International Student Su"]
["F","MX013","MT Student Activities"]
["F","MX014","MT Tutoring"]
["F","MX015","MT Towell & Locker Fee"]
["F","MX016","MT Opera & Jazz Singers"]
["F","MX017","MT Post Training"]
["F","MX018","MT Media Chargebacks"]
["F","MX019","MT Musica De Camera"]
["F","MX020","MT Kern Arts Theatre"]
["F","MX021","MT Faculty & Staff Developm"]
["F","MX022","MT BREC Programs"]
["F","MX023","MT Psychology-Faculty & Sta"]
["F","MX024","MT Extended Educ Programs"]
["F","MX025","MT Enhance Fact"]
["F","MX026","MT ITV"]
["F","MX026","MT ITV"]
["F","MX026","MT ITV"]
["F","MX027","MT Parking Maintenance Rent"]
["F","MX028","MT University Counselor Tra"]
["F","MX029","MT Piano Events"]
["F","MX030","MT CSUB Singers"]
["F","MX031","MT Reid-General"]
["F","MX032","MT-Reid-Endowed Professorsh"]
["F","MX033","MT MIS Lab"]
["F","MX034","MT Runner Card"]
["F","MX035","MT Cost of Surveyed Equipme"]
["F","MX036","MT Repro/Print Shop CB"]
["F","MX036","MT Repro/Print Shop CB"]
["F","MX037","MT Copier Program"]
["F","MX038","MT Facility Work Order Char"]
["F","MX039","MT Commissions/Lease Agreem"]
["F","MX040","MT AV PROJECTS"]
["F","MX041","MT Recycled Materials"]
["F","MX041","MT Environmental Committee"]
["F","MX042","MT MST Conference"]
["F","MX043","MT Shakespeare Symposium"]
["F","MX044","MT Images of S.J. Valley"]
["F","MX045","MT Computer Repair Chargeba"]
["F","MX046","MT Lost Library Books"]
["F","MX047","MT Environ Mgmt-Facility Le"]
["F","MX048","MT Feasibility Development"]
["F","MX049","MT Bid Documents"]
["F","MX050","MT Campus Restitution"]
["F","MX051","MT Capital Projects"]
["F","MX051","MT Capital Projects"]
["F","MX052","MT Art Alumni Association"]
["F","MX053","MT Art Gallery"]
["F","MX054","MT Public Performance Theat"]
["F","MX055","MT Public Performance-Jazz"]
["F","MX056","MT Investment Account"]
["F","MX057","MT Old Choir Tour (Closed 2"]
["F","MX058","MT GESEP Conference"]
["F","MX061","MT Old Public Performance"]
["F","MX062","MT BAS EO753 OH"]
["F","MX063","COMMUNITY CONCERT BAND"]
["F","MX064","MT- UNIV. OUTREACH SVCS"]
["F","MX065","MT-CSUB ORCHESTRA"]
["F","MX066","MT-MUSICA DACAMERA SCHOLARSHIP"]
["F","MX067","MT-CONTEMPORARY MUSIC ENSEMBLE"]
["F","MX068","MT-E-LEARNING SERVICES"]
["F","MX069","MT-ATHLETICS SPECIAL EVENTS"]
["F","MX070","MT-WOMEN'S CHORUS & MUSIC ED"]
["F","MX071","MT-INTRAMURAL SPORTS"]
["F","MX072","MT-IKON DELETED RUNNER CARDS"]
["F","MX073","RESNICK FOUNDATION"]
["F","MX073","RESNICK FOUNDATION"]
["F","MX074","DIR ADMIN/RECORDS CONF"]
["F","MX075","TESTING OFFICERS CONF"]
["F","MX076","NSM VEHICLE USEAGE"]
["F","MX077","HSS-OSHER LIFELONG LEARNG INST"]
["F","MX078","MT-DAEDALUS AV STUDENT NEWSPPR"]
["F","MX079","MT UPD/Parking Special Events"]
["F","MX080","MT VPSA Bookstore Trust"]
["F","MX081","MT-Human Resources Trust"]
["F","MX082","MT-Foreign Language Workshops"]
["F","MX083","MT-Geology Department Trust"]
["F","MX084","MT-CSET Preparation Courses"]
["F","MX085","Telecom Service Use Fee"]
["F","MX090","Campus Dining and Catering"]
["F","MX091","Campus Dining and Catering Res"]
["F","MX092","Energy Savings"]
["F","MX093","Lee Webb Math Field Day"]
["F","MX094","Livescan Fingerprint Services"]
["F","MX095","Campus Dining&Catering-Togo's"]
["F","MX096","Student Convocation"]
["F","MX936","(OLD) MT Repro/Print Shop"]
["F","MX951","(OLD) Capital Projects Fund"]
["F","MXZZZ","(OLD) Misc Trust Funds"]
["F","MY001","TF-LEF-Lottery Education Fund"]
["F","MY001","TF-LEF-Lottery Education Fund"]
["F","MY002","TF-LEF-Lottery revenue"]
["F","MY002","TF-LEF-FISCAL ADMIN"]
["F","MY003","LEF-TEACHER RECRUITMENT"]
["F","MY004","LEF-PRE DOCTORAL"]
["F","MY005","LEF-INSTRUCTIONAL EQUIP"]
["F","MY006","LEF-ACCESS & DEV-FAC.MENTOR"]
["F","MY007","LEF-FUTURE SCHOLARS"]
["F","MY008","LEF-PRES.MATCHING SCHOLARS"]
["F","MY009","LEF-CAMPUS BASED PROGRAMS"]
["F","MY010","LEF-EDUC.EQUITY-HIGH SCHOOLL"]
["F","MY011","LEF-EDUC.EQUITY-OUTREACH"]
["F","MZ001","Housing Operations"]
["F","MZ002","Housing Maintenance and Repair"]
["F","MZ003","Housing Construction"]
["F","MZ004","Residence Hall Dining"]
["F","MZ005","Use this for next fund number"]
["F","MZ006","Housing/Residential Life Resvr"]
["F","MZ007","Residential Life & Housing Prg"]
["F","MZR01","DRF-HOUSING 2006 SMIF"]
["F","MZR02","DBMRF-HSG-06SMIF"]
["F","PA020","President's Associates"]
["J","PD0001","PDP-PROGRAM PLANNING"]
["J","PD0002","PDP-AUTO REPLACEMENT"]
["F","PE057","Intercollegiate Athletics"]
["F","PE059","Lou Galligher-Alcohol Research"]
["F","PE061","Pelletier Professor - H&SS"]
["F","PE062","California Well Sample Repos"]
["F","PE064","Agribusiness Chair"]
["F","PE065","Alumni Operational"]
["F","PE069","Moreland Athletic"]
["F","PE073","Accounting Program"]
["F","PE092","Gymnasium Seats"]
["F","PE095","Kegley Institute"]
["F","PE104","Roadrunner"]
["F","PE105","School of Education Travel"]
["F","PE117","Track & Field Endowment"]
["F","PE119","Jon Kazumi Kadda Memorial"]
["F","PE127","Annabelle Simon Cahn"]
["F","PE130","Robert Scherb Estate"]
["F","PE135","Italian Heritage Book Purchase"]
["F","PE136","H Victor Church - Well Sample"]
["F","PE139","Stiern Library Association"]
["F","PE141","Cornerstone Campaign"]
["F","PE153","Bruce Bunker Endowment"]
["F","PE154","Charlie Craig Endowment"]
["F","PE165","Campus Radio Station"]
["F","PE167","Millie Ablin Teaching Award"]
["F","PE184","Doug Davis Comp. or Perf. End."]
["F","PE186","Stiern Library Multicultural"]
["F","PE187","Flachmann Student Award Endow"]
["F","PE192","Don & Kathleen Crabtree End"]
["F","PE196","Rudy & Anne Carvajal Endowment"]
["F","PE198","Frederick S Macomber Student"]
["F","PE202","Elizabeth C Warner Memorial"]
["F","PE203","Robert & Edith Cochran Chair"]
["F","PE205","Pres Assoc Life Membership End"]
["F","PE209","FACT Endowment Fund"]
["J","PJ0001","ACCELERATED NURSING CAREER ENT"]
["J","PJ0002","PIQE"]
["J","PJ0003","NURSING PROG ADDTL FTES"]
["J","PJ0004","LOTTERY-EDU"]
["J","PJ0005","LOTTERY-HHS"]
["J","PJ0006","LOTTERY-ITS"]
["J","PJ0007","LOTTERY-LIBRARY"]
["J","PJ0008","LOTTERY-NSM"]
["J","PJ0009","LOTTERY-BPA"]
["J","PJ0010","CO-OFA&S TRAV & EQUIP ALLOC"]
["J","PJ0011","Lottery-Enrollment Management"]
["J","PJ0012","Math/Science Teacher Initiativ"]
["J","PJ0013","CO-Outreach & Recruiting Super"]
["J","PJ0014","Univ Outreach Special Project"]
["J","PJ0015","Early Start Program"]
["J","PJ0016","Governor's Call To Service"]
["J","PJ0018","ATI (ADA Compliance Project)"]
["J","PJ0019","National Student Clearinghouse"]
["J","PJ0020","Summer Algebra Institute"]
["F","PL072","Dore"]
["F","PL073","CC Bldg #1 &#2"]
["F","PL074","Unrestricted Reserve Fund"]
["F","PL074","Bookstore"]
["F","PL075","Cafe"]
["F","PL076","Children Ctr"]
["F","PL077","Dorm"]
["F","PL078","Vending"]
["F","PL079","Hillman"]
["F","PL080","Library"]
["F","PL081","Campus Construction/Improve"]
["F","PL082","Library Assoc"]
["F","PL083","Tri-Venue"]
["F","PL084","Sheldon Bldg"]
["F","PL085","BPA Building"]
["F","PL086","One Card - IKON"]
["F","PL087","Chan Tri-Plex"]
["F","PL088","Health and Fitness Center"]
["F","PL089","Antelope Valley Ikon Vending"]
["F","PL090","Unrestricted Reserve Fund"]
["F","PL091","Old Bookstore"]
["F","PL091","Operating Reserve Fund"]
["F","PL092","ATHLETIC RESERVE (ICARDO)"]
["F","PL093","Library Computer Loan"]
["F","PL093","Library Computer Loan"]
["F","PL094","Blackbaud Raisers Edge - UA"]
["F","PL095","Batey Reserve Account"]
["F","PL096","Baseball Training&Playing Fac"]
["F","PL096","Baseball Practice Facility"]
["F","PL097","Dean Gay Estate"]
["F","PL098","Baseball Trng. & Playing Fac."]
["F","PL099","Planned Future Operations"]
["F","PL100","Capital Replacements"]
["F","PL101","Tree Fnd-Campus Beautification"]
["F","PL102","BB Special Projects"]
["J","PR1004","TELECOM INFRA"]
["J","PR1100","Galvaized Pipe Bldgs. 7, 8, 9"]
["J","PR1101","Firewall Construction"]
["J","PR1102","CHW Coils Replacement Upgrade"]
["J","PR1103","Installation of Grease Trap"]
["J","PR1104","HVAC Replacement"]
["J","PR1105","Emergency PA System"]
["J","PR1106","Maintenance Mechanic"]
["J","PR1107","Cooling New Weight Room"]
["J","PR1108","Overhead"]
["J","PR1109","(ALC) for Dore Theater"]
["J","PR1110","Temp. sensors for (CWR)"]
["J","PR1111","Bldg39 Level Controls Dore Tht"]
["J","PR1112","Housing Commons"]
["J","PR1113","Ext Walkway Light Fixtures"]
["J","PR1114","Telecomm Infrastructure Proj"]
["J","PR1115","Campus Master Plan"]
["J","PR1116","Concrete Daycare Ctr. Storage"]
["J","PR1117","Resurface Red Brick Road"]
["J","PR1118","Parking Lot B, C, H Resurface"]
["J","PR1119","AG Science Lab Remodel"]
["J","PR1120","Green House"]
["J","PR1121","Molecular & Cell Biology Lab"]
["J","PR1122","Chemistry Lab"]
["J","PR1123","Baseball Field Road"]
["J","PR2005","ADM OFF-REM DOOR"]
["J","PR3034","TELCM INTER MEDIA"]
["J","PR3038","TELECOM INFRASTRUCTURE"]
["J","PR4019","MATH & COMPUTER SCIENCE BLDG"]
["J","PR4021","CSU/UC ENERGY CONST. PROJECT"]
["J","PR4022","HUMANITIES FEASIBILITY STUDY"]
["J","PR4029","REPLACEMENT LOT-PKG LOT E"]
["J","PR4050","SEWER EXPSN TO CAMINO MEDIA"]
["J","PR5001","CESMEA ENERGY INCENTIVE"]
["J","PR5003","RECREATION CENTER"]
["J","PR5008","OLD GYM ROOF & HVAC"]
["J","PR5010","STUDENT HOUSING"]
["J","PR5015","Retrofit Pond Filter System"]
["J","PR6001","REPAIR COOLING TOWER"]
["J","PR6004","REPLACE BACKFLOW DEVICES"]
["J","PR6005","TERMITE TREATMENT"]
["J","PR6006","REPLACE GALVANIZED PIPES"]
["J","PR6007","REPAIR TRIP HAZARDS"]
["J","PR6008","REMODEL ADMINISTRATION EAST"]
["J","PR6009","IRRIG REPAIR TO SOFTBALL FIELD"]
["J","PR6010","NURSING RENOVATION PROJECT"]
["J","PR6014","06-07 CAPITAL RENEWAL OLD GYM"]
["J","PR6015","HYDRONIC LEAK(BEHIND MUSIC)"]
["J","PR6017","PHONE-CHILDCARE PARKING LOT"]
["J","PR6021","ADA Doors Sci & DDH Men's RR"]
["J","PR6022","Remodel Admin E-Phase I"]
["J","PR6023","Remodel WSL-Phase II"]
["J","PR6024","DM Maint. Mechanic Chargeback"]
["J","PR6025","BOILER REPAIR"]
["J","PR6026","UPGRADE MECHANICAL BLDG 5"]
["J","PR6027","Student Services-Bldg 10"]
["J","PR6028","Runner Building-Bldg 38"]
["J","PR6029","Mod I - Roof"]
["J","PR6030","Science Stairwell - Roof"]
["J","PR6031","Parking Lot/Corp Yard Fencing"]
["J","PR7000","Cleaning of Dorm Ponds"]
["J","PR7001","Art Center & Satellite Plant"]
["J","PR7002","DDH H102 & H104 Renovation"]
["J","PR7003","Remodel DDH H103 to offices"]
["J","PR7004","Admin E Mechanical Sys Upgrade"]
["J","PR7005","Boiler Replacement"]
["J","PR7006","Solar Project (DVS PV)"]
["J","PR7007","Filter Sys Replace-Thermal"]
["J","PR7008","Galv Pipe Replacement-Bldg 1"]
["J","PR7009","Hot Water & Boiler Controls"]
["J","PR7010","Booster Fan Removal-Chiller"]
["J","PR7011","BDC Design-Boiler/Cool Tower"]
["J","PR7012","ACCOUNTING REMODEL BLDG 5"]
["J","PR7013","ADA Door Bldg 10"]
["J","PR7014","Expansion Tanks-Replacement"]
["J","PR7015","Student Union Roofing"]
["J","PR7016","Repair of Hot Water Leak-WSL"]
["J","PR7017","Baseball Practice Field"]
["J","PR7018","ADA Access"]
["J","PR7019","Remodel Cashier's Office"]
["J","PR7020","Remodel Runner Bldg 38"]
["J","PR7021","DEF MAINT-MAINT MECHANIC"]
["J","PR7022","Overhead for Def Maintenance"]
["J","PR7023","50M Pool Heater"]
["J","PR7024","Design-Water Infrastructure"]
["J","PR7025","Energy Project-Phase 2"]
["J","PR7026","GPS Clocks"]
["J","PR7027","Slurry Seal & Striping PrkgLot"]
["J","PR7028","Misc Painting Science I & II"]
["J","PR7029","Facilities Office Expansion"]
["J","PR7030","Java Coffee House Relocation"]
["J","PR7031","Irrigation at Don Hart West"]
["J","PR7032","Facilities New Pavement"]
["J","PR7033","Facilities A.C. Resurface"]
["J","PR7034","Custodial Remodel"]
["J","PR7035","HVAC Controls DDH & Library"]
["J","PR7036","Accounting Remodel Bldg5"]
["J","PR7037","New Generator for Science II"]
["J","PR8001","Level Controls, Dore Theater"]
["F","PSLN1","PeopleSoft Loan #1"]
["F","PSLN2","PeopleSoft Loan #2"]
["F","PSLN3","PeopleSoft Loan #3"]
["F","PSLN4","PeopleSoft Loan #4"]
["F","PSLN5","PeopleSoft Loan #5"]
["J","PV1000","PROVOST SPECIAL PROJECTS-STOP"]
["F","QA001","General Fixed Assets"]
["F","QB001","SPECIAL DEPOSIT FUND"]
["P","R062","REIMBURSED ACTIVITIES"]
["P","R101","RA-PARKING SECURITY"]
["P","R113","RA-CLASS SCHED COSTS"]
["P","R115","RA-MISC REIMB PROJECTS"]
["P","R118","VETERANS FEE"]
["P","R128","CHARGE CARD COSTS"]
["P","R132","ADVISING CENTER"]
["P","R132","ADVISING CENTER"]
["P","R138","MEDICAL MONITORING"]
["P","R180","VENDOR INSURANCE-EVENTS"]
["P","R181","STORES CB S&S"]
["P","R182","PRINT SHOP  CB-S&S"]
["P","R183","POSTAGE"]
["P","R184","MAIL SERVICES"]
["P","R185","COPY CARD S&S"]
["P","R186","REPROGRAPHICS-CB"]
["P","R198","WORKORDER CB S&S"]
["P","R211","RA-KEMP TUTORS"]
["P","R212","RA-UC MERCED TUTORS"]
["P","R217","BPA RELEASE TIME"]
["P","R217","BPA RELEASE TIME"]
["P","R220","AMP GRANT"]
["P","R221","NURSING FACULTY FELLOWSHIP"]
["P","R229","H&SS REL TIME"]
["P","R234","SPORTS MGMT LECTURER"]
["P","R237","NS&M RELEASE TIME"]
["P","R242","EDUC RELEASE TIME"]
["P","R247","CESAR CHAVEZ GRANT"]
["P","R260","WRCCC GRNT #54520-A1"]
["P","R265","CA ST WRKSTUDY INTRN"]
["P","R303","NSM&E-EVAL FEE"]
["P","R305","GWAR -ENGLISH"]
["P","R306","GWAR -TESTING"]
["P","R318","THESIS BINDING"]
["P","R319","PHOTO ID CARD"]
["P","R320","GRAD FEE S&S"]
["P","R321","DIPLOMA FEE COSTS"]
["P","R322","NSE APPLICATION FEE"]
["P","R325","TRANS EVAL FEE-NON MAT"]
["P","R326","PEAK TRANS EVAL FEE"]
["P","R336","CREDENTIAL SVC"]
["P","R340","MATH 220 WVR EXAM"]
["P","R401","CE OVHD-IR"]
["P","R402","ACCOUNTING  O/H"]
["P","R403","CE OVHD-ADM & REC"]
["P","R405","FISCAL SVC O/H"]
["P","R406","BAS OVERHEAD"]
["P","R407","PUBLIC SAFETY OVERHEAD"]
["P","R408","FACILITY OVHD"]
["P","R411","RA-GEN STUDIES OVHD"]
["P","R412","ACAD AFFR EO 753"]
["P","R501","RA-4CNET"]
["P","R502","LEARN & SERVE"]
["P","R503","RSC PARTNERSHIP"]
["P","R570","C/O-TRAVEL"]
["P","R571","RA-C/O ACAD SEN TRAVEL"]
["P","R601","FOUNDATION PO'S"]
["P","R602","TEMP. MINOR CAP"]
["P","R603","PRKNG LOT K DRAINAGE"]
["P","R604","03-ALUMNI PARK PROJ"]
["P","R609","FDN REIMB-MISC"]
["P","R611","FDN REIMB-UN ADV"]
["P","R650","GRANT PAYROLL REIMBURSEMENT"]
["P","R702","IRA-TODD MADIGAN GAL"]
["P","R703","TG-PPL & OTHR ANIMLS"]
["P","R704","RA-TR-THEATREFEST"]
["P","R708","IRA-MODEL UN"]
["P","R709","IRA-JAZZ SINGERS"]
["P","R721","IRA-JAZZ BAND"]
["P","R723","IRA-INTRAMURAL SPORT"]
["P","R740","ASI-PAYROLL"]
["P","R745","CHILDREN'S CENTER"]
["P","R750","STUDENT UNION PAYROLL"]
["P","R807","TR-PUB PERF THEATRE"]
["P","R817","TR-ATH FACIL RNTL"]
["P","R823","TR-WRTNG CRSE MAT FE"]
["P","R880","RA-FACIL RNT-OTHR"]
["P","R902","TG-ACROSS BOUNDARIES"]
["P","R907","TR-PUB PERF JAZZ"]
["P","R908","TR-DORE THEATRE"]
["P","R909","TR-ACCTG OVHD"]
["P","R920","RA-TUTORING"]
["P","R934","TR-BREC"]
["P","R943","RA-TR ITV"]
["P","R945","RA-TR UNIV COUNSELING"]
["P","R958","TF-COPIER CHGBK"]
["P","R962","TR-RECYCLED MATERIAL"]
["P","R963","MST CONF-S&W"]
["P","R964","RA-ICT LITERACY"]
["F","RE030","Reid"]
["F","RE031","VP Admin Services"]
["F","RE032","AVP Univ."]
["F","RE033","Bus Mgt Disc"]
["F","RE034","NSM&E"]
["F","RE035","GS & R"]
["F","RE036","Icardo Room"]
["F","RE037","School of Humanities"]
["F","RE038","Ed"]
["F","RE039","Discretionary (Business Conf)"]
["F","RE040","Ericsson Equipment"]
["F","RE041","VP Student Aff Discretionary"]
["F","RE042","Natural Science & Math Equip"]
["F","RE043","BPA/ERM/OSH"]
["F","RE044","Ready to Start - Designated"]
["F","S0050","Emergency Loans"]
["F","S0051","AERA Energy LLC"]
["F","S0052","Air Force Aid"]
["F","S0053","Am Assoc of Univ Women"]
["F","S0054","Am Baptist Women's Ministries"]
["F","S0055","Army College Fund"]
["F","S0056","Am Bus Women's - EDV Chap"]
["F","S0057","Am Bus Women's - RR Chap"]
["F","S0058","Am Bus Women's - Bak"]
["F","S0059","ASI"]
["F","S0060","M. Marie Brown"]
["F","S0061","Betty Albright Memorial"]
["F","S0062","Alliance FAED Program"]
["F","S0063","Allan Hancock Foundation"]
["F","S0064","Allied Exeter"]
["F","S0065","Alpaugh Scholarship Fund"]
["F","S0066","American Samoa Gov't"]
["F","S0067","Antelope Valley College"]
["F","S0068","Am Assoc of CC Nurses"]
["F","S0069","County of Kern"]
["F","S0070","American Indian Grad"]
["F","S0071","Joe Alexander"]
["F","S0072","Ayars Bros - Soccer"]
["F","S0073","Ayars Bros - Eagle Scout"]
["F","S0074","Mike Blaske Memorial"]
["F","S0075","Bus & Prof Women's Fnd"]
["F","S0076","Bakersfield Youth Symphony"]
["F","S0077","Bakersfield Californian"]
["F","S0078","New Car Dealers of Gr Bk"]
["F","S0079","Bkfd Glass & China"]
["F","S0080","Boys & Girls Club of Ventura"]
["F","S0081","Bkfd Transportation Club"]
["F","S0082","Basic Vegetable Products"]
["F","S0083","Brandt Scholarship"]
["F","S0084","Bear Creek Operations"]
["F","S0085","Beneficial Foundation"]
["F","S0086","Boron Chamber of Commerce"]
["F","S0087","Joseph Bierne Memorial"]
["F","S0088","Ca Ret Teachers-Settle"]
["F","S0089","CHUBB Fnd"]
["F","S0090","CA ST Y A B A"]
["F","S0091","Calif. Comm. Colleges Fnd"]
["F","S0092","╟a Corr Peace Off Assn"]
["F","S0093","College First Fnd"]
["F","S0094","Cancer Federation"]
["F","S0095","CSU Real Estate"]
["F","S0096","Cal PTA Congress"]
["F","S0097","Delano Reg Med Ctr Aux"]
["F","S0098","CSU - Dumke Fellowship"]
["F","S0099","Delano Harvest Holidays"]
["F","S0100","CSUB Residential Life"]
["F","S0101","Citizens Scholarship Fund"]
["F","S0102","Book Fund"]
["F","S0103","Delta Kappa Gamma Beta Zeta"]
["F","S0104","Corcoran High School"]
["F","S0105","Cystic Fibrosis of So. Cal."]
["F","S0106","Ca Ret. Teachers Div. #48"]
["F","S0107","Hiram F. & Mary G. Cox"]
["F","S0108","CSEA Chapter #275"]
["F","S0109","Emerson Erb Acctg Sch"]
["F","S0110","Enterprise College"]
["F","S0111","Bakersfield Art Assn"]
["F","S0112","Computer Science Sch"]
["F","S0113","Fritch Family Foundation"]
["F","S0114","East Rotary Club"]
["F","S0115","Del Norte County School"]
["F","S0116","Charles P. Lake Sch"]
["F","S0117","King City High School"]
["F","S0118","Kern River Valley Elks #2358"]
["F","S0119","Lutheran Brotherhood"]
["F","S0120","Golden State Honors"]
["F","S0121","Golden Empire R.O.P."]
["F","S0122","Grtr Bkfd Chamber of Comm"]
["F","S0123","Gifted Musician"]
["F","S0124","Good Samaritan"]
["F","S0125","Order of Eastern Star"]
["F","S0126","Richard W. Graves Sch."]
["F","S0127","Housing Authority of LA"]
["F","S0128","Calif/Hawaii Elks Assn"]
["F","S0129","Hispanic Alliance HACER"]
["F","S0130","Karl Junginger Sch"]
["F","S0131","Hanford HS R. Dias Sch."]
["F","S0132","Hanford High Booster Club"]
["F","S0133","Merit Scholarship"]
["F","S0134","Independent Living Skills"]
["F","S0135","IBEW Local 1245"]
["F","S0136","Jamison Children's"]
["F","S0137","Horatio Alger Assn."]
["F","S0138","Phillip Harmon"]
["F","S0139","KAEOP"]
["F","S0140","Jafra Educational Dev."]
["F","S0141","Kiowa Tribe of Oklahoma"]
["F","S0142","Kern Aquatic"]
["F","S0143","Kern Co. 4-H Council"]
["F","S0144","KHSD - West High"]
["F","S0145","KHSD-Regional Occupational Ctr"]
["F","S0146","Bob Moretti Memorial"]
["F","S0147","Kern County Medical Society"]
["F","S0148","F. Harris Memorial"]
["F","S0149","Kiwanis"]
["F","S0150","Miss Tulare Pageant"]
["F","S0151","Merit Scholar Program"]
["F","S0152","Las Fiestas, Inc."]
["F","S0153","Mountain View HS"]
["F","S0154","Nat'l Assn 2nd S Prin"]
["F","S0155","MESA"]
["F","S0156","National Merit Scholarship"]
["F","S0157","Nestle Scholarship"]
["F","S0158","Nursing 92 Scholarship Fund"]
["F","S0159","NCAA"]
["F","S0160","NWC Comm Federal CU"]
["F","S0161","RN Education Sch Prog"]
["F","S0162","Miss California Pageant"]
["F","S0163","Phi Delta Kappa"]
["F","S0164","Palmdale Emblem Club 319"]
["F","S0165","Paine Webber"]
["F","S0166","Pocahontas Sch/NSCDXVII"]
["F","S0167","Pelletier Scholarship"]
["F","S0168","Pelletier Administrative"]
["F","S0169","Robert Odell"]
["F","S0170","Paramount Farms"]
["F","S0171","Porterville College Fdn."]
["F","S0172","Jeannette Rankin Fnd"]
["F","S0173","San Joaquin Hosp Auxiliary"]
["F","S0174","Bakersfield Rotary Club"]
["F","S0175","Pleasant Valley Baptist Church"]
["F","S0176","Charles Saak"]
["F","S0177","Navajo Nation Scholarship"]
["F","S0178","Santa Barbara Scholarship"]
["F","S0179","Santa Barbara Foundation"]
["F","S0180","Scottish Rites"]
["F","S0181","Sociedad Progresista"]
["F","S0182","Meryl Ruoss Scholarship"]
["F","S0183","Self Help Enterprises"]
["F","S0184","Supreme Emblem Club"]
["F","S0185","JA & Flossie Mae Smith"]
["F","S0186","South Fork Women's Club"]
["F","S0187","Sunshine Division Pro Club"]
["F","S0188","Sunshine Brooks Club"]
["F","S0189","Cabrillo Civic Club"]
["F","S0190","San Lorenzo District"]
["F","S0191","Taft Chiropractic Office"]
["F","S0192","The Paula Difference"]
["F","S0193","Texaco Foundation"]
["F","S0194","Six Flags California"]
["F","S0195","Teachers Assn of KC"]
["F","S0196","Tehachapi Elks #2765"]
["F","S0197","Lee Guggisberg Memorial Fund"]
["F","S0198","Warner Cable Com Jazz Sch."]
["F","S0198","Bright House Scholarship Fund"]
["F","S0199","Texaco - Geology"]
["F","S0200","Tulare County Voiture"]
["F","S0201","Tulare Joint Union HS"]
["F","S0202","Tulare Co. Ret. Teachers Assn"]
["F","S0203","Texaco Pre Engineering"]
["F","S0204","Thiesen Score"]
["F","S0205","Virginia Dandy Memorial"]
["F","S0206","Nursing Class of 98"]
["F","S0207","Tulare Friendship Club"]
["F","S0208","Miss Kern Co. Schol Pageant"]
["F","S0212","Cutler Latin American Club"]
["F","S0213","Ca Table Grape Commission"]
["F","S0214","Tehachapi Jr. Miss Program"]
["F","S0215","Trans West Security Services"]
["F","S0216","1997 Nursing Scholarship"]
["F","S0217","U.S. Olympic Committee"]
["F","S0218","Helen Hawk Windes Sch."]
["F","S0219","Directors Cup Athletics"]
["F","S0220","Village Artisans"]
["F","S0221","Circuit City Foundation"]
["F","S0222","Adelante Hispanic Ed Leader"]
["F","S0223","So. Cal. ASA Players Assoc."]
["F","S0224","So. Cal. Mothers of Twins Club"]
["F","S0225","Patty L. DeWitt Memorial"]
["F","S0226","Advance Network"]
["F","S0227","Fay Walters Scholarship"]
["F","S0228","Kern Co Broadcasters Assn."]
["F","S0229","First Presbyterian Church"]
["F","S0230","Wal-Mart Foundation"]
["F","S0231","Tom Watts Memorial"]
["F","S0232","Hispanic Business College"]
["F","S0233","Women's Club of Bkfd"]
["F","S0234","Women's Club of Delano"]
["F","S0235","Helena B. Cobb"]
["F","S0236","Hefflefinger Trust Fund"]
["F","S0237","Delta Kappa Gamma"]
["F","S0238","KC Hispanic Chamber of Comm"]
["F","S0239","Tulare Co. Teachers Fed CU"]
["F","S0240","Yavapai-Apache Tribe"]
["F","S0241","United Food & Comm Work"]
["F","S0242","RMHC-Hacer"]
["F","S0243","Monterey County"]
["F","S0244","Robert Raskind Charitable"]
["F","S0245","Zalud-Ag Econ"]
["F","S0246","Zalud-Ag Bio"]
["F","S0247","Alicia Manning Memorial"]
["F","S0248","Choctaw Nation of Oklahoma"]
["F","S0249","Varner Business Scholar"]
["F","S0250","Zalud - Music"]
["F","S0251","Darling International"]
["F","S0252","Fontana HS"]
["F","S0253","United Trans Union Insurance"]
["F","S0254","Business & Charity Golf Link"]
["F","S0255","Victor Valley Teachers Assn."]
["F","S0256","National Italian American Fnd"]
["F","S0257","Faculty Development"]
["F","S0258","Americorps"]
["F","S0259","Washoe Tribe of Nev & CA"]
["F","S0260","Winnebago Tribe of Nebraska"]
["F","S0261","CSU Foundation"]
["F","S0262","Redlands Comm Sch Fdn"]
["F","S0263","Aid to Ed-Farmer's Ins."]
["F","S0264","Charles & Judy Fritch, MD"]
["F","S0265","Disbursable Misc. Sch"]
["F","S0266","Elks National Foundation"]
["F","S0267","Housing Authority -Tulare Co."]
["F","S0268","Sue Fujiki Nursing Students"]
["F","S0269","Embree construction Group"]
["F","S0270","Calif Nurses Assn"]
["F","S0271","Italian American Heritage"]
["F","S0272","Associated Students, Inc."]
["F","S0273","Donations"]
["F","S0275","Bad Debts"]
["F","S0276","Snell Focus Foundation"]
["F","S0277","Exchange Club of Paradise"]
["F","S0278","Maricopa Booster Club"]
["F","S0279","Bakersfield Bowling Assn."]
["F","S0280","Corti Family Agri Fund"]
["F","S0281","Maricopa P.T.A."]
["F","S0282","United Methodist Church"]
["F","S0283","Maricopa H.S. Activities"]
["F","S0284","Benevolent/Protect Elks #1448"]
["F","S0285","Magic Johnson Foundation"]
["F","S0286","Western Farm Service, Inc."]
["F","S0287","Faithful Central M.B.C."]
["F","S0288","Paradise Scholarship Found"]
["F","S0289","Bakersfield Scholarship Fdn."]
["F","S0290","Vic Snyder Memorial Schol."]
["F","S0291","Cow Creek Umpqua Tribe"]
["F","S0292","Olan Polite Scholarship"]
["F","S0293","C.A.H.P.E.R.D."]
["F","S0294","Arvin Women's Club"]
["F","S0295","Retired Plumbers/Steamfitters"]
["F","S0296","Waterloo School District"]
["F","S0297","Rocky Mountain PGA"]
["F","S0298","CA Gov Conference for Women"]
["F","S0299","Tule River Tribal Council"]
["F","S0300","CVHS Scholarship"]
["F","S0301","Tulare Volunteer Bureau"]
["F","S0302","Franks Fdn. Scholarship"]
["F","S0303","Chela Fimancial Resources"]
["F","S0304","CAEOP Cal Assn Edu Office Prof"]
["F","S0305","Nike"]
["F","S0306","Heilig-Meyers Fdn."]
["F","S0307","Delano High School"]
["F","S0308","Junior Livestock"]
["F","S0309","Adin Boss"]
["F","S0310","General Scholarship"]
["F","S0311","CA Art Education Assn."]
["F","S0312","Gaskill Custom Home Bldrs"]
["F","S0313","Cath Charities Dio of Fresno"]
["F","S0314","CA St Soc, NADAR"]
["F","S0315","Kern URISA"]
["F","S0316","Hispanic Scholarship Fund"]
["F","S0317","Ramesh Gupta, MD"]
["F","S0318","Judy Moses"]
["F","S0319","Shafter Chamber of Commerce"]
["F","S0320","ICWUC"]
["F","S0321","Fred Mills, DC"]
["F","S0322","Monterey Mushrooms"]
["F","S0323","Aid Assn. For Lutherans"]
["F","S0324","Central California L.P. Gas"]
["F","S0325","Citizen's Scholarship Fdn."]
["F","S0326","Cal Community Foundation"]
["F","S0327","Chester School Dist #33"]
["F","S0328","Cal Interscholastic Federation"]
["F","S0329","Royal Neighbors of America"]
["F","S0330","CA School Emp Assn. Chap 216"]
["F","S0331","Bakersfield Jr Miss Assoc"]
["F","S0332","American Missionary Assn"]
["F","S0333","Marine Corps Sch. Foundation"]
["F","S0334","Robert and Margaret Bennett"]
["F","S0335","Skeet Varner Foundation"]
["F","S0336","Arroyo Grande HS Student Body"]
["F","S0337","Bksfld Firefighters Burn Fdn"]
["F","S0338","Chevron Valley Credit Union"]
["F","S0339","Friends of Mercy"]
["F","S0340","Douglas Thisselle Memorial"]
["F","S0341","Kern Registered Nurses Society"]
["F","S0342","La Quinta HS ASB"]
["F","S0343","Randall Parker Schol"]
["F","S0344","Sunview Vineyards of CA"]
["F","S0345","Daniells Phillips Vaughan&Bock"]
["F","S0346","Dr. Jack Schuetz"]
["F","S0347","Kern Medical Center Auxiliary"]
["F","S0348","Loretta G. Lipscomb"]
["F","S0349","Kappa Alpha Order"]
["F","S0350","High Desert of Kern County"]
["F","S0351","Just Friends BID WHIST"]
["F","S0352","Selina Ganopole Memorial"]
["F","S0353","J. Weirather Memorial"]
["F","S0354","Calif Masonic Foundation"]
["F","S0355","Mountain Bible Church"]
["F","S0356","Amer Business Club-AMBUCS"]
["F","S0357","Calif Teachers Assoc."]
["F","S0358","Cox Communications Inc."]
["F","S0359","Trona Lodge No. 1975"]
["F","S0360","Cubberley School PTA"]
["F","S0361","IOF Foresters"]
["F","S0362","Anheuser-Busch, Inc"]
["F","S0363","Alta One Federal Credit Union"]
["F","S0364","Women's Sports Foundation"]
["F","S0365","Golden State ScholarShare Trst"]
["F","S0366","Paula R. Strome"]
["F","S0367","Murrieta Valley Scholarship"]
["F","S0368","Kern Co. Broadcasters Assoc."]
["F","S0369","Tulare Co. Housing Authority"]
["F","S0370","Armenian Missionary Assoc."]
["F","S0371","PAC&E Union Taft"]
["F","S0372","Lorenzo & Florence Barnett"]
["F","S0373","Fresno Regional Foundation"]
["F","S0374","Educating Young Minds Inc."]
["F","S0375","Christermon Foundation"]
["F","S0376","SEIU"]
["F","S0377","D. Griffin Memorial"]
["F","S0378","Mojave Unified School"]
["F","S0379","Tulare Co Super of Schools"]
["F","S0380","Davina Hoyt Scholarship"]
["F","S0381","First Christian Church of Bkfd"]
["F","S0382","Zonta Club of Bakersfield"]
["F","S0383","C S E A Chapter 216"]
["F","S0384","Victory Missionary Bapt Church"]
["F","S0385","Dee Griffin, Sr Memorial"]
["F","S0386","A.V. Chapter of A.C.S.A"]
["F","S0387","Am. Business Club Amarillo"]
["F","S0388","Michael L. Gill Scholarship"]
["F","S0389","Ayala High School Student Body"]
["F","S0390","Kaweah National Bank"]
["F","S0391","President's Student Service"]
["F","S0392","Kern Reading Association"]
["F","S0393","City of Bakersfield Mayors Sch"]
["F","S0394","ABWA - North Bay Charter Chptr"]
["F","S0395","Taft National Bank"]
["F","S0396","Merced Union High School Dist"]
["F","S0397","Association of Energy Services"]
["F","S0398","Brown Armstrong Accountancy"]
["F","S0399","Irwindale Educational Found"]
["F","S0400","Specialty Equip Market Assn"]
["F","S0401","Tule River Tribal Council Schl"]
["F","S0402","George & Helen Stewart Memor"]
["F","S0403","Birute Prakapas Memorial Schol"]
["F","S0404","National Field Archeny Assn"]
["F","S0405","The Rom Cath Bishop of Fresno"]
["F","S0406","Higher Reach Scholarship"]
["F","S0407","Heinz Scholarship"]
["F","S0408","Confed Tribes of Grand Ronde"]
["F","S0409","Danish Sisterhood of America"]
["F","S0410","San Jose Sports Authority"]
["F","S0411","PW Market Scholarship"]
["F","S0412","Bay Believers Church"]
["F","S0413","Ridgeview HS Music Boosters"]
["F","S0414","California Eastern Star Found"]
["F","S0415","Citizens Fdn Temecula Valley"]
["F","S0416","CAASFEP Scholarship"]
["F","S0417","Altrusa of the Eastern Sierra"]
["F","S0418","National Veteran's Foundation"]
["F","S0419","Calico compress & Warehouse"]
["F","S0420","Women of the Moose Chptr #667"]
["F","S0421","Professional Baseball Scholar"]
["F","S0422","Southside 7th Day Adven Church"]
["F","S0423","Harry J. Loman Scholarship"]
["F","S0424","Windham Professionals,Inc."]
["F","S0425","Coun of Mexican-American Women"]
["F","S0426","Antelope Vly Assoc of Realtors"]
["F","S0427","Presidential Freedom Scholar"]
["F","S0428","Darling Perform Arts Merit Awd"]
["F","S0429","Perf Arts Faculty Merit Award"]
["F","S0430","Cherokee Nation"]
["F","S0431","Central Valley Nursing Scholar"]
["F","S0432","Bad River Tribe of Chippewa"]
["F","S0433","BBEST Program"]
["F","S0434","Charles Hicks Commando Sch."]
["F","S0435","P.P.A.V. Scholarship"]
["F","S0436","Bernie Dunlap Scholarship"]
["F","S0437","Zalud Fund Scholarship"]
["F","S0438","Dale Schoettler Scholarship"]
["F","S0439","American Legion Post 28 Schol"]
["F","S0440","South High School Alumni Schol"]
["F","S0441","Steven's Transportation Schol"]
["F","S0442","Sam Walton Community Scholar"]
["F","S0443","Wal-Mart Achievers Scholarship"]
["F","S0444","Clase/Coors Light Scholarship"]
["F","S0445","South Central Gifted Scholars"]
["F","S0446","Bakersfield Girls SoccerLeague"]
["F","S0447","Zeta Beta Sorority Scholarship"]
["F","S0448","NACDA DirectorsCup Scholarship"]
["F","S0449","Chukchansi Indians Educational"]
["F","S0450","Pepe Sports Scholarship"]
["F","S0451","Chevron Texaco SMARTS Schol"]
["F","S0452","Emanuel Medical Center Aux"]
["F","S0453","BBB of San Joaquin Valley"]
["F","S0454","CAL-HOSA"]
["F","S0455","Exchange Club of Stockdale"]
["F","S0456","CA Chapter of the CPCU Society"]
["F","S0457","BPO Elks 1603"]
["F","S0458","Jack & Lavonne Schutez Scholar"]
["F","S0459","Jackson High PTSA"]
["F","S0460","Bishop Union High School"]
["F","S0461","Young Wooldridge/Kevin Harvick"]
["F","S0462","Charles W. McQuarrie Mem Schol"]
["F","S0463","McMillan Homes Scholarship"]
["F","S0463","Kyle Carter Homes"]
["F","S0464","Chickasaw Nation Scholarship"]
["F","S0465","Tehachapi High School Student"]
["F","S0466","Irene Ryan Scholarship"]
["F","S0467","John Horn Scholarship"]
["F","S0467","John Horn Scholarship"]
["F","S0468","Antioch Community Scholarship"]
["F","S0469","Found. of Natl Student Nurses"]
["F","S0470","Don C. Beaver Scholarship"]
["F","S0471","Daugh. of the Union Veterans"]
["F","S0472","Royal Neighb. of America Schol"]
["F","S0473","Mike Quevado Sr. Scholarship"]
["F","S0474","Havoc Futbol Club Boys 87"]
["F","S0475","Pasadena Police Officers Assn"]
["F","S0476","Scholarship Fund for Women"]
["F","S0477","American Moving & Storage Inst"]
["F","S0478","Koniag Education Foundation"]
["F","S0479","Jim Costa KC Water Ag. Scholar"]
["F","S0480","Great Valley Ctr. Catapult Sch"]
["F","S0481","Upakar Indo Amer.Comm. Found"]
["F","S0482","Allergy, Asthma & Immunology"]
["F","S0483","Natl Society of Accts. Scholar"]
["F","S0484","Big Canoe Chapel Scholarship"]
["F","S0485","American Assoc. of Univ. Women"]
["F","S0486","Marin Education Fund"]
["F","S0487","Amer. Fed. of Mineralogical So"]
["F","S0488","Beglin Family Award"]
["F","S0489","Winter Guard International"]
["F","S0490","Alamogordo Public Schools"]
["F","S0491","SBC Foundation"]
["F","S0492","Performing Arts Foundation"]
["F","S0493","Dr. Arbegast/Mended Hearts #77"]
["F","S0494","Louis Barbich Accounting Award"]
["F","S0496","AV Math & Science Partnership"]
["F","S0497","SS Peter & Paul Church Scholar"]
["F","S0498","Next Step MAgazine"]
["F","S0499","California State PTA"]
["F","S0500","Navy Nurse Scholarship"]
["F","S0501","Mildred Litster Scholarship"]
["F","S0502","Sealaska Heritage Institute"]
["F","S0503","Woodlake Union High School Dis"]
["F","S0504","CA Growers Association"]
["F","S0505","Project GRAD Los Angeles"]
["F","S0506","I Have A Dream Foundation"]
["F","S0507","Church of God of Exeter"]
["F","S0508","Tehachapi Republican Women Fed"]
["F","S0509","Hewlett Packard Co. Emp. Schol"]
["F","S0510","Volunteers of America Los Ange"]
["F","S0511","Ventura County Comm Foundation"]
["F","S0512","The Crater Foundation"]
["F","S0513","Tlingin & Haida Indian Tribes"]
["F","S0514","Cimmarron Memorial High School"]
["F","S0515","Candelaria American Indian Cou"]
["F","S0516","California Strawberry Commissi"]
["F","S0517","Dr. James H George Scholarship"]
["F","S0518","American River College Foundat"]
["F","S0519","Tom Joyner Foundation"]
["F","S0520","Hall Ambulance Services, Inc."]
["F","S0521","James Latham McGee Memorial Sc"]
["F","S0522","Contreras Family Scholarship"]
["F","S0523","Burroughs High School"]
["F","S0524","ENLISTED WIVES CLUB"]
["F","S0525","KAISER PERMANENTE"]
["F","S0526","CA WOMEN'S CHORUS BAK KEYNOTES"]
["F","S0527","HISPANIC ASSOC OF COLLEGES"]
["F","S0528","HEIVLY SCHOLARSHIP"]
["F","S0529","RHS DOLLARS FOR SCHOLARS"]
["F","S0530","EAGLE BOOSTER CLUB"]
["F","S0531","NATIONAL FFA FOUNDATION, INC."]
["F","S0532","ENTERPRISE RENT A CAR SCHLSHP"]
["F","S0533","AMERICA'S JR MISS SCHOLARSHIP"]
["F","S0534","PIZZA FACTORY SCHOLARSHIP"]
["F","S0535","Mid State Development Corp"]
["F","S0536","KATY & GARY KESSLER SCHOLRSHP"]
["F","S0537","Robert Raskind Nursing Scholar"]
["F","S0538","SHERYL BARBICH SCHOLARSHIP"]
["F","S0539","RUTH A. SIMONSON SCHOLARSHIP"]
["F","S0540","DOROTHY JONES SCHOLARSHIP"]
["F","S0541","RAVI & NAINA PATEL SCHLRSHP"]
["F","S0542","MUSCOGEE CREEK NATION SCHLRSHP"]
["F","S0543","CEWAER"]
["F","S0544","EVERETT MANN MEMORIAL SCHLRSHP"]
["F","S0545","King County Retired Teachers"]
["F","S0546","kERN CO COMMUNITY FDN SCHLRSHP"]
["F","S0547","PICAYUNE RANCERIA SCHOLARSHIP"]
["F","S0548","DR GEORGE HIBBARD SCHOLARSHIP"]
["F","S0549","Corcoran Community Fdn Schlrsp"]
["F","S0550","HARRY & DAVID OPERATIONS SCHOL"]
["F","S0551","DAN PEZZOTTI SCHOLARSHIP"]
["F","S0552","HIGH DESERT COMMUNITY SCHLRSHP"]
["F","S0553","ROBERT RASKIND MEMORIAL SCHOL"]
["F","S0554","Ernest Williams Scholarship"]
["F","S0555","Smart & Final Scholarship Fdn"]
["F","S0556","Beacon Hope Scholarship"]
["F","S0557","Bachelor of Science NursingSch"]
["F","S0558","ACT NMCR Grant Scholarship"]
["F","S0559","Dell Scholarship Program"]
["F","S0560","Bakersfield Zion Club"]
["F","S0561","ITPE Health & Welfare Fund"]
["F","S0562","Fallon Paiute-Shoshone Tribe"]
["F","S0563","Military Officer Assoc of Amer"]
["F","S0564","Sequoia Hospital Volunteer Svc"]
["F","S0565","Adolescent Family Services"]
["F","S0566","Rotary Club of Ventura East"]
["F","S0567","Margaret K Dennis Scholarship"]
["F","S0568","Laborerers Int's Union of N.A."]
["F","S0569","California Womens Chorus"]
["F","S0570","US Bowling Congress"]
["F","S0571","Presidential Opportunities Sch"]
["F","S0572","Lister Scholarship Trust"]
["F","S0573","Rain for Rent"]
["F","S0574","Farmersville Dolars"]
["F","S0575","Kiwanis Club of Corcoran"]
["F","S0576","Bakersfield Scottish Rites"]
["F","S0577","Hispanic Excellance Scholarshi"]
["F","S0578","Taft Lions Club Scholarship"]
["F","S0579","Oregon Community Foundation"]
["F","S0580","LSAMP Scholars Scholarship"]
["F","S0581","Eternal Youth Foundation"]
["F","S0582","Granite Const Golden Rule Scho"]
["F","S0583","Kings County Charter ASCA"]
["F","S0584","Cash for College-LA Chamber"]
["F","S0585","Pam Baugher Acheivement Schlr"]
["F","S0586","George Skrivanek Memorial"]
["F","S0586","George Shrivanek Memorial"]
["F","S0587","Richard Flem Memorial Schlrshp"]
["F","S0588","Chuuk State Sector Scholarship"]
["F","S0589","Stephen Bufton Mem Educ Fund"]
["F","S0590","Filipino Comm of Bakersfield"]
["F","S0591","Lindsay Dollars for Scholars"]
["F","S0592","Gtr Bksfld Ch. of Comm Scholar"]
["F","S0593","Kiwanis Club of Lake Tahoe Sch"]
["F","S0594","AESC Chapter Scholarship"]
["F","S0595","FreedomRoads Miracle Mile Sch."]
["F","S0596","Jackson Elks Lodge Scholarship"]
["F","S0597","Junior Golf of N. Cal. Scholar"]
["F","S0598","Carpenters Scholarship Fnd."]
["F","S0599","American Public Works Scholar"]
["F","S0600","United Voluntary Services Sch"]
["F","S0601","The CIRI Foundation Scholar"]
["F","S0602","American Indian Education Sch"]
["F","S0603","Kern County Scholarship Fund"]
["F","S0604","The Columbian Ladies Council"]
["F","S0605","Apple Valley Chamber Scholarsh"]
["F","S0606","Tom Shimasaki Scholarship"]
["F","S0607","Soroptimist of S. Lake Tahoe"]
["F","S0608","Mike Quevedo Jr. Scholarship"]
["F","S0609","Foresters / Asc. of Univ/ Coll"]
["F","S0610","Foothill High Booster Club Sch"]
["F","S0611","Western Farm Service Sch."]
["F","S0612","S. Tahoe Vikings Booster Club"]
["F","S0613","AFLP ClinicaSierra Scholarship"]
["F","S0614","Pacific Gas & Electric Scholar"]
["F","S0615","Oakton Community College Schol"]
["F","S0616","Alexander Hamilton High School"]
["F","S0617","Merill Lynch Chase Scholarship"]
["F","S0618","Immanuel Christian Church Scho"]
["F","S0619","LHS Basketball Booster Club Sc"]
["F","S0620","Ukiah Management Scholarship"]
["F","S0621","The Geothermal Scholarship"]
["F","S0622","GEAR UP Scholarship (CSAC)"]
["F","S0623","Bob Adkisson Scholarship"]
["F","S0624","Orange County Community Found."]
["F","S0625","Vermont Student Grant Fund Sch"]
["F","S0626","Bakersfield College Fnd Sch."]
["F","S0627","American Indian Services Sch."]
["F","S0628","Teacher Quality Enhancement Sc"]
["F","S0629","Technical Consumer Scholarship"]
["F","S0630","Common Knowledge Scholarship"]
["F","S0631","Catherine McCauley Scholarship"]
["F","S0632","Osage Tribal Scholarship"]
["F","S0633","Eastern Shawnee Tribe of Oklah"]
["F","S0634","CaliforniaNevada Methodist Fnd"]
["F","S0635","KHSD Project Best"]
["F","S0636","Altrusa Club of Indian Wells"]
["F","S0637","Fraternal Order of Eagles"]
["F","S0638","Supreme Council UPPEC Scholar"]
["F","S0639","Guardian Insustires Scholar"]
["F","S0640","Veronica DUncan GAMMA XI Schol"]
["F","S0641","Iowa Tribe of Kansas&Nebraska"]
["F","S0642","Conselho Supremo Scholarship"]
["F","S0643","Hensel Phelps Construction"]
["F","S0644","Annual Kimbal Midwest Sch"]
["F","S0645","Annual Los Angeles Area Schola"]
["F","S0646","Annual Ronald McDonald House"]
["F","S0647","Annual Gillis Scholarship"]
["F","S0648","Annual Catholic Healthcare Sch"]
["F","S0649","Annual Burroughs High Schol"]
["F","S0650","Annual Victoria&Bradley Geist"]
["F","S0651","Annual ERMCO Educational Res."]
["F","S0652","Annual Supt. of Schools Tulare"]
["F","S0653","Annual Assoc. of Universities"]
["F","S0654","Annual USA Funds Access to Edu"]
["F","S0655","Annual Ashley MEGAN BUCKLIN"]
["F","S0656","Annual Oklahoma City Chapter"]
["F","S0657","Annual CANCER for COLLEGE"]
["F","S0658","PGA Scholarship"]
["F","S0659","Center for Scholarship Admin"]
["F","S0660","Angeles Mesa Presbyterian"]
["F","S0661","Operation Home Front"]
["F","S0662","VET OF FOREIGN WARS HARLINGEN"]
["F","S0663","United Way UWGLA"]
["F","S0664","SBCC FOUNDATION SCHOLARSHIP"]
["F","S0665","NEED GRANT SCHOLARSHIP"]
["F","S0666","Paramount Comm. Giving Scholar"]
["F","S0667","Recruitment in Sci Ed (RISE)"]
["F","S0668","C Channing Cont Student Suppt"]
["F","S0669","Annual Mammoth Latino College"]
["F","S0670","Calfornia Moving & Storage Sch"]
["F","SE052","Howard Dallimore Mem Scholarsh"]
["F","SE053","CE Strange Mem Scholarship"]
["F","SE055","Sean Baxter Mem Scholarship"]
["F","SE056","GA Holtz Memorial Scholarship"]
["F","SE060","CTA Sierra Service Center Scho"]
["F","SE063","Lovallo Music Endow Scholarshi"]
["F","SE066","Mamie Hawkins Endow Scholarshi"]
["F","SE067","Fine Arts Fund Endow"]
["F","SE067","Fine Arts Fund Show"]
["F","SE068","Brent Waterman Mem End Scholar"]
["F","SE070","Schuetz-Richardson End Scholar"]
["F","SE071","Hull Memorial Scholarship Endo"]
["F","SE072","Don Hopkins Ad Club Endow"]
["F","SE074","Lori Brock Memorial Scholarshi"]
["F","SE075","Fred McDonnell Memorial Schola"]
["F","SE076","Gladys Rachal Mem Scholarship"]
["F","SE077","Beta Gamma Sigma Scholarship"]
["F","SE078","Kathleen Van Horn Schol Endow"]
["F","SE079","Instrumental Music End Scholar"]
["F","SE081","Christa McAuliffe End Scholars"]
["F","SE082","Friends of Biology End Scholar"]
["F","SE083","Dr. E. Williams Memorial Schol"]
["F","SE084","Panama Educ. Fdn Endow"]
["F","SE085","Ker Co. Sheriff's Res Endow"]
["F","SE085","Kern Co. Sheriff's Res Endow"]
["F","SE086","John Reed Memorial Scholarship"]
["F","SE087","Palmbach Memorial Scholarship"]
["F","SE088","Mary Osborne Endow Scholarship"]
["F","SE089","Clare Estate Endow Scholarship"]
["F","SE090","Dolares & Victor Cerro End Sch"]
["F","SE091","Kern RN Society End Scholarshi"]
["F","SE093","Bakersfield Chapter APPR Inst"]
["F","SE094","Armand Hammer Fine Art End Sch"]
["F","SE096","H. Durelle Nursing End Scholar"]
["F","SE097","Dorian Scholarship"]
["F","SE098","EF Karpe Memorial Scholarship"]
["F","SE100","Dr Jimmy D Barnes End Scholars"]
["F","SE101","John Brock Sr End Scholarship"]
["F","SE102","Audrey Bender Scholarship"]
["F","SE103","CSUB Teacher Growth End Schola"]
["F","SE106","Linda Sue Chaney End Scholarsh"]
["F","SE107","Robert C Marshall End Scholars"]
["F","SE108","Dwayne Gholston End Scholarshi"]
["F","SE109","CSB Wrestling Scholarship"]
["F","SE110","San Joaquin Ch API Scholarship"]
["F","SE111","Filipino Excellence Scholarshi"]
["F","SE112","EB Prof Women's Club Scholarsh"]
["F","SE113","Alumni Endowment Scholarship"]
["F","SE114","Marion Reed Nursing End Schola"]
["F","SE115","Bill Burton Jazz Memorial Scho"]
["F","SE116","Janette Haskin Endow Schol"]
["F","SE120","Mildred Baer Memorial Scholars"]
["F","SE121","Secor Music Scholarship"]
["F","SE122","Bobby Joe Shannon Mem Scholars"]
["F","SE124","Benjamin Schneider Scholarship"]
["F","SE126","Choral Music Scholarship"]
["F","SE128","Dr Carl Miller Mem Scholarship"]
["F","SE129","Leo B Hart Memorial Scholarshi"]
["F","SE130","Robert Scherb Estate Scholarsh"]
["F","SE130","Robert Scherb Estate Scholarsh"]
["F","SE131","Joe Woolridge Memi Endow"]
["F","SE132","Fairie Decker  Meml Endow"]
["F","SE133","Ablin Endowment Scholarships"]
["F","SE134","Fred & Beverly Dukes Scholarsh"]
["F","SE138","Dr Paul Dhariwal Meml"]
["F","SE140","Ernie Page Memorial Scholarshi"]
["F","SE142","Theodore D Decker Scholar End"]
["F","SE143","Len McGillivray Mem Scholarshi"]
["F","SE144","Bright House Jazz End Scholars"]
["F","SE145","George & Joan Pracy Scholarshi"]
["F","SE146","Dr Clifford Loader Mem Scholar"]
["F","SE147","Dr John Forney Schol Endow"]
["F","SE148","Sheldon Building Scholarship"]
["F","SE150","Victor/Virginia Church Scholar"]
["F","SE152","Sid Sheffield Memorial Scholar"]
["F","SE155","Geigle Merit Award"]
["F","SE157","Harold Freedman Scholarship"]
["F","SE158","Kegley Family Merit"]
["F","SE159","Adeline Frasch Scholarship"]
["F","SE161","Hans Einstein Comm"]
["F","SE162","Wm. & Lara Edwards Scholarship"]
["F","SE163","Chee-Mok & Millie Chan Scholar"]
["F","SE164","Jimmy Icardo Scholarship"]
["F","SE166","Joseph E Anderson Scholarship"]
["F","SE167","Millie Ablin Teaching Award Sc"]
["F","SE167","Millie Ablin Teaching Award Sc"]
["F","SE168","J Shattenkirk Meml"]
["F","SE169","Rachel Gamez Memorial Scholars"]
["F","SE170","John Barber Mem Scholarship"]
["F","SE171","Tim Cartwright Memorial Schola"]
["F","SE172","Richard Foster Memorial Schola"]
["F","SE173","Ralph Smith Nursing Scholarshi"]
["F","SE174","Cochran Contenence Scholarsip"]
["F","SE175","Sanchez Retirement Endow Schol"]
["F","SE176","Ed Richardson Athletic Scholar"]
["F","SE177","Hugh C Mays Endowment Scholar"]
["F","SE178","Liberal Studies Endow Scholars"]
["F","SE179","Emma Sims Nursing Scholarship"]
["F","SE180","Cheryl Maglischo Scholarship"]
["F","SE181","Tomas A Arciniega Scholarship"]
["F","SE182","Robert Storar Mem Scholarship"]
["F","SE183","Joseph Chandy Mem Scholarship"]
["F","SE184","Doug Davis Comp or Perf End Sc"]
["F","SE185","Mimi Deeths Mem Scholarship"]
["F","SE188","R. Khachigian Mem Endow Schol"]
["F","SE188","R. Khachigian Mem Endow Schol"]
["F","SE189","James Latham McGee Scholarship"]
["F","SE190","Athletic Memorial Scholarship"]
["F","SE191","Stephen Neal Wrestling Endow"]
["F","SE193","Lorraine West Meml Endow Schol"]
["F","SE194","Wayne & Sally Montgomery SE"]
["F","SE195","Dr James H George Endow"]
["F","SE196","Rudy & Anne Carvajal Endow Sch"]
["F","SE196","Rudy & Anne Carvajal Endow Sch"]
["F","SE197","Ravi & Naina Patel Endow Schol"]
["F","SE199","Holloway Endowment Fund"]
["F","SE200","Adele Davis Endow"]
["F","SE201","Herman W. Weddle Meml"]
["F","SE202","Elizabeth Warner Mem Scholarsh"]
["F","SE203","R & E Cochran Chair End Schola"]
["F","SE204","Dorothy Jones End Scholarship"]
["F","SE205","Pres Assoc Life Membership Sch"]
["F","SE206","Robert W Bennett End Scholarsh"]
["F","SE207","Bertano Endowment"]
["F","SE208","Pavletich Endowment Scholarshi"]
["F","SE211","Homer and Evangeline Myles End"]
["F","SE212","Richard Graves Memorial Endowm"]
["F","SE213","Philip Ohe Mem Jazz Schol End"]
["F","SE214","Adolph W & Chris Edda Schwartz"]
["F","SE216","Mary S Ming Memorial Schol End"]
["F","SE217","Jan Zaninovich Schol Endowment"]
["F","SE218","Sasaki Endowment Fund"]
["F","SE219","Shirley Fiddler Nsng Sch Endow"]
["F","SE220","Claude Fiddler Stu Res Sch End"]
["F","SO668","C Channing Cont Student Suppor"]
["F","SU001","STUDENT UNION"]
["F","SU001","Student Union"]
["F","SU002","Student Recreation Center"]
["F","TR001","Information Resources"]
["F","TR002","CC 20 Year Anniversary"]
["F","TR003","Runner Bookstore"]
["F","TR004","Economics Course Packs"]
["F","TR005","Lee Course Packs"]
["F","TR006","Science Bowl"]
["F","TR007","BPA Dean's Strategic Fund"]
["F","TR008","CC Summer Program"]
["F","TR009","Children's Ctr-Fundraising"]
["F","TR010","Math Dpt. Indirects"]
["F","TR011","Geo Tech Training Ctr"]
["F","TR012","Jazz Festival"]
["F","TR012","Bakersfield Jazz Festival"]
["F","TR013","Mus of Anthro"]
["F","TR014","Race & Diversity Symposium"]
["F","TR016","Research Ethics Review"]
["F","TR017","KCSOS-Intern Teaching"]
["F","TR018","Pepsi Pouring Rights"]
["F","TR019","KSC - Now Hear This Radio Show"]
["F","TR020","BPA-Taft College Collaboration"]
["F","TR021","Alumni Park Enhancement"]
["F","TR022","Lab. Of Archeological Sciences"]
["F","TR023","Teacher Training Account"]
["F","TR024","MathCounts"]
["F","TR025","Chevron Texaco"]
["F","TR026","Visiting Scholar Fund"]
["F","TR027","NURSING BUILDING"]
["F","TR028","AERA Ready to Start"]
["F","TR029","BPA/John Brock Development"]
["F","TR030","Wrestling Development"]
["F","TR031","Ernest Williams Development"]
["F","TR032","Flachmann Award"]
["F","TR033","Elizabeth C Warner Operating"]
["F","TR034","Chevron Math & Sci Initiative"]
["F","TR035","Facility Animal Care Treatment"]
["F","TR036","Department of Geology"]
["F","TR037","Chevron Homeless"]
["F","TR038","Hispanic Sch."]
["F","TR038","Hispanic Excellence Scholarshi"]
["F","TR039","Ext University - Contracts"]
["F","TR040","MESA Industry Contrib"]
["F","TR041","BPA Assoc. Program"]
["F","TR042","Kern Economic Journal"]
["F","TR043","Children's Art Institute"]
["F","TR044","Hispanic Excellence Schlshp Fd"]
["F","TR044","Nursing Equipment - New Bldg"]
["F","TR045","Math Field Day"]
["F","TR046","Well Sample Repository Trust"]
["F","TR047","VPSA Foundation Trust"]
["F","TR048","Computers for Knowledge"]
["F","TR049","Egyptian Exhibit"]
["F","UA070","Univ. Adv - General Fund"]
["F","UA071","Publications"]
["F","UA072","DataBase Grant"]
["F","UA073","Student Assistants [CLOSED]"]
["F","UA074","Annual Fund"]
["F","UA075","Cal State Today"]
["F","UA076","On Campus"]
["F","UA077","Ambassadors/Council of 100"]
["F","UA078","CSU Advancement Fund Grant"]
["F","UA079","96 Advancement Grant"]
["F","UA079","VPUA (VP-Univ. Advancement)"]
["F","UA080","99 Advancement Grant"]
["F","UA081","00 Advancement Grant"]
["F","UA082","AF/Alumni Memb Conversion"]
["F","UA083","2001 Annual Fund Grant"]
["F","UA084","New Vision Campaign"]
["F","UA084","Advancement"]
["F","UA085","University Advancement Events"]
["J","Z10106","R. MCNAIR POST BAC PROGRAM"]
["J","Z10109","Fdn-Novel Opt In. Spine Dep Ef"]
["J","Z10113","FDN-GWSB/HOST PLAN PHENOLOGY"]
["J","Z10126","US DOE"]
["J","Z10130","FDN-HVAC SCI II ROOM 176"]
["J","Z10132","FDN-INCREASE NURSES NOW"]
["J","Z10140","FDN-NSF-PALEOCLIMATE & FLOODNG"]
["J","Z10151","FDN-BECA"]
["J","Z10166","FDN-CAL SWEC IV-E2001-02"]
["J","Z10172","FDN-BOR-LOKERN GRAZING"]
["J","Z10182","FDN-TITLE III"]
["J","Z10184","FDN-TITLE III"]
["J","Z10199","NIH - PRE MARC"]
["J","Z10224","FDN-TITLE V"]
["J","Z10232","FDN-HEAD START"]
["J","Z10243","BILINGUAL TITLE VII"]
["J","Z10244","FDN-BILINGUAL PLUS"]
["J","Z10251","ONR-EXCEL"]
["J","Z10255","TITLE V - BC"]
["J","Z10279","CAL SWEC"]
["J","Z10290","FDN-GLASSY WINGED SHARPSHOOTR"]
["J","Z10297","FDN-GEAR UP"]
["J","Z10304","REACHING FOR THE STARS"]
["J","Z20105","DPR-FLORISTIC SURVEY"]
["J","Z20148","CSU NASA SUMMER INSTITUTE"]
["J","Z20273","FDN-CHEMICAL PLUME TRACING"]
["J","Z20276","CALIFORNIA MATH PROJECT"]
["J","Z30136","KWBA"]
["J","Z30188","MINORITY NURSING"]
["J","Z30252","FDN-CHILDREN IN MARKETPLACE"]
["J","Z30266","FDN-LIZARD STUDY"]
["J","Z30267","DIABETES DEMONSTRATION PROJ"]
["J","Z30274","FDN-PROJECT LASER"]
["J","Z30291","OSHER LIFELONG LEARNING GRANT"]
["J","Z30292","FDN PROJ - SLICK"]
["J","Z30305","AT FAMILIES PERSPECTIVES"]
["J","Z30311","EARLY LITERACY PROJECT"]
["J","Z40101","FDN-KCSOS LEADERSHIP INTERN PR"]
["J","Z40104","FDN-KCCFC STAFF DEVELOPMT"]
["J","Z40107","FDN-NURSING DIVERSITY INIT"]
["J","Z40125","FDN-BAK HOMELESS CTR"]
["J","Z40152","FDN-BCSD-SERRP READING FIRST"]
["J","Z40165","AMERICAN HEART ASSOCN"]
["J","Z40168","FDN-KERN CO PROBATION DEPT"]
["J","Z40202","FDN-KERN CO TOBACCO CONTROL"]
["J","Z40211","FDN-KERN MEDICAL CTR"]
["J","Z40239","FDN-KCCFC-PROP 10 EVAL"]
["J","Z40286","FDN-OZONE-RESEARCH CORP"]
["J","Z40287","CAMP REGION 5"]
["J","Z40288","SBC GEAR UP"]
["J","Z50143","Fdn-Valley Fever"]
["J","ZA0073","FDN-NCARE"]
["J","ZA0099","FDN-DEPT OF NURSING"]
["J","ZA0270","FDN-AV CTR FOR COMMUNITY DEV"]
["J","ZA0294","Alcohol&Drug Ed. Comm/STAANDUP"]
["J","ZAL020","FDN-ALUMNI OPERATIONS"]
["J","ZAL037","FDN-ALUMNI"]
["J","ZAT050","FDN-ATHLETICS GENERAL"]
["J","ZC1343","MUSEUM OF ANTHROPOLOGY"]
["J","ZCC025","FDN-CHILDREN'S CENTER"]
["J","ZCI304","FDN-CI FACT"]
["J","ZCI305","FDN-ANTELOPE VALLEY PTRSHP"]
["J","ZCI319","FDN-CI POLITICS RESEARCH"]
["J","ZCI333","FDN-CAR"]
["J","ZCI343","AIC"]
["J","ZCI344","FDN-ENTERPRISE COLLEGE"]
["J","ZCI351","FDN-KERN ECONOMIC JOURNAL"]
["J","ZCI356","FDN-KEGLEY INSTITUTE"]
["J","ZCK000","County of Kern"]
["J","ZDN015","FDN-DORIAN SOCIETY"]
["J","ZEM100","DR. SASAKI'S RETIREMENT EVENT"]
["J","ZEM100","DR. SASAKI'S RETIREMENT EVENT"]
["J","ZEM101","WILLIAM PERRY RETIREMENT FUND"]
["J","ZEM103","Sunshine Fund"]
["J","ZEM104","Marie Covin Retirement Fund"]
["J","ZEM105","Mike Chertok's Retirement"]
["J","ZEM106","EMPL Separation Fund-Acad Affr"]
["J","ZEM107","Janet Martin's Retirement"]
["J","ZEM108","Karen Abercrombie Retirement"]
["J","ZEM200","Student Affairs Events"]
["J","ZFD000","FOUNDATION GENERAL"]
["F","ZHE01","HFI-Rev Col Adv"]
["J","ZMC101","GRASP-CA Well SampleRepository"]
["J","ZMC102","Archeological Info Ctr-Payroll"]
["J","ZMR006","AV Student Referendum"]
["F","ZN201","GNA-Esch of Unclm PY"]
["F","ZN202","GNA-Esch of Unclm PY"]
["F","ZN203","GNA-ESCHEAT OF UNCLAIM-CY"]
["F","ZN204","GNA-Escheat of Unclm-05"]
["F","ZN204","GNA-Escheat of Unclm-04"]
["F","ZN205","GNA-Escheat of Unclm-05"]
["F","ZN206","GNA-ESCHEAT OF UNCLM-06"]
["F","ZN207","GNA-ESCHEAT OF UNCLM-07"]
["F","ZN207","GNA-ESCHEAT OF UNCLM-07"]
["F","ZNA03","GNA-Misc Revenue CY"]
["F","ZNA04","GNA-Unclr Collection"]
["F","ZNA06","GNA-UNCLR COLLECTION"]
["F","ZNB04","BANNER DEFAULT CF"]
["F","ZNB04","BANNER DEFAULT CF"]
["J","ZPE203","FDN - COCHRAN CHAIR NURSING"]
["J","ZPL078","FDN-PLANT FUND CAPITAL PROJECT"]
["J","ZRE042","FDN-Natural Science & Math Eqp"]
["J","ZTR008","FDN-CC SUMMER PROGRAM"]
["J","ZTR013","FDN-MUSEUM OF ANTHROPOLOGY"]
["J","ZTR020","KERN EXPORT PROGRAM"]
["J","ZTR022","FDN-LAB OF ARCH SCIENCE"]
["J","ZTR025","CHEV/TEXACO EARLY LITERACY PRJ"]
["J","ZTR031","FDN-ERNEST WILLIAMS DEVELOPMNT"]
["J","ZTR035","F.A.C.T."]
["J","ZTR036","FDN-Department of Geology"]
["J","ZTR038","FDN-Hispanic Scholarship"]
["J","ZTR042","KERN ECONOMIC JOURNAL"]
["J","ZTR044","FDN-Nursing Equipment"]
["J","ZUA074","FDN-UNIV ADV ANNUAL FUND"]
["J","ZUA084","FDN-ADVANCEMENT"]
["J","ZZZ001","Off-campus Reimbursed Activity"]